Workbook

Sheet Read me - LAs
C8: JBA Strategic Flood Risk Assessment Site Screening Tool - v2.0
C10: This spreadsheet has been designed to assist local authorities with the selection of development sites for inclusion within their local plan.
C12: Note on calculations:
C13: Site boundaries have been screened against flood risk information to determine the proportion of the site at risk. The following flood risk information has been used in the assessment ● Flood Zones (from Environment Agency Flood Zones and results from detailed hydraulic models) ● Environment Agency's Risk of Flooding from Surface Water Map ● Environment Agency's Historic Flood Map ● Environment Agency's Risk of Flooding from Reservoirs Map ● JBA Groundwater Map Further information on sources of data are given in the Level 1 SFRA report
C15: Additional information:
C16: The sites have also been considered against the following information to provide additional information to support decision making ● Canal centrelines - to determine if there is a canal within 100m of the site ● Environment Agency's Areas Benefitting from Defences dataset - to determine if the site benefits from formal flood defences ● Detailed River Network dataset - to determine if their is a watercourse with a catchment less than 3km2 flowing through or adjacent to a site, which would not have been included in the Environment Agency's Flood Zones
C18: Note on Flood Zone and Surface Water percentages:
C19: The values quoted in the Level 1 Screening tab show the percentage of the site at flood risk from that particular Flood Zone / event, excluding the percentage of the site at flood risk at a higher risk Flood Zone. The total percentage of Flood Zone 3b, 3a, 2 and 1 is equal to 100%. For example 50% of a site is in the Flood Zones. Taking each Flood Zone individually, 50% is in Flood Zone 2 but only 30% is in Flood Zone 3a and only 10% is in Flood Zone 3b. In the Level 1 Screening tab this will be displayed as 10% in Flood Zone 3b, 20% in Flood Zone 3a (as this excludes the 10% in Flood Zone 3b), 20% in Flood Zone 2 (as this excludes the 10% in Flood Zone 3b and 20% in Flood Zone 3a) and 50% in Flood Zone 1. The only exception to the is Flood Zone 3a plus climate change, which can be larger than the existing Flood Zone 2, so is presented as a stand-alone percentage.
C21: Using the spreadsheet
C22: The spreadsheet has been designed to assist the selection of sites. A number of screening options are available at the top of the Level 1 Screening tab. Each option will allow sites to be screened against a user defined value. For example To select sites that are more than 50% in Flood Zone 2, click on 'Screen sites against a user-defined % in Flood Zone 2' icon, and enter 50 (do not include a % sign) when prompted. In the first instance of using this spreadsheet, a search of sites that are 100% in FZ1 should be taken. This will help determine whether all development needs are within the sites that are covered in this selection. In the event that they are, then no further action needs to be taken to determine which sites should be adopted in the Local Plan for development. Where development needs exists outside of the sites in FZ1, assessment of sites in FZ2 should be made. The last column and two screening buttons give an indication of whether the sites are within Flood Zone 1 at low risk of flood risk from all sources under the Council's chosen criteria: ● Site is within Flood Zone 1 ● Site is not within Flood Zone 3a plus climate change ● Site is <10% at risk from surface water flooding in the 1 in 1000-year event ● Site is <10% within highest risk category in JBA Groundwater map (groundwater is <0.025m below the surface in the 1 in 100-year event) ● Site is <25% within second highest risk category in JBA Groundwater map (groundwater is between 0.025m and 0.5m below the surface in the 1 in 100-year event) ● Site is not within the Historic Flood Map ● Site is not at risk of reservoir flooding Sewer flooding information is only provided at a postcode scale and is not suitable for a screening exercise but should be considered in any Level 2 assessment. The remaining sites should be considered for Level 2 SFRA if the Council wishes to take them forward.

Sheet Level 1 Screening
A8: Site code | B8: Site Name | C8: Area (ha) | D8: Proportion of site shown to be at risk (%) | U8: Proposed use | V8: Is the site in FZ1 and at low risk from other sources? (see Read me tab for criteria)
D9: Flood Zones | J9: Updated Flood Map for Surface Water | O9: Historic Flood Map | P9: Risk of Flooding from Reservoirs | Q9: Presence of watercourse (Detailed River Network) | R9: JBA Groundwater Flood Map (depth of water level below ground surface in 100 year event)
D10: FZ 3b | E10: FZ 3a | F10: Total FZ3 | G10: FZ 2 | H10: FZ 1 | I10: Total FZ3a+CC (70%) | J10: 30yr | K10: 100yr | L10: Total 100yr | M10: 1,000yr | N10: Total at surface water risk | R10: 0 to 0.025m | S10: 0.025 to 0.5m | T10: Total in high risk categories
A11: =Calculations!B2 -> OS2 | B11: Toulmin Drive/Highelms, St Albans, AL3 6DX | C11: =Calculations!C2 -> 0.1933819768 | D11: =Calculations!G2 -> 0 | E11: =Calculations!K2 -> 0 | F11: =Calculations!J2 -> 0 | G11: =Calculations!O2 -> 0 | H11: =Calculations!P2 -> 1 | I11: =Calculations!V2 -> 0 | J11: =Calculations!AD2 -> 0 | K11: =Calculations!AG2 -> 0 | L11: =Calculations!AG2 -> 0 | M11: =Calculations!AJ2 -> 0 | N11: =Calculations!AI2 ->  | O11: =Calculations!X2 -> 0 | P11: =Calculations!Z2 -> 0 | Q11: =Calculations!AT2 -> 0 | R11: =Calculations!AR2 -> 0 | S11: =Calculations!AP2 -> 0 | T11: =Calculations!AS2 -> 0 | U11: Residential | V11: =IF(AND($H11=1,I11=0,O11=0,Q11=0,$M11<0.1,$R11<0.1,$S11<0.25),"Yes","No") -> Yes
A12: =Calculations!B3 -> OS1 | B12: Land to the North of Bricket Wood, bounded by the M25 and A405 North Orbital | C12: =Calculations!C3 -> 6.523311178 | D12: =Calculations!G3 -> 0 | E12: =Calculations!K3 -> 0 | F12: =Calculations!J3 -> 0 | G12: =Calculations!O3 -> 0 | H12: =Calculations!P3 -> 1 | I12: =Calculations!V3 -> 0 | J12: =Calculations!AD3 -> 0.01347921155 | K12: =Calculations!AG3 -> 0.04166903427 | L12: =Calculations!AG3 -> 0.04166903427 | M12: =Calculations!AJ3 -> 0.1278488049 | N12: =Calculations!AI3 ->  | O12: =Calculations!X3 -> 0 | P12: =Calculations!Z3 -> 0 | Q12: =Calculations!AT3 -> 0 | R12: =Calculations!AR3 -> 0.07027483102 | S12: =Calculations!AP3 -> 0.5450433171 | T12: =Calculations!AS3 -> 0.6153181481 | U12: Residential | V12: =IF(AND($H12=1,I12=0,O12=0,Q12=0,$M12<0.1,$R12<0.1,$S12<0.25),"Yes","No") -> No
A13: =Calculations!B4 -> B3 | B13: West Redbourn, Redbourne, AL3 7HZ | C13: =Calculations!C4 -> 27.01710883 | D13: =Calculations!G4 -> 0 | E13: =Calculations!K4 -> 0 | F13: =Calculations!J4 -> 0 | G13: =Calculations!O4 -> 0 | H13: =Calculations!P4 -> 1 | I13: =Calculations!V4 -> 0 | J13: =Calculations!AD4 -> 0.01243760757 | K13: =Calculations!AG4 -> 0.02315664796 | L13: =Calculations!AG4 -> 0.02315664796 | M13: =Calculations!AJ4 -> 0.05647412294 | N13: =Calculations!#REF! ->  | O13: =Calculations!X4 -> 0 | P13: =Calculations!Z4 -> 0.007045860307 | Q13: =Calculations!AT4 -> 0 | R13: =Calculations!AR4 -> 0 | S13: =Calculations!AP4 -> 0.005900864456 | T13: =Calculations!AS4 -> 0.005900864456 | U13: Residential | V13: Yes
A14: =Calculations!B5 -> H3 | B14: East Hemel Hempstead (Central), HP2 7LF | C14: =Calculations!C5 -> 143.6795962 | D14: =Calculations!G5 -> 0 | E14: =Calculations!K5 -> 0 | F14: =Calculations!J5 -> 0 | G14: =Calculations!O5 -> 0 | H14: =Calculations!P5 -> 1 | I14: =Calculations!V5 -> 0 | J14: =Calculations!AD5 -> 0.02705011718 | K14: =Calculations!AG5 -> 0.04478640348 | L14: =Calculations!AG5 -> 0.04478640348 | M14: =Calculations!AJ5 -> 0.1063550314 | N14: =Calculations!AI4 ->  | O14: =Calculations!X5 -> 0 | P14: =Calculations!Z5 -> 0 | Q14: =Calculations!AT5 -> 0 | R14: =Calculations!AR5 -> 0 | S14: =Calculations!AP5 -> 0 | T14: =Calculations!AS4 -> 0.005900864456 | U14: Residential | V14: No
A15: ALD5 | B15: East Hemel Hempstead (South), HP2 4PA4 | C15: 2.89643317 | D15: =Calculations!G5 -> 0 | E15: =Calculations!K5 -> 0 | F15: =Calculations!J5 -> 0 | G15: =Calculations!O5 -> 0 | H15: =Calculations!P5 -> 1 | I15: =Calculations!V5 -> 0 | J15: =Calculations!AD5 -> 0.02705011718 | K15: =Calculations!AG5 -> 0.04478640348 | L15: =Calculations!AG6 -> 0.02556221231 | M15: =Calculations!AJ5 -> 0.1063550314 | N15: =Calculations!AI5 ->  | O15: =Calculations!X5 -> 0 | P15: =Calculations!Z5 -> 0 | Q15: =Calculations!AT6 -> 0 | R15: =Calculations!AR5 -> 0 | S15: =Calculations!AP5 -> 0 | T15: =Calculations!AS5 -> 0 | U15: Residential | V15: No
A16: =Calculations!B7 -> M25 | B16: Baulk Close, Harpenden, AL5 4LY | C16: =Calculations!C7 -> 0.5556210068 | D16: =Calculations!G7 -> 0 | E16: =Calculations!K7 -> 0.01799787963 | F16: =Calculations!J7 -> 0.01799787963 | G16: =Calculations!O7 -> 0.1979766759 | H16: =Calculations!P7 -> 0.7840254444 | I16: =Calculations!V7 -> 0 | J16: =Calculations!AD7 -> 0 | K16: =Calculations!AG7 -> 0.004986403981 | L16: =Calculations!AG7 -> 0.004986403981 | M16: =Calculations!AJ7 -> 0.08744912504 | N16: =Calculations!AI6 ->  | O16: =Calculations!X7 -> 0.1832498044 | P16: =Calculations!Z7 -> 0.1432176202 | Q16: =Calculations!AT7 -> 0 | R16: =Calculations!AR7 -> 0.01210800531 | S16: =Calculations!AP7 -> 0.04428888379 | T16: =Calculations!AS6 -> 0 | U16: Residential | V16: No
A17: =Calculations!B8 -> M6 | B17: South of Harpenden Lane, Redbourn, AL3 7RQ | C17: =Calculations!C8 -> 12.5641162 | D17: =Calculations!G8 -> 0 | E17: =Calculations!K8 -> 0.1305304705 | F17: =Calculations!J8 -> 0.1305304705 | G17: =Calculations!O8 -> 0.1559998306 | H17: =Calculations!P8 -> 0.7134696988 | I17: =Calculations!V8 -> 0 | J17: =Calculations!AD8 -> 0.1651028483 | K17: =Calculations!AG8 -> 0.2231735522 | L17: =Calculations!AG8 -> 0.2231735522 | M17: =Calculations!AJ8 -> 0.4114980086 | N17: =Calculations!AI7 ->  | O17: =Calculations!X8 -> 0 | P17: =Calculations!Z8 -> 0.3396261959 | Q17: =Calculations!AT8 -> 0 | R17: =Calculations!AR8 -> 0.5149220976 | S17: =Calculations!AP8 -> 0.123322398 | T17: =Calculations!AS7 -> 0.0563968891 | U17: Residential | V17: No
A18: =Calculations!B9 -> M16 | B18: Falconers Field, Harpenden, AL5 3ES | C18: =Calculations!C9 -> 1.158099771 | D18: =Calculations!G9 -> 0 | E18: =Calculations!K9 -> 0 | F18: =Calculations!J9 -> 0 | G18: =Calculations!O9 -> 0 | H18: =Calculations!P9 -> 1 | I18: =Calculations!V9 -> 0 | J18: =Calculations!AD9 -> 0 | K18: =Calculations!AG9 -> 0 | L18: =Calculations!AG9 -> 0 | M18: =Calculations!AJ9 -> 0 | N18: =Calculations!AI8 ->  | O18: =Calculations!X9 -> 0 | P18: =Calculations!Z9 -> 0 | Q18: =Calculations!AT9 -> 0 | R18: =Calculations!AR9 -> 0 | S18: =Calculations!AP9 -> 0 | T18: =Calculations!AS8 -> 0.6382444956 | U18: Residential | V18: Yes
A19: =Calculations!B10 -> M7 | B19: Townsend Lane, Harpenden, AL5 2RH | C19: =Calculations!C10 -> 1.882815649 | D19: =Calculations!G10 -> 0 | E19: =Calculations!K10 -> 0 | F19: =Calculations!J10 -> 0 | G19: =Calculations!O10 -> 0 | H19: =Calculations!P10 -> 1 | I19: =Calculations!V10 -> 0 | J19: =Calculations!AD10 -> 0 | K19: =Calculations!AG10 -> 0.005736089991 | L19: =Calculations!AG10 -> 0.005736089991 | M19: =Calculations!AJ10 -> 0.02209456885 | N19: =Calculations!AI9 ->  | O19: =Calculations!X10 -> 0 | P19: =Calculations!Z10 -> 0 | Q19: =Calculations!AT10 -> 0 | R19: =Calculations!AR10 -> 0 | S19: =Calculations!AP10 -> 0 | T19: =Calculations!AS9 -> 0 | U19: Residential | V19: Yes
A20: =Calculations!B11 -> M22 | B20: Wood End, Hatching Green, Harpenden, AL5 2JT | C20: =Calculations!C11 -> 0.7680843754 | D20: =Calculations!G11 -> 0 | E20: =Calculations!K11 -> 0 | F20: =Calculations!J11 -> 0 | G20: =Calculations!O11 -> 0 | H20: =Calculations!P11 -> 1 | I20: =Calculations!V11 -> 0 | J20: =Calculations!AD11 -> 0 | K20: =Calculations!AG11 -> 0.02187259699 | L20: =Calculations!AG11 -> 0.02187259699 | M20: =Calculations!AJ11 -> 0.04183611753 | N20: =Calculations!AI10 ->  | O20: =Calculations!X11 -> 0 | P20: =Calculations!Z11 -> 0 | Q20: =Calculations!AT11 -> 0 | R20: =Calculations!AR11 -> 0 | S20: =Calculations!AP11 -> 0 | T20: =Calculations!AS10 -> 0 | U20: Residential | V20: Yes
A21: =Calculations!B12 -> M21 | B21: Rothamsted Lodge, Hatching Green, AL5 2GT | C21: =Calculations!C12 -> 1.929774895 | D21: =Calculations!G12 -> 0 | E21: =Calculations!K12 -> 0 | F21: =Calculations!J12 -> 0 | G21: =Calculations!O12 -> 0 | H21: =Calculations!P12 -> 1 | I21: =Calculations!V12 -> 0 | J21: =Calculations!AD12 -> 0 | K21: =Calculations!AG12 -> 0 | L21: =Calculations!AG12 -> 0 | M21: =Calculations!AJ12 -> 0.0001102221821 | N21: =Calculations!AI11 ->  | O21: =Calculations!X12 -> 0 | P21: =Calculations!Z12 -> 0 | Q21: =Calculations!AT12 -> 0 | R21: =Calculations!AR12 -> 0 | S21: =Calculations!AP12 -> 0 | T21: =Calculations!AS11 -> 0 | U21: Residential | V21: Yes
A22: =Calculations!B13 -> M1 a | B22: Cross Lane, Harpenden, AL5 1BX | C22: =Calculations!C13 -> 6.471048076 | D22: =Calculations!G13 -> 0 | E22: =Calculations!K13 -> 0 | F22: =Calculations!J13 -> 0 | G22: =Calculations!O13 -> 0 | H22: =Calculations!P13 -> 1 | I22: =Calculations!V13 -> 0 | J22: =Calculations!AD13 -> 0.003353569429 | K22: =Calculations!AG13 -> 0.008311595922 | L22: =Calculations!AG13 -> 0.008311595922 | M22: =Calculations!AJ13 -> 0.03929320918 | N22: =Calculations!AI12 ->  | O22: =Calculations!X13 -> 0 | P22: =Calculations!Z13 -> 0 | Q22: =Calculations!AT13 -> 0 | R22: =Calculations!AR13 -> 0 | S22: =Calculations!AP13 -> 0 | T22: =Calculations!AS12 -> 0 | U22: Residential | V22: Yes
A23: =Calculations!B14 -> M5 | B23: Sewage Treatment Works, Piggottshill Lane, Harpenden, AL5 5UN | C23: =Calculations!C14 -> 4.099547299 | D23: =Calculations!G14 -> 0 | E23: =Calculations!K14 -> 0 | F23: =Calculations!J14 -> 0 | G23: =Calculations!O14 -> 0 | H23: =Calculations!P14 -> 1 | I23: =Calculations!V14 -> 0 | J23: =Calculations!AD14 -> 0.03120173719 | K23: =Calculations!AG14 -> 0.1114790313 | L23: =Calculations!AG14 -> 0.1114790313 | M23: =Calculations!AJ14 -> 0.2693613243 | N23: =Calculations!AI13 ->  | O23: =Calculations!X14 -> 0 | P23: =Calculations!Z14 -> 0 | Q23: =Calculations!AT14 -> 0 | R23: =Calculations!AR14 -> 0 | S23: =Calculations!AP14 -> 0 | T23: =Calculations!AS13 -> 0 | U23: Residential | V23: No
A24: =Calculations!B15 -> M19 | B24: Piggotshill Lane, Harpenden, AL5 5UN | C24: =Calculations!C15 -> 0.8630104658 | D24: =Calculations!G15 -> 0 | E24: =Calculations!K15 -> 0 | F24: =Calculations!J15 -> 0 | G24: =Calculations!O15 -> 0 | H24: =Calculations!P15 -> 1 | I24: =Calculations!V15 -> 0 | J24: =Calculations!AD15 -> 0.01501128945 | K24: =Calculations!AG15 -> 0.01814687761 | L24: =Calculations!AG15 -> 0.01814687761 | M24: =Calculations!AJ15 -> 0.06809966116 | N24: =Calculations!AI14 ->  | O24: =Calculations!X15 -> 0 | P24: =Calculations!Z15 -> 0 | Q24: =Calculations!AT15 -> 0 | R24: =Calculations!AR15 -> 0 | S24: =Calculations!AP15 -> 0 | T24: =Calculations!AS14 -> 0 | U24: Residential | V24: Yes
A25: =Calculations!B16 -> M24 | B25: South of Codicote Road, Wheathampstead, AL4 8GD | C25: =Calculations!C16 -> 1.003952653 | D25: =Calculations!G16 -> 0 | E25: =Calculations!K16 -> 0 | F25: =Calculations!J16 -> 0 | G25: =Calculations!O16 -> 0 | H25: =Calculations!P16 -> 1 | I25: =Calculations!V16 -> 0 | J25: =Calculations!AD16 -> 0 | K25: =Calculations!AG16 -> 0 | L25: =Calculations!AG16 -> 0 | M25: =Calculations!AJ16 -> 0 | N25: =Calculations!AI15 ->  | O25: =Calculations!X16 -> 0 | P25: =Calculations!Z16 -> 0 | Q25: =Calculations!AT16 -> 0 | R25: =Calculations!AR16 -> 0 | S25: =Calculations!AP16 -> 0 | T25: =Calculations!AS15 -> 0 | U25: Residential | V25: Yes
A26: =Calculations!B17 -> M2 | B26: Hill Dyke Road, Wheathampstead, AL4 8TR | C26: =Calculations!C17 -> 3.553843984 | D26: =Calculations!G17 -> 0 | E26: =Calculations!K17 -> 0 | F26: =Calculations!J17 -> 0 | G26: =Calculations!O17 -> 0 | H26: =Calculations!P17 -> 1 | I26: =Calculations!V17 -> 0 | J26: =Calculations!AD17 -> 0 | K26: =Calculations!AG17 -> 0 | L26: =Calculations!AG17 -> 0 | M26: =Calculations!AJ17 -> 0 | N26: =Calculations!AI16 ->  | O26: =Calculations!X17 -> 0 | P26: =Calculations!Z17 -> 0 | Q26: =Calculations!AT17 -> 0 | R26: =Calculations!AR17 -> 0 | S26: =Calculations!AP17 -> 0 | T26: =Calculations!AS16 -> 0 | U26: Residential | V26: Yes
A27: =Calculations!B18 -> M26 | B27: Highway Chipping Depot, Lower Luton Roa, AL4 8JJ | C27: =Calculations!C18 -> 0.3392220089 | D27: =Calculations!G18 -> 0 | E27: =Calculations!K18 -> 0 | F27: =Calculations!J18 -> 0 | G27: =Calculations!O18 -> 0.3242714126 | H27: =Calculations!P18 -> 0.6757285874 | I27: =Calculations!V18 -> 0 | J27: =Calculations!AD18 -> 8.788344865e-06 | K27: =Calculations!AG18 -> 0.001213830439 | L27: =Calculations!AG18 -> 0.001213830439 | M27: =Calculations!AJ18 -> 0.008502402333 | N27: =Calculations!AI17 ->  | O27: =Calculations!X18 -> 0.3218147014 | P27: =Calculations!Z18 -> 0.02183067963 | Q27: =Calculations!AT18 -> 0 | R27: =Calculations!AR18 -> 0.1655759562 | S27: =Calculations!AP18 -> 0.06449808127 | T27: =Calculations!AS17 -> 0 | U27: Residential | V27: No
A28: =Calculations!B19 -> M17 | B28: North of Wheathampstead Road, Harpenden, AL5 1 Ab | C28: =Calculations!C19 -> 2.258856501 | D28: =Calculations!G19 -> 0 | E28: =Calculations!K19 -> 0 | F28: =Calculations!J19 -> 0 | G28: =Calculations!O19 -> 0 | H28: =Calculations!P19 -> 1 | I28: =Calculations!V19 -> 0 | J28: =Calculations!AD19 -> 0 | K28: =Calculations!AG19 -> 0 | L28: =Calculations!AG19 -> 0 | M28: =Calculations!AJ19 -> 0 | N28: =Calculations!AI18 ->  | O28: =Calculations!X19 -> 0 | P28: =Calculations!Z19 -> 0 | Q28: =Calculations!AT19 -> 0 | R28: =Calculations!AR19 -> 0 | S28: =Calculations!AP19 -> 0 | T28: =Calculations!AS18 -> 0.2300740375 | U28: Residential | V28: Yes
A29: =Calculations!B20 -> M20 | B29: Lower Luton Road, Harpenden, AL5 5AF | C29: =Calculations!C20 -> 0.7358806713 | D29: =Calculations!G20 -> 0 | E29: =Calculations!K20 -> 0 | F29: =Calculations!J20 -> 0 | G29: =Calculations!O20 -> 0.0271783195 | H29: =Calculations!P20 -> 0.9728216805 | I29: =Calculations!V20 -> 0 | J29: =Calculations!AD20 -> 0 | K29: =Calculations!AG20 -> 0 | L29: =Calculations!AG20 -> 0 | M29: =Calculations!AJ20 -> 0.01585442865 | N29: =Calculations!AI19 ->  | O29: =Calculations!X20 -> 0 | P29: =Calculations!Z20 -> 0.1781900603 | Q29: =Calculations!AT20 -> 0 | R29: =Calculations!AR20 -> 0.5800680735 | S29: =Calculations!AP20 -> 0.09889560732 | T29: =Calculations!AS19 -> 0 | U29: Residential | V29: No
A30: =Calculations!B21 -> M4 | B30: North of Oakwood Road, Bricket Wood, AL2 3PT | C30: =Calculations!C21 -> 3.06806946 | D30: =Calculations!G21 -> 0 | E30: =Calculations!K21 -> 0 | F30: =Calculations!J21 -> 0 | G30: =Calculations!O21 -> 0 | H30: =Calculations!P21 -> 1 | I30: =Calculations!V21 -> 0 | J30: =Calculations!AD21 -> 0 | K30: =Calculations!AG21 -> 0 | L30: =Calculations!AG21 -> 0 | M30: =Calculations!AJ21 -> 0.02177016553 | N30: =Calculations!AI20 ->  | O30: =Calculations!X21 -> 0 | P30: =Calculations!Z21 -> 0 | Q30: =Calculations!AT21 -> 0 | R30: =Calculations!AR21 -> 0 | S30: =Calculations!AP21 -> 1.000000013 | T30: =Calculations!AS20 -> 0.6789636808 | U30: Residential | V30: No
A31: =Calculations!B22 -> M15 | B31: Bucknalls Drive, Bricket Wood, AL2 3YT | C31: =Calculations!C22 -> 1.275842016 | D31: =Calculations!G22 -> 0 | E31: =Calculations!K22 -> 0 | F31: =Calculations!J22 -> 0 | G31: =Calculations!O22 -> 0 | H31: =Calculations!P22 -> 1 | I31: =Calculations!V22 -> 0 | J31: =Calculations!AD22 -> 0 | K31: =Calculations!AG22 -> 0 | L31: =Calculations!AG22 -> 0 | M31: =Calculations!AJ22 -> 0.0229828675 | N31: =Calculations!AI21 ->  | O31: =Calculations!X22 -> 0 | P31: =Calculations!Z22 -> 0 | Q31: =Calculations!AT22 -> 0 | R31: =Calculations!AR22 -> 0 | S31: =Calculations!AP22 -> 0 | T31: =Calculations!AS21 -> 1.000000013 | U31: Residential | V31: Yes
A32: =Calculations!B23 -> M1 | B32: East and West of Miriam Lane, Chiswell Green, AL2 3NY | C32: =Calculations!C23 -> 4.076470062 | D32: =Calculations!G23 -> 0 | E32: =Calculations!K23 -> 0 | F32: =Calculations!J23 -> 0 | G32: =Calculations!O23 -> 0 | H32: =Calculations!P23 -> 1 | I32: =Calculations!V23 -> 0 | J32: =Calculations!AD23 -> 2.231720057e-05 | K32: =Calculations!AG23 -> 0.002304815724 | L32: =Calculations!AG23 -> 0.002304815724 | M32: =Calculations!AJ23 -> 0.1020822094 | N32: =Calculations!AI22 ->  | O32: =Calculations!X23 -> 0 | P32: =Calculations!Z23 -> 0 | Q32: =Calculations!AT23 -> 0 | R32: =Calculations!AR23 -> 0 | S32: =Calculations!AP23 -> 0 | T32: =Calculations!AS22 -> 0 | U32: Residential | V32: No
A33: =Calculations!B24 -> M3 | B33: Bedmond Lane, St Albans, AL3 4AH | C33: =Calculations!C24 -> 5.835531346 | D33: =Calculations!G24 -> 0 | E33: =Calculations!K24 -> 0 | F33: =Calculations!J24 -> 0 | G33: =Calculations!O24 -> 0 | H33: =Calculations!P24 -> 1 | I33: =Calculations!V24 -> 0 | J33: =Calculations!AD24 -> 0 | K33: =Calculations!AG24 -> 0.004605079042 | L33: =Calculations!AG24 -> 0.004605079042 | M33: =Calculations!AJ24 -> 0.01769859476 | N33: =Calculations!AI23 ->  | O33: =Calculations!X24 -> 0 | P33: =Calculations!Z24 -> 0 | Q33: =Calculations!AT24 -> 0 | R33: =Calculations!AR24 -> 0 | S33: =Calculations!AP24 -> 0 | T33: =Calculations!AS23 -> 0 | U33: Residential | V33: Yes
A34: =Calculations!B25 -> M10 | B34: Tippendell Lane and Orchard Drive, How Wood, AL2 2HJ | C34: =Calculations!C25 -> 2.319484313 | D34: =Calculations!G25 -> 0 | E34: =Calculations!K25 -> 0 | F34: =Calculations!J25 -> 0 | G34: =Calculations!O25 -> 0 | H34: =Calculations!P25 -> 1 | I34: =Calculations!V25 -> 0 | J34: =Calculations!AD25 -> 0.03754796391 | K34: =Calculations!AG25 -> 0.05771817792 | L34: =Calculations!AG25 -> 0.05771817792 | M34: =Calculations!AJ25 -> 0.2182029371 | N34: =Calculations!AI24 ->  | O34: =Calculations!X25 -> 0 | P34: =Calculations!Z25 -> 0 | Q34: =Calculations!AT25 -> 0 | R34: =Calculations!AR25 -> 0 | S34: =Calculations!AP25 -> 0 | T34: =Calculations!AS24 -> 0 | U34: Residential | V34: No
A35: =Calculations!B26 -> L2 | B35: West of Watling Street, Park Street, AL2 2PZ | C35: =Calculations!C26 -> 4.326761516 | D35: =Calculations!G26 -> 0 | E35: =Calculations!K26 -> 0 | F35: =Calculations!J26 -> 0 | G35: =Calculations!O26 -> 0 | H35: =Calculations!P26 -> 1 | I35: =Calculations!V26 -> 0 | J35: =Calculations!AD26 -> 0.01063150808 | K35: =Calculations!AG26 -> 0.02752684812 | L35: =Calculations!AG26 -> 0.02752684812 | M35: =Calculations!AJ26 -> 0.06328985361 | N35: =Calculations!AI25 ->  | O35: =Calculations!X26 -> 0 | P35: =Calculations!Z26 -> 0 | Q35: =Calculations!AT26 -> 0 | R35: =Calculations!AR26 -> 0 | S35: =Calculations!AP26 -> 0 | T35: =Calculations!AS25 -> 0 | U35: Residential | V35: Yes
A36: =Calculations!B27 -> M27 | B36: Frogmore Vicarage, Frogmore, AL2 2JU | C36: =Calculations!C27 -> 1.060751475 | D36: =Calculations!G27 -> 0 | E36: =Calculations!K27 -> 0 | F36: =Calculations!J27 -> 0 | G36: =Calculations!O27 -> 0 | H36: =Calculations!P27 -> 1 | I36: =Calculations!V27 -> 0 | J36: =Calculations!AD27 -> 0 | K36: =Calculations!AG27 -> 0 | L36: =Calculations!AG27 -> 0 | M36: =Calculations!AJ27 -> 0 | N36: =Calculations!AI26 ->  | O36: =Calculations!X27 -> 0 | P36: =Calculations!Z27 -> 0 | Q36: =Calculations!AT27 -> 0 | R36: =Calculations!AR27 -> 0 | S36: =Calculations!AP27 -> 0 | T36: =Calculations!AS26 -> 0 | U36: Residential | V36: Yes
A37: =Calculations!B28 -> M13 | B37: North of Boissy Close, Colney Heath, AL4 0UE | C37: =Calculations!C28 -> 1.434695138 | D37: =Calculations!G28 -> 0 | E37: =Calculations!K28 -> 0 | F37: =Calculations!J28 -> 0 | G37: =Calculations!O28 -> 0 | H37: =Calculations!P28 -> 1 | I37: =Calculations!V28 -> 0 | J37: =Calculations!AD28 -> 0.006029982237 | K37: =Calculations!AG28 -> 0.01524201206 | L37: =Calculations!AG28 -> 0.01524201206 | M37: =Calculations!AJ28 -> 0.05241897348 | N37: =Calculations!AI27 ->  | O37: =Calculations!X28 -> 0 | P37: =Calculations!Z28 -> 0 | Q37: =Calculations!AT28 -> 0 | R37: =Calculations!AR28 -> 0 | S37: =Calculations!AP28 -> 0 | T37: =Calculations!AS27 -> 0 | U37: Residential | V37: Yes
A38: =Calculations!B29 -> B5 | B38: Glinwell, Hatfield Road, St Albans, AL4 0HE | C38: =Calculations!C29 -> 20.8470975 | D38: =Calculations!G29 -> 0 | E38: =Calculations!K29 -> 0.1112864753 | F38: =Calculations!J29 -> 0.1112864753 | G38: =Calculations!O29 -> 0.02494352032 | H38: =Calculations!P29 -> 0.8637700044 | I38: =Calculations!V29 -> 0 | J38: =Calculations!AD29 -> 0.02478875654 | K38: =Calculations!AG29 -> 0.05068629722 | L38: =Calculations!AG29 -> 0.05068629722 | M38: =Calculations!AJ29 -> 0.2559061331 | N38: =Calculations!AI28 ->  | O38: =Calculations!X29 -> 0 | P38: =Calculations!Z29 -> 0 | Q38: =Calculations!AT29 -> 0 | R38: =Calculations!AR29 -> 0.2902871535 | S38: =Calculations!AP29 -> 0.08214275725 | T38: =Calculations!AS28 -> 0 | U38: Residential | V38: No
A39: BH1 | B39: East of Kay Walk, St Albans, AL4 0XH | C39: 77.65288423 | D39: =Calculations!G29 -> 0 | E39: =Calculations!K29 -> 0.1112864753 | F39: =Calculations!J29 -> 0.1112864753 | G39: =Calculations!O29 -> 0.02494352032 | H39: =Calculations!P29 -> 0.8637700044 | I39: =Calculations!V29 -> 0 | J39: =Calculations!AD29 -> 0.02478875654 | K39: =Calculations!AG29 -> 0.05068629722 | L39: =Calculations!AG30 -> 0.004267022157 | M39: =Calculations!AJ29 -> 0.2559061331 | N39: =Calculations!AI29 ->  | O39: =Calculations!X29 -> 0 | P39: =Calculations!Z29 -> 0 | Q39: =Calculations!AT30 -> 0 | R39: =Calculations!AR29 -> 0.2902871535 | S39: =Calculations!AP29 -> 0.08214275725 | T39: =Calculations!AS29 -> 0.3724299107 | U39: Residential, with leisure/recreation and community facility associated with a wider housing development | V39: No
A40: =Calculations!B31 -> L1 | B40: Burston Nurseriess, North Orbital Road, St albans, AL2 2DS | C40: =Calculations!C31 -> 14.32725488 | D40: =Calculations!G31 -> 0 | E40: =Calculations!K31 -> 0 | F40: =Calculations!J31 -> 0 | G40: =Calculations!O31 -> 0 | H40: =Calculations!P31 -> 1 | I40: =Calculations!V31 -> 0 | J40: =Calculations!AD31 -> 0.009378469013 | K40: =Calculations!AG31 -> 0.02673795744 | L40: =Calculations!AG31 -> 0.02673795744 | M40: =Calculations!AJ31 -> 0.08470189806 | N40: =Calculations!AI30 ->  | O40: =Calculations!X31 -> 0 | P40: =Calculations!Z31 -> 0 | Q40: =Calculations!AT31 -> 0 | R40: =Calculations!AR31 -> 0 | S40: =Calculations!AP31 -> 0 | T40: =Calculations!AS30 -> 0 | U40: Residential | V40: Yes
A41: =Calculations!B32 -> B6 | B41: West of London Colney, AL2 1LN | C41: =Calculations!C32 -> 13.50460657 | D41: =Calculations!G32 -> 0 | E41: =Calculations!K32 -> 0 | F41: =Calculations!J32 -> 0 | G41: =Calculations!O32 -> 0 | H41: =Calculations!P32 -> 1 | I41: =Calculations!V32 -> 0 | J41: =Calculations!AD32 -> 0.01203728116 | K41: =Calculations!AG32 -> 0.01497723499 | L41: =Calculations!AG32 -> 0.01497723499 | M41: =Calculations!AJ32 -> 0.05937289131 | N41: =Calculations!AI31 ->  | O41: =Calculations!X32 -> 0.007487238482 | P41: =Calculations!Z32 -> 0 | Q41: =Calculations!AT32 -> 0 | R41: =Calculations!AR32 -> 0 | S41: =Calculations!AP32 -> 0 | T41: =Calculations!AS31 -> 0 | U41: Residential | V41: No
A42: =Calculations!B33 -> B8 | B42: Harper Lane, north of Radlett, WD7 7HU | C42: =Calculations!C33 -> 11.40124468 | D42: =Calculations!G33 -> 0 | E42: =Calculations!K33 -> 0.0140335555 | F42: =Calculations!J33 -> 0.0140335555 | G42: =Calculations!O33 -> 0.006139680529 | H42: =Calculations!P33 -> 0.979826764 | I42: =Calculations!V33 -> 0 | J42: =Calculations!AD33 -> 0 | K42: =Calculations!AG33 -> 0 | L42: =Calculations!AG33 -> 0 | M42: =Calculations!AJ33 -> 0.01648930191 | N42: =Calculations!AI32 ->  | O42: =Calculations!X33 -> 0 | P42: =Calculations!Z33 -> 0 | Q42: =Calculations!AT33 -> 0 | R42: =Calculations!AR33 -> 2.036435551e-06 | S42: =Calculations!AP33 -> 0 | T42: =Calculations!AS32 -> 0 | U42: Residential | V42: No
A43: =Calculations!B34 -> M8 | B43: Verulam Golf Club, St Albans, AL1 1JG | C43: =Calculations!C34 -> 2.797956075 | D43: =Calculations!G34 -> 0 | E43: =Calculations!K34 -> 0 | F43: =Calculations!J34 -> 0 | G43: =Calculations!O34 -> 0 | H43: =Calculations!P34 -> 1 | I43: =Calculations!V34 -> 0 | J43: =Calculations!AD34 -> 0.03072333646 | K43: =Calculations!AG34 -> 0.07061236902 | L43: =Calculations!AG34 -> 0.07061236902 | M43: =Calculations!AJ34 -> 0.154871131 | N43: =Calculations!AI33 ->  | O43: =Calculations!X34 -> 0 | P43: =Calculations!Z34 -> 0 | Q43: =Calculations!AT34 -> 0 | R43: =Calculations!AR34 -> 0 | S43: =Calculations!AP34 -> 0 | T43: =Calculations!AS33 -> 2.036435551e-06 | U43: Residential | V43: No
A44: =Calculations!B35 -> B7 | B44: North West Harpenden, AL5 3NP | C44: =Calculations!C35 -> 12.18841618 | D44: =Calculations!G35 -> 0 | E44: =Calculations!K35 -> 0 | F44: =Calculations!J35 -> 0 | G44: =Calculations!O35 -> 0 | H44: =Calculations!P35 -> 1 | I44: =Calculations!V35 -> 0 | J44: =Calculations!AD35 -> 0.0001261679678 | K44: =Calculations!AG35 -> 0.0006425541501 | L44: =Calculations!AG35 -> 0.0006425541501 | M44: =Calculations!AJ35 -> 0.08568094025 | N44: =Calculations!AI34 ->  | O44: =Calculations!X35 -> 0 | P44: =Calculations!Z35 -> 0 | Q44: =Calculations!AT35 -> 0 | R44: =Calculations!AR35 -> 0 | S44: =Calculations!AP35 -> 0 | T44: =Calculations!AS34 -> 0 | U44: Residential | V44: Yes
A45: =Calculations!B36 -> M14 | B45: Beesonend Lane, Harpenden, AL5 2AB | C45: =Calculations!C36 -> 2.029751931 | D45: =Calculations!G36 -> 0 | E45: =Calculations!K36 -> 0 | F45: =Calculations!J36 -> 0 | G45: =Calculations!O36 -> 0 | H45: =Calculations!P36 -> 1 | I45: =Calculations!V36 -> 0 | J45: =Calculations!AD36 -> 0 | K45: =Calculations!AG36 -> 0.00729153143 | L45: =Calculations!AG36 -> 0.00729153143 | M45: =Calculations!AJ36 -> 0.01365111331 | N45: =Calculations!AI35 ->  | O45: =Calculations!X36 -> 0 | P45: =Calculations!Z36 -> 0 | Q45: =Calculations!AT36 -> 0 | R45: =Calculations!AR36 -> 0 | S45: =Calculations!AP36 -> 0 | T45: =Calculations!AS35 -> 0 | U45: Residential | V45: Yes
A46: =Calculations!B37 -> M9 | B46: Amwell Top Field, Wheathampstead, AL4 8DZ | C46: =Calculations!C37 -> 4.266647762 | D46: =Calculations!G37 -> 0 | E46: =Calculations!K37 -> 0 | F46: =Calculations!J37 -> 0 | G46: =Calculations!O37 -> 0 | H46: =Calculations!P37 -> 1 | I46: =Calculations!V37 -> 0 | J46: =Calculations!AD37 -> 0 | K46: =Calculations!AG37 -> 1.179848978e-07 | L46: =Calculations!AG37 -> 1.179848978e-07 | M46: =Calculations!AJ37 -> 0.00875817515 | N46: =Calculations!AI36 ->  | O46: =Calculations!X37 -> 0 | P46: =Calculations!Z37 -> 0 | Q46: =Calculations!AT37 -> 0 | R46: =Calculations!AR37 -> 0 | S46: =Calculations!AP37 -> 0 | T46: =Calculations!AS36 -> 0 | U46: Residential | V46: Yes
A47: BRAD7 | B47: North of The Slype, Gustard Wood, AL4 8SA | C47: 12.52095817 | D47: =Calculations!G37 -> 0 | E47: =Calculations!K37 -> 0 | F47: =Calculations!J37 -> 0 | G47: =Calculations!O37 -> 0 | H47: =Calculations!P37 -> 1 | I47: =Calculations!V37 -> 0 | J47: =Calculations!AD37 -> 0 | K47: =Calculations!AG37 -> 1.179848978e-07 | L47: =Calculations!AG38 -> 0.03401044183 | M47: =Calculations!AJ37 -> 0.00875817515 | N47: =Calculations!AI37 ->  | O47: =Calculations!X37 -> 0 | P47: =Calculations!Z37 -> 0 | Q47: =Calculations!AT38 -> 0 | R47: =Calculations!AR37 -> 0 | S47: =Calculations!AP37 -> 0 | T47: =Calculations!AS37 -> 0 | U47: Residential | V47: Yes
A48: =Calculations!B39 -> H1 | B48: North Hemel Hempstead, AL3 7AU | C48: =Calculations!C39 -> 88.83499963 | D48: =Calculations!G39 -> 0 | E48: =Calculations!K39 -> 0 | F48: =Calculations!J39 -> 0 | G48: =Calculations!O39 -> 0 | H48: =Calculations!P39 -> 1 | I48: =Calculations!V39 -> 0 | J48: =Calculations!AD39 -> 0.03089510009 | K48: =Calculations!AG39 -> 0.044344254 | L48: =Calculations!AG39 -> 0.044344254 | M48: =Calculations!AJ39 -> 0.1194328993 | N48: =Calculations!AI38 ->  | O48: =Calculations!X39 -> 0 | P48: =Calculations!Z39 -> 0.02124249562 | Q48: =Calculations!AT39 -> 0 | R48: =Calculations!AR39 -> 0.0006095091397 | S48: =Calculations!AP39 -> 0.07146364769 | T48: =Calculations!AS38 -> 0 | U48: Residential | V48: No
A49: =Calculations!B40 -> H2 | B49: East Hemel Hempstead (North), HP2 7HT | C49: =Calculations!C40 -> 169.3763496 | D49: =Calculations!G40 -> 0 | E49: =Calculations!K40 -> 0 | F49: =Calculations!J40 -> 0 | G49: =Calculations!O40 -> 0 | H49: =Calculations!P40 -> 1 | I49: =Calculations!V40 -> 0 | J49: =Calculations!AD40 -> 0.03337651144 | K49: =Calculations!AG40 -> 0.04755617755 | L49: =Calculations!AG40 -> 0.04755617755 | M49: =Calculations!AJ40 -> 0.1028636378 | N49: =Calculations!AI39 ->  | O49: =Calculations!X40 -> 0 | P49: =Calculations!Z40 -> 0.0729467772 | Q49: =Calculations!AT40 -> 0 | R49: =Calculations!AR40 -> 0 | S49: =Calculations!AP40 -> 0 | T49: =Calculations!AS39 -> 0.07207315683 | U49: Residential | V49: No
A50: =Calculations!B41 -> B2 | B50: North East Harpenden, AL5 5EG | C50: =Calculations!C41 -> 43.23713707 | D50: =Calculations!G41 -> 0 | E50: =Calculations!K41 -> 0 | F50: =Calculations!J41 -> 0 | G50: =Calculations!O41 -> 0.0009251306333 | H50: =Calculations!P41 -> 0.9990748694 | I50: =Calculations!V41 -> 0 | J50: =Calculations!AD41 -> 0.003962905826 | K50: =Calculations!AG41 -> 0.00991662509 | L50: =Calculations!AG41 -> 0.00991662509 | M50: =Calculations!AJ41 -> 0.06828922102 | N50: =Calculations!AI40 ->  | O50: =Calculations!X41 -> 0 | P50: =Calculations!Z41 -> 0.005859126017 | Q50: =Calculations!AT41 -> 0 | R50: =Calculations!AR41 -> 0 | S50: =Calculations!AP41 -> 0 | T50: =Calculations!AS40 -> 0 | U50: Residential | V50: No
A51: =Calculations!B42 -> P1 | B51: Smallford Works, Smallford Lane, AL4 0SA | C51: =Calculations!C42 -> 3.335042676 | D51: =Calculations!G42 -> 0 | E51: =Calculations!K42 -> 0 | F51: =Calculations!J42 -> 0 | G51: =Calculations!O42 -> 0 | H51: =Calculations!P42 -> 1 | I51: =Calculations!V42 -> 0 | J51: =Calculations!AD42 -> 0.0004070576997 | K51: =Calculations!AG42 -> 0.003484359611 | L51: =Calculations!AG42 -> 0.003484359611 | M51: =Calculations!AJ42 -> 0.4622309589 | N51: =Calculations!AI41 ->  | O51: =Calculations!X42 -> 0 | P51: =Calculations!Z42 -> 0 | Q51: =Calculations!AT42 -> 0 | R51: =Calculations!AR42 -> 0.5522448551 | S51: =Calculations!AP42 -> 0.0258214387 | T51: =Calculations!AS41 -> 0 | U51: Residential | V51: No
A52: =Calculations!B43 -> P2 | B52: Land at North Orbital Road, AL2 1DL | C52: =Calculations!C43 -> 1.882035039 | D52: =Calculations!G43 -> 0 | E52: =Calculations!K43 -> 0 | F52: =Calculations!J43 -> 0 | G52: =Calculations!O43 -> 0 | H52: =Calculations!P43 -> 1 | I52: =Calculations!V43 -> 0 | J52: =Calculations!AD43 -> 0.01573965882 | K52: =Calculations!AG43 -> 0.03019108679 | L52: =Calculations!AG43 -> 0.03019108679 | M52: =Calculations!AJ43 -> 0.06678436417 | N52: =Calculations!AI42 ->  | O52: =Calculations!X43 -> 0 | P52: =Calculations!Z43 -> 0 | Q52: =Calculations!AT43 -> 0 | R52: =Calculations!AR43 -> 0 | S52: =Calculations!AP43 -> 0.9399262846 | T52: =Calculations!AS42 -> 0.5780662938 | U52: Residential | V52: No
A53: =Calculations!B44 -> M11 | B53: Rothamsted Research, Harpenden Campus, AL5 2JQ | C53: =Calculations!C44 -> 1.617972855 | D53: =Calculations!G44 -> 0 | E53: =Calculations!K44 -> 0 | F53: =Calculations!J44 -> 0 | G53: =Calculations!O44 -> 0 | H53: =Calculations!P44 -> 1 | I53: =Calculations!V44 -> 0 | J53: =Calculations!AD44 -> 0 | K53: =Calculations!AG44 -> 0 | L53: =Calculations!AG44 -> 0 | M53: =Calculations!AJ44 -> 0 | N53: =Calculations!AI43 ->  | O53: =Calculations!X44 -> 0 | P53: =Calculations!Z44 -> 0 | Q53: =Calculations!AT44 -> 0 | R53: =Calculations!AR44 -> 0 | S53: =Calculations!AP44 -> 0 | T53: =Calculations!AS43 -> 0.9399262846 | U53: Residential | V53: Yes
A54: =Calculations!B45 -> B1 | B54: North St Albans, AL3 6DD | C54: =Calculations!C45 -> 46.74827858 | D54: =Calculations!G45 -> 0 | E54: =Calculations!K45 -> 0 | F54: =Calculations!J45 -> 0 | G54: =Calculations!O45 -> 0 | H54: =Calculations!P45 -> 1 | I54: =Calculations!V45 -> 0 | J54: =Calculations!AD45 -> 0.02286859887 | K54: =Calculations!AG45 -> 0.04319257033 | L54: =Calculations!AG45 -> 0.04319257033 | M54: =Calculations!AJ45 -> 0.145900808 | N54: =Calculations!AI44 ->  | O54: =Calculations!X45 -> 0 | P54: =Calculations!Z45 -> 0 | Q54: =Calculations!AT45 -> 0 | R54: =Calculations!AR45 -> 0 | S54: =Calculations!AP45 -> 0 | T54: =Calculations!AS44 -> 0 | U54: Residential | V54: No
A55: =Calculations!B46 -> B4 | B55: East St Albans, AL4 9JJ | C55: =Calculations!C46 -> 21.68629346 | D55: =Calculations!G46 -> 0 | E55: =Calculations!K46 -> 0 | F55: =Calculations!J46 -> 0 | G55: =Calculations!O46 -> 0 | H55: =Calculations!P46 -> 1 | I55: =Calculations!V46 -> 0 | J55: =Calculations!AD46 -> 0.002520576912 | K55: =Calculations!AG46 -> 0.02068386482 | L55: =Calculations!AG46 -> 0.02068386482 | M55: =Calculations!AJ46 -> 0.08677244952 | N55: =Calculations!AI45 ->  | O55: =Calculations!X46 -> 0 | P55: =Calculations!Z46 -> 0 | Q55: =Calculations!AT46 -> 0 | R55: =Calculations!AR46 -> 0 | S55: =Calculations!AP46 -> 0.3115470544 | T55: =Calculations!AS45 -> 0 | U55: Residential | V55: No
A56: =Calculations!B47 -> M23 | B56: Ashdale Lye Lane, Bricket Wood, AL2 3LQ | C56: =Calculations!C47 -> 2.256492389 | D56: =Calculations!G47 -> 0 | E56: =Calculations!K47 -> 0 | F56: =Calculations!J47 -> 0 | G56: =Calculations!O47 -> 0 | H56: =Calculations!P47 -> 1 | I56: =Calculations!V47 -> 0 | J56: =Calculations!AD47 -> 0 | K56: =Calculations!AG47 -> 0 | L56: =Calculations!AG47 -> 0 | M56: =Calculations!AJ47 -> 0.006538239382 | N56: =Calculations!AI46 ->  | O56: =Calculations!X47 -> 0 | P56: =Calculations!Z47 -> 0 | Q56: =Calculations!AT47 -> 0 | R56: =Calculations!AR47 -> 0 | S56: =Calculations!AP47 -> 0 | T56: =Calculations!AS46 -> 0.3115470544 | U56: Residential | V56: Yes
A57: BUR12 | B57: Land South West of London Colney Allotments, AL2 1RG | C57: 3.234663852 | D57: =Calculations!G47 -> 0 | E57: =Calculations!K47 -> 0 | F57: =Calculations!J47 -> 0 | G57: =Calculations!O47 -> 0 | H57: =Calculations!P47 -> 1 | I57: =Calculations!V47 -> 0 | J57: =Calculations!AD47 -> 0 | K57: =Calculations!AG47 -> 0 | L57: =Calculations!AG48 -> 0 | M57: =Calculations!AJ47 -> 0.006538239382 | N57: =Calculations!AI47 ->  | O57: =Calculations!X47 -> 0 | P57: =Calculations!Z47 -> 0 | Q57: =Calculations!AT48 -> 0 | R57: =Calculations!AR47 -> 0 | S57: =Calculations!AP47 -> 0 | T57: =Calculations!AS47 -> 0 | U57: Employment (any B-class use) | V57: Yes
A58: BUR13 | B58: Former Bricket Wood United Reformed Church, AL2 3QR | C58: 11.17795687 | D58: =Calculations!G48 -> 0 | E58: =Calculations!K48 -> 0 | F58: =Calculations!J48 -> 0 | G58: =Calculations!O48 -> 0 | H58: =Calculations!P48 -> 1 | I58: =Calculations!V48 -> 0 | J58: =Calculations!AD48 -> 0 | K58: =Calculations!AG48 -> 0 | L58: =Calculations!AG49 -> 0 | M58: =Calculations!AJ48 -> 0 | N58: =Calculations!AI48 ->  | O58: =Calculations!X48 -> 0 | P58: =Calculations!Z48 -> 0 | Q58: =Calculations!AT49 -> 0 | R58: =Calculations!AR48 -> 0 | S58: =Calculations!AP48 -> 0 | T58: =Calculations!AS48 -> 0 | U58: Residential | V58: Yes
A59: BUR14 | B59: Greenwood United Reformed Church AL2 3HG | C59: 37.00676234 | D59: =Calculations!G49 -> 0 | E59: =Calculations!K49 -> 0 | F59: =Calculations!J49 -> 0 | G59: =Calculations!O49 -> 0 | H59: =Calculations!P49 -> 1 | I59: =Calculations!V49 -> 0 | J59: =Calculations!AD49 -> 0 | K59: =Calculations!AG49 -> 0 | L59: =Calculations!AG50 -> 0 | M59: =Calculations!AJ49 -> 0 | N59: =Calculations!AI49 ->  | O59: =Calculations!X49 -> 0 | P59: =Calculations!Z49 -> 0 | Q59: =Calculations!AT50 -> 0 | R59: =Calculations!AR49 -> 0 | S59: =Calculations!AP49 -> 0 | T59: =Calculations!AS49 -> 0 | U59: Employment, renewable energy | V59: Yes
A60: =Calculations!B51 -> U1 | B60: East of Morris Recreation Ground, adjacent to A1081 and White Horse Lane | C60: =Calculations!C51 -> 1.320327449 | D60: =Calculations!G51 -> 0 | E60: =Calculations!K51 -> 0 | F60: =Calculations!J51 -> 0 | G60: =Calculations!O51 -> 0 | H60: =Calculations!P51 -> 1 | I60: =Calculations!V51 -> 0 | J60: =Calculations!AD51 -> 0.009573257079 | K60: =Calculations!AG51 -> 0.01503741236 | L60: =Calculations!AG51 -> 0.01503741236 | M60: =Calculations!AJ51 -> 0.01856054876 | N60: =Calculations!AI50 ->  | O60: =Calculations!X51 -> 0 | P60: =Calculations!Z51 -> 0 | Q60: =Calculations!AT51 -> 0 | R60: =Calculations!AR51 -> 0 | S60: =Calculations!AP51 -> 0 | T60: =Calculations!AS50 -> 0 | U60: Residential | V60: Yes
A61: =Calculations!B52 -> UC48 | B61: Car Park adj. to 42-46 Adelaide Street, St Albans, AL3 5BH | C61: =Calculations!C52 -> 0.0516856168 | D61: =Calculations!G52 -> 0 | E61: =Calculations!K52 -> 0 | F61: =Calculations!J52 -> 0 | G61: =Calculations!O52 -> 0 | H61: =Calculations!P52 -> 1 | I61: =Calculations!V52 -> 0 | J61: =Calculations!AD52 -> 0 | K61: =Calculations!AG52 -> 0 | L61: =Calculations!AG52 -> 0 | M61: =Calculations!AJ52 -> 0 | N61: =Calculations!AI51 ->  | O61: =Calculations!X52 -> 0 | P61: =Calculations!Z52 -> 0 | Q61: =Calculations!AT52 -> 0 | R61: =Calculations!AR52 -> 0 | S61: =Calculations!AP52 -> 0 | T61: =Calculations!AS51 -> 0 | U61: Residential | V61: Yes
A62: BUR3 | B62: 50 Victoria Street St Albans, AL1 3HZ | C62: 1.605125629 | D62: =Calculations!G52 -> 0 | E62: =Calculations!K52 -> 0 | F62: =Calculations!J52 -> 0 | G62: =Calculations!O52 -> 0 | H62: =Calculations!P52 -> 1 | I62: =Calculations!V52 -> 0 | J62: =Calculations!AD52 -> 0 | K62: =Calculations!AG52 -> 0 | L62: =Calculations!AG53 -> 0 | M62: =Calculations!AJ52 -> 0 | N62: =Calculations!AI52 ->  | O62: =Calculations!X52 -> 0 | P62: =Calculations!Z52 -> 0 | Q62: =Calculations!AT53 -> 0 | R62: =Calculations!AR52 -> 0 | S62: =Calculations!AP52 -> 0 | T62: =Calculations!AS52 -> 0 | U62: Residential | V62: Yes
A63: =Calculations!B54 -> UC19 | B63: 54 Lemsford Road St Albans, AL1 3PR | C63: =Calculations!C54 -> 0.3531747454 | D63: =Calculations!G54 -> 0 | E63: =Calculations!K54 -> 0 | F63: =Calculations!J54 -> 0 | G63: =Calculations!O54 -> 0 | H63: =Calculations!P54 -> 1 | I63: =Calculations!V54 -> 0 | J63: =Calculations!AD54 -> 0 | K63: =Calculations!AG54 -> 0.01370752485 | L63: =Calculations!AG54 -> 0.01370752485 | M63: =Calculations!AJ54 -> 0.08222766514 | N63: =Calculations!AI53 ->  | O63: =Calculations!X54 -> 0 | P63: =Calculations!Z54 -> 0 | Q63: =Calculations!AT54 -> 0 | R63: =Calculations!AR54 -> 0 | S63: =Calculations!AP54 -> 0 | T63: =Calculations!AS53 -> 0 | U63: Residential | V63: Yes
A64: BUR5 | B64: 104 High Street London Colney, AL2 1QL | C64: 28.15851564 | D64: =Calculations!G54 -> 0 | E64: =Calculations!K54 -> 0 | F64: =Calculations!J54 -> 0 | G64: =Calculations!O54 -> 0 | H64: =Calculations!P54 -> 1 | I64: =Calculations!V54 -> 0 | J64: =Calculations!AD54 -> 0 | K64: =Calculations!AG54 -> 0.01370752485 | L64: =Calculations!AG55 -> 0 | M64: =Calculations!AJ54 -> 0.08222766514 | N64: =Calculations!AI54 ->  | O64: =Calculations!X54 -> 0 | P64: =Calculations!Z54 -> 0 | Q64: =Calculations!AT55 -> 0 | R64: =Calculations!AR54 -> 0 | S64: =Calculations!AP54 -> 0 | T64: =Calculations!AS54 -> 0 | U64: Residential and specialist residential. Uses that the site promoter would also consider appropriate include employment, retail, tourism, leisure/recreation, community facility, and renewable energy | V64: Yes
A65: BUR6 | B65: 18- 20 Catherine Street St Albans, AL3 5BY | C65: 33.86064882 | D65: =Calculations!G55 -> 0 | E65: =Calculations!K55 -> 0 | F65: =Calculations!J55 -> 0 | G65: =Calculations!O55 -> 0 | H65: =Calculations!P55 -> 1 | I65: =Calculations!V55 -> 0 | J65: =Calculations!AD55 -> 0 | K65: =Calculations!AG55 -> 0 | L65: =Calculations!AG56 -> 0 | M65: =Calculations!AJ55 -> 0 | N65: =Calculations!AI55 ->  | O65: =Calculations!X55 -> 0 | P65: =Calculations!Z55 -> 0 | Q65: =Calculations!AT56 -> 0 | R65: =Calculations!AR55 -> 0 | S65: =Calculations!AP55 -> 0 | T65: =Calculations!AS55 -> 0 | U65: Residential, retail, leisure/recreation, community facility (a new sailing centre to replace the existing. Potential location for Andrew Simpson Sailing Foundation). Other uses promoter would consider are specialist residential and tourism | V65: Yes
A66: =Calculations!B57 -> UC6 | B66: 13-19 Sutton Road & 5-11a Pickford Road St Albans, AL1 5JH | C66: =Calculations!C57 -> 0.3244836847 | D66: =Calculations!G57 -> 0 | E66: =Calculations!K57 -> 0 | F66: =Calculations!J57 -> 0 | G66: =Calculations!O57 -> 0 | H66: =Calculations!P57 -> 1 | I66: =Calculations!V57 -> 0 | J66: =Calculations!AD57 -> 0.004120787463 | K66: =Calculations!AG57 -> 0.04323916875 | L66: =Calculations!AG57 -> 0.04323916875 | M66: =Calculations!AJ57 -> 0.1859905741 | N66: =Calculations!AI56 ->  | O66: =Calculations!X57 -> 0 | P66: =Calculations!Z57 -> 0 | Q66: =Calculations!AT57 -> 0 | R66: =Calculations!AR57 -> 0 | S66: =Calculations!AP57 -> 0 | T66: =Calculations!AS56 -> 0 | U66: Residential | V66: No
A67: =Calculations!B58 -> UC46 | B67: Garage Blocks adj. to 76 Oakley Road and 151 Grove Road, Harpenden, AL5 1HJ | C67: =Calculations!C58 -> 0.1172504074 | D67: =Calculations!G58 -> 0 | E67: =Calculations!K58 -> 0 | F67: =Calculations!J58 -> 0 | G67: =Calculations!O58 -> 0 | H67: =Calculations!P58 -> 1 | I67: =Calculations!V58 -> 0 | J67: =Calculations!AD58 -> 0.04409265191 | K67: =Calculations!AG58 -> 0.1113325871 | L67: =Calculations!AG58 -> 0.1113325871 | M67: =Calculations!AJ58 -> 0.4131135113 | N67: =Calculations!AI57 ->  | O67: =Calculations!X58 -> 0 | P67: =Calculations!Z58 -> 0 | Q67: =Calculations!AT58 -> 0 | R67: =Calculations!AR58 -> 0 | S67: =Calculations!AP58 -> 0 | T67: =Calculations!AS57 -> 0 | U67: Residential | V67: No
A68: =Calculations!B59 -> UC47 | B68: Crabtree Fields / Land at Waldegrave Park, Harpenden, AL5 5SA | C68: =Calculations!C59 -> 0.8766903797 | D68: =Calculations!G59 -> 0 | E68: =Calculations!K59 -> 0 | F68: =Calculations!J59 -> 0 | G68: =Calculations!O59 -> 0 | H68: =Calculations!P59 -> 1 | I68: =Calculations!V59 -> 0 | J68: =Calculations!AD59 -> 0.004657989975 | K68: =Calculations!AG59 -> 0.03720380063 | L68: =Calculations!AG59 -> 0.03720380063 | M68: =Calculations!AJ59 -> 0.1069761107 | N68: =Calculations!AI58 ->  | O68: =Calculations!X59 -> 0 | P68: =Calculations!Z59 -> 0 | Q68: =Calculations!AT59 -> 0 | R68: =Calculations!AR59 -> 0 | S68: =Calculations!AP59 -> 0 | T68: =Calculations!AS58 -> 0 | U68: Residential | V68: No
A69: =Calculations!B60 -> UC40 | B69: Land Rear of New House Park Shops, St Albans, AL1 1UJ | C69: =Calculations!C60 -> 0.1180911462 | D69: =Calculations!G60 -> 0 | E69: =Calculations!K60 -> 0 | F69: =Calculations!J60 -> 0 | G69: =Calculations!O60 -> 0 | H69: =Calculations!P60 -> 1 | I69: =Calculations!V60 -> 0 | J69: =Calculations!AD60 -> 0 | K69: =Calculations!AG60 -> 0.006044442983 | L69: =Calculations!AG60 -> 0.006044442983 | M69: =Calculations!AJ60 -> 0.2663086557 | N69: =Calculations!AI59 ->  | O69: =Calculations!X60 -> 0 | P69: =Calculations!Z60 -> 0 | Q69: =Calculations!AT60 -> 0 | R69: =Calculations!AR60 -> 0 | S69: =Calculations!AP60 -> 0 | T69: =Calculations!AS59 -> 0 | U69: Residential | V69: No
A70: =Calculations!B61 -> UC4 | B70: Car Park to rear of 32-34 Upper Marlborough Road, St Albans, AL1 3 UU | C70: =Calculations!C61 -> 0.2218647447 | D70: =Calculations!G61 -> 0 | E70: =Calculations!K61 -> 0 | F70: =Calculations!J61 -> 0 | G70: =Calculations!O61 -> 0 | H70: =Calculations!P61 -> 1 | I70: =Calculations!V61 -> 0 | J70: =Calculations!AD61 -> 0 | K70: =Calculations!AG61 -> 0 | L70: =Calculations!AG61 -> 0 | M70: =Calculations!AJ61 -> 0 | N70: =Calculations!AI60 ->  | O70: =Calculations!X61 -> 0 | P70: =Calculations!Z61 -> 0 | Q70: =Calculations!AT61 -> 0 | R70: =Calculations!AR61 -> 0 | S70: =Calculations!AP61 -> 0 | T70: =Calculations!AS60 -> 0 | U70: Residential | V70: Yes
A71: =Calculations!B62 -> UC25 | B71: 318 Watford Road, Chiswell Green, AL2 3DP | C71: =Calculations!C62 -> 0.192994488 | D71: =Calculations!G62 -> 0 | E71: =Calculations!K62 -> 0 | F71: =Calculations!J62 -> 0 | G71: =Calculations!O62 -> 0 | H71: =Calculations!P62 -> 1 | I71: =Calculations!V62 -> 0 | J71: =Calculations!AD62 -> 0 | K71: =Calculations!AG62 -> 0 | L71: =Calculations!AG62 -> 0 | M71: =Calculations!AJ62 -> 0 | N71: =Calculations!AI61 ->  | O71: =Calculations!X62 -> 0 | P71: =Calculations!Z62 -> 0 | Q71: =Calculations!AT62 -> 0 | R71: =Calculations!AR62 -> 0 | S71: =Calculations!AP62 -> 0 | T71: =Calculations!AS61 -> 0 | U71: Residential | V71: Yes
A72: =Calculations!B63 -> UC10 | B72: Garage Block rear of 109-179 Hughenden Road, St Albans, AL4 9QW | C72: =Calculations!C63 -> 0.2707832745 | D72: =Calculations!G63 -> 0 | E72: =Calculations!K63 -> 0 | F72: =Calculations!J63 -> 0 | G72: =Calculations!O63 -> 0 | H72: =Calculations!P63 -> 1 | I72: =Calculations!V63 -> 0 | J72: =Calculations!AD63 -> 0 | K72: =Calculations!AG63 -> 0 | L72: =Calculations!AG63 -> 0 | M72: =Calculations!AJ63 -> 0 | N72: =Calculations!AI62 ->  | O72: =Calculations!X63 -> 0 | P72: =Calculations!Z63 -> 0 | Q72: =Calculations!AT63 -> 0 | R72: =Calculations!AR63 -> 0 | S72: =Calculations!AP63 -> 1 | T72: =Calculations!AS62 -> 0 | U72: Residential | V72: No
A73: =Calculations!B64 -> UC12 | B73: Garage Block Between Hughenden Road and The Ridgeway, St Albans, AL4 9RH | C73: =Calculations!C64 -> 0.2218806313 | D73: =Calculations!G64 -> 0 | E73: =Calculations!K64 -> 0 | F73: =Calculations!J64 -> 0 | G73: =Calculations!O64 -> 0 | H73: =Calculations!P64 -> 1 | I73: =Calculations!V64 -> 0 | J73: =Calculations!AD64 -> 0 | K73: =Calculations!AG64 -> 0 | L73: =Calculations!AG64 -> 0 | M73: =Calculations!AJ64 -> 0.0005281966223 | N73: =Calculations!AI63 ->  | O73: =Calculations!X64 -> 0 | P73: =Calculations!Z64 -> 0 | Q73: =Calculations!AT64 -> 0 | R73: =Calculations!AR64 -> 0 | S73: =Calculations!AP64 -> 1.000000113 | T73: =Calculations!AS63 -> 1 | U73: Residential | V73: No
A74: =Calculations!B65 -> UC14 | B74: Car Park to rear of 3 Church Green (Waitrose), Harpenden, AL5 2TJ | C74: =Calculations!C65 -> 0.3366995703 | D74: =Calculations!G65 -> 0 | E74: =Calculations!K65 -> 0 | F74: =Calculations!J65 -> 0 | G74: =Calculations!O65 -> 0 | H74: =Calculations!P65 -> 1 | I74: =Calculations!V65 -> 0 | J74: =Calculations!AD65 -> 0.02590692347 | K74: =Calculations!AG65 -> 0.03561945413 | L74: =Calculations!AG65 -> 0.03561945413 | M74: =Calculations!AJ65 -> 0.09543192785 | N74: =Calculations!AI64 ->  | O74: =Calculations!X65 -> 0 | P74: =Calculations!Z65 -> 0 | Q74: =Calculations!AT65 -> 0 | R74: =Calculations!AR65 -> 0 | S74: =Calculations!AP65 -> 0 | T74: =Calculations!AS64 -> 1.000000113 | U74: Residential | V74: Yes
A75: =Calculations!B66 -> UC7 | B75: 5 Spencer Street, St Albans, AL3 5EH | C75: =Calculations!C66 -> 0.1859077789 | D75: =Calculations!G66 -> 0 | E75: =Calculations!K66 -> 0 | F75: =Calculations!J66 -> 0 | G75: =Calculations!O66 -> 0 | H75: =Calculations!P66 -> 1 | I75: =Calculations!V66 -> 0 | J75: =Calculations!AD66 -> 0 | K75: =Calculations!AG66 -> 0 | L75: =Calculations!AG66 -> 0 | M75: =Calculations!AJ66 -> 0 | N75: =Calculations!AI65 ->  | O75: =Calculations!X66 -> 0 | P75: =Calculations!Z66 -> 0 | Q75: =Calculations!AT66 -> 0 | R75: =Calculations!AR66 -> 0 | S75: =Calculations!AP66 -> 0 | T75: =Calculations!AS65 -> 0 | U75: Residential | V75: Yes
A76: =Calculations!B67 -> UC51 | B76: Garage Block to south of Abbots Park Abbots Park, St Albans, AL1 1TW | C76: =Calculations!C67 -> 0.0563914435 | D76: =Calculations!G67 -> 0 | E76: =Calculations!K67 -> 0 | F76: =Calculations!J67 -> 0 | G76: =Calculations!O67 -> 0 | H76: =Calculations!P67 -> 1 | I76: =Calculations!V67 -> 0 | J76: =Calculations!AD67 -> 0 | K76: =Calculations!AG67 -> 0 | L76: =Calculations!AG67 -> 0 | M76: =Calculations!AJ67 -> 0.4214830163 | N76: =Calculations!AI66 ->  | O76: =Calculations!X67 -> 0 | P76: =Calculations!Z67 -> 0 | Q76: =Calculations!AT67 -> 0 | R76: =Calculations!AR67 -> 0 | S76: =Calculations!AP67 -> 0 | T76: =Calculations!AS66 -> 0 | U76: Residential | V76: =IF(AND($H76=1,I76=0,O76=0,Q76=0,$M76<0.1,$R76<0.1,$S76<0.25),"Yes","No") -> No
A77: =Calculations!B68 -> UC27 | B77: Berkeley House, Barnet Road, London Colney, AL2 1BG | C77: =Calculations!C68 -> 0.1445292773 | D77: =Calculations!G68 -> 0 | E77: =Calculations!K68 -> 0 | F77: =Calculations!J68 -> 0 | G77: =Calculations!O68 -> 0.2075704007 | H77: =Calculations!P68 -> 0.7924295993 | I77: =Calculations!V68 -> 0 | J77: =Calculations!AD68 -> 0 | K77: =Calculations!AG68 -> 0 | L77: =Calculations!AG68 -> 0 | M77: =Calculations!AJ68 -> 1.324783487e-05 | N77: =Calculations!AI67 ->  | O77: =Calculations!X68 -> 0.1966632701 | P77: =Calculations!Z68 -> 0 | Q77: =Calculations!AT68 -> 0 | R77: =Calculations!AR68 -> 0 | S77: =Calculations!AP68 -> 0 | T77: =Calculations!AS67 -> 0 | U77: Residential | V77: No
A78: =Calculations!B69 -> UC39 | B78: Garage Block to east of 8 Heath Close, Harpenden, AL5 1QN | C78: =Calculations!C69 -> 0.1276284233 | D78: =Calculations!G69 -> 0 | E78: =Calculations!K69 -> 0 | F78: =Calculations!J69 -> 0 | G78: =Calculations!O69 -> 0 | H78: =Calculations!P69 -> 1 | I78: =Calculations!V69 -> 0 | J78: =Calculations!AD69 -> 0.1261729487 | K78: =Calculations!AG69 -> 0.3287240453 | L78: =Calculations!AG69 -> 0.3287240453 | M78: =Calculations!AJ69 -> 0.9520429334 | N78: =Calculations!AI68 ->  | O78: =Calculations!X69 -> 0 | P78: =Calculations!Z69 -> 0 | Q78: =Calculations!AT69 -> 0 | R78: =Calculations!AR69 -> 0 | S78: =Calculations!AP69 -> 0 | T78: =Calculations!AS68 -> 0 | U78: Residential | V78: No
A79: =Calculations!B70 -> UC16 | B79: Garage Block west of Thirlestane, St Albans, AL1 3PE | C79: =Calculations!C70 -> 0.1774691924 | D79: =Calculations!G70 -> 0 | E79: =Calculations!K70 -> 0 | F79: =Calculations!J70 -> 0 | G79: =Calculations!O70 -> 0 | H79: =Calculations!P70 -> 1 | I79: =Calculations!V70 -> 0 | J79: =Calculations!AD70 -> 0 | K79: =Calculations!AG70 -> 0 | L79: =Calculations!AG70 -> 0 | M79: =Calculations!AJ70 -> 0.0815914819 | N79: =Calculations!AI69 ->  | O79: =Calculations!X70 -> 0 | P79: =Calculations!Z70 -> 0 | Q79: =Calculations!AT70 -> 0 | R79: =Calculations!AR70 -> 0 | S79: =Calculations!AP70 -> 0 | T79: =Calculations!AS69 -> 0 | U79: Residential | V79: Yes
A80: =Calculations!B71 -> UC52 | B80: Garage Block off Tallents Crescent, Harpenden, AL5 5BS | C80: =Calculations!C71 -> 0.095154797 | D80: =Calculations!G71 -> 0 | E80: =Calculations!K71 -> 0 | F80: =Calculations!J71 -> 0 | G80: =Calculations!O71 -> 0 | H80: =Calculations!P71 -> 1 | I80: =Calculations!V71 -> 0 | J80: =Calculations!AD71 -> 0 | K80: =Calculations!AG71 -> 0 | L80: =Calculations!AG71 -> 0 | M80: =Calculations!AJ71 -> 0 | N80: =Calculations!AI70 ->  | O80: =Calculations!X71 -> 0 | P80: =Calculations!Z71 -> 0 | Q80: =Calculations!AT71 -> 0 | R80: =Calculations!AR71 -> 0 | S80: =Calculations!AP71 -> 0 | T80: =Calculations!AS70 -> 0 | U80: Residential | V80: Yes
A81: =Calculations!B72 -> UC43 | B81: Garage block to west of 32-46 Riverside Road, St Albans, AL1 1SD | C81: =Calculations!C72 -> 0.0604950091 | D81: =Calculations!G72 -> 0 | E81: =Calculations!K72 -> 0 | F81: =Calculations!J72 -> 0 | G81: =Calculations!O72 -> 0 | H81: =Calculations!P72 -> 1 | I81: =Calculations!V72 -> 0 | J81: =Calculations!AD72 -> 0 | K81: =Calculations!AG72 -> 0.5201870232 | L81: =Calculations!AG72 -> 0.5201870232 | M81: =Calculations!AJ72 -> 0.8869756943 | N81: =Calculations!AI71 ->  | O81: =Calculations!X72 -> 0 | P81: =Calculations!Z72 -> 0 | Q81: =Calculations!AT72 -> 0 | R81: =Calculations!AR72 -> 0 | S81: =Calculations!AP72 -> 0 | T81: =Calculations!AS71 -> 0 | U81: Residential | V81: No
A82: =Calculations!B73 -> UC18 | B82: Garage block to front of 94-142 Riverside Road, Riverside Road, St Albans, AL1 1SE | C82: =Calculations!C73 -> 0.1444709811 | D82: =Calculations!G73 -> 0 | E82: =Calculations!K73 -> 0 | F82: =Calculations!J73 -> 0 | G82: =Calculations!O73 -> 0 | H82: =Calculations!P73 -> 1 | I82: =Calculations!V73 -> 0 | J82: =Calculations!AD73 -> 0 | K82: =Calculations!AG73 -> 0 | L82: =Calculations!AG73 -> 0 | M82: =Calculations!AJ73 -> 0 | N82: =Calculations!AI72 ->  | O82: =Calculations!X73 -> 0 | P82: =Calculations!Z73 -> 0 | Q82: =Calculations!AT73 -> 0 | R82: =Calculations!AR73 -> 0 | S82: =Calculations!AP73 -> 0 | T82: =Calculations!AS72 -> 0 | U82: Residential | V82: Yes
A83: =Calculations!B74 -> UC38 | B83: Garage block to rear of 27-32 St Pauls Place, St Pauls Place, St Albans, AL1 4JW | C83: =Calculations!C74 -> 0.122876225 | D83: =Calculations!G74 -> 0 | E83: =Calculations!K74 -> 0 | F83: =Calculations!J74 -> 0 | G83: =Calculations!O74 -> 0 | H83: =Calculations!P74 -> 1 | I83: =Calculations!V74 -> 0 | J83: =Calculations!AD74 -> 0 | K83: =Calculations!AG74 -> 0 | L83: =Calculations!AG74 -> 0 | M83: =Calculations!AJ74 -> 0.003461002322 | N83: =Calculations!AI73 ->  | O83: =Calculations!X74 -> 0 | P83: =Calculations!Z74 -> 0 | Q83: =Calculations!AT74 -> 0 | R83: =Calculations!AR74 -> 0 | S83: =Calculations!AP74 -> 0 | T83: =Calculations!AS73 -> 0 | U83: Residential | V83: Yes
A84: =Calculations!B75 -> UC44 | B84: Garage Block off Millford Hill, Harpenden, AL5 5BN | C84: =Calculations!C75 -> 0.0741702024 | D84: =Calculations!G75 -> 0 | E84: =Calculations!K75 -> 0 | F84: =Calculations!J75 -> 0 | G84: =Calculations!O75 -> 0 | H84: =Calculations!P75 -> 1 | I84: =Calculations!V75 -> 0 | J84: =Calculations!AD75 -> 0 | K84: =Calculations!AG75 -> 0 | L84: =Calculations!AG75 -> 0 | M84: =Calculations!AJ75 -> 0 | N84: =Calculations!AI74 ->  | O84: =Calculations!X75 -> 0 | P84: =Calculations!Z75 -> 0 | Q84: =Calculations!AT75 -> 0 | R84: =Calculations!AR75 -> 0 | S84: =Calculations!AP75 -> 0 | T84: =Calculations!AS74 -> 0 | U84: Residential | V84: Yes
A85: =Calculations!B76 -> UC23 | B85: Garage Site adj. Verulam House, Verulam Road, St Albans, AL3 5EN | C85: =Calculations!C76 -> 0.1288112184 | D85: =Calculations!G76 -> 0 | E85: =Calculations!K76 -> 0 | F85: =Calculations!J76 -> 0 | G85: =Calculations!O76 -> 0 | H85: =Calculations!P76 -> 1 | I85: =Calculations!V76 -> 0 | J85: =Calculations!AD76 -> 0 | K85: =Calculations!AG76 -> 0.05164946099 | L85: =Calculations!AG76 -> 0.05164946099 | M85: =Calculations!AJ76 -> 0.3009887452 | N85: =Calculations!AI75 ->  | O85: =Calculations!X76 -> 0 | P85: =Calculations!Z76 -> 0 | Q85: =Calculations!AT76 -> 0 | R85: =Calculations!AR76 -> 0 | S85: =Calculations!AP76 -> 0 | T85: =Calculations!AS75 -> 0 | U85: Residential | V85: No
A86: =Calculations!B77 -> UC17 | B86: Garage Block off Cotlandswick, London Colney, AL2 1ED | C86: =Calculations!C77 -> 0.1136766407 | D86: =Calculations!G77 -> 0 | E86: =Calculations!K77 -> 0 | F86: =Calculations!J77 -> 0 | G86: =Calculations!O77 -> 0 | H86: =Calculations!P77 -> 1 | I86: =Calculations!V77 -> 0 | J86: =Calculations!AD77 -> 0 | K86: =Calculations!AG77 -> 0.09847181823 | L86: =Calculations!AG77 -> 0.09847181823 | M86: =Calculations!AJ77 -> 0.5750040641 | N86: =Calculations!AI76 ->  | O86: =Calculations!X77 -> 0 | P86: =Calculations!Z77 -> 0 | Q86: =Calculations!AT77 -> 0 | R86: =Calculations!AR77 -> 0 | S86: =Calculations!AP77 -> 0.7682655149 | T86: =Calculations!AS76 -> 0 | U86: Residential | V86: No
A87: =Calculations!B78 -> UC31 | B87: Garages off Creighton Avenue, St Albans, AL1 2LZ | C87: =Calculations!C78 -> 0.1398521539 | D87: =Calculations!G78 -> 0 | E87: =Calculations!K78 -> 0 | F87: =Calculations!J78 -> 0 | G87: =Calculations!O78 -> 0 | H87: =Calculations!P78 -> 1 | I87: =Calculations!V78 -> 0 | J87: =Calculations!AD78 -> 0 | K87: =Calculations!AG78 -> 0.1430081657 | L87: =Calculations!AG78 -> 0.1430081657 | M87: =Calculations!AJ78 -> 0.3677280018 | N87: =Calculations!AI77 ->  | O87: =Calculations!X78 -> 0 | P87: =Calculations!Z78 -> 0 | Q87: =Calculations!AT78 -> 0 | R87: =Calculations!AR78 -> 0 | S87: =Calculations!AP78 -> 0 | T87: =Calculations!AS77 -> 0.7682655149 | U87: Residential | V87: No
A88: =Calculations!B79 -> UC45 | B88: Garages off Watling View (West), St Albans, AL1 2PA | C88: =Calculations!C79 -> 0.1074331982 | D88: =Calculations!G79 -> 0 | E88: =Calculations!K79 -> 0 | F88: =Calculations!J79 -> 0 | G88: =Calculations!O79 -> 0 | H88: =Calculations!P79 -> 1 | I88: =Calculations!V79 -> 0 | J88: =Calculations!AD79 -> 0 | K88: =Calculations!AG79 -> 0 | L88: =Calculations!AG79 -> 0 | M88: =Calculations!AJ79 -> 0.2818778181 | N88: =Calculations!AI78 ->  | O88: =Calculations!X79 -> 0 | P88: =Calculations!Z79 -> 0 | Q88: =Calculations!AT79 -> 0 | R88: =Calculations!AR79 -> 0 | S88: =Calculations!AP79 -> 0 | T88: =Calculations!AS78 -> 0 | U88: Residential | V88: No
A89: =Calculations!B80 -> UC30 | B89: Garages Between Abbotts Avenue West and Abbey Line, St Albans, AL1 2JH | C89: =Calculations!C80 -> 0.1443696475 | D89: =Calculations!G80 -> 0 | E89: =Calculations!K80 -> 0 | F89: =Calculations!J80 -> 0 | G89: =Calculations!O80 -> 0 | H89: =Calculations!P80 -> 1 | I89: =Calculations!V80 -> 0 | J89: =Calculations!AD80 -> 0 | K89: =Calculations!AG80 -> 0 | L89: =Calculations!AG80 -> 0 | M89: =Calculations!AJ80 -> 0.04081975818 | N89: =Calculations!AI79 ->  | O89: =Calculations!X80 -> 0 | P89: =Calculations!Z80 -> 0 | Q89: =Calculations!AT80 -> 0 | R89: =Calculations!AR80 -> 0 | S89: =Calculations!AP80 -> 0 | T89: =Calculations!AS79 -> 0 | U89: Residential | V89: Yes
A90: =Calculations!B81 -> UC42 | B90: Garages off Thirlmere Drive, St Albans, AL1 5QS | C90: =Calculations!C81 -> 0.1376645243 | D90: =Calculations!G81 -> 0 | E90: =Calculations!K81 -> 0 | F90: =Calculations!J81 -> 0 | G90: =Calculations!O81 -> 0 | H90: =Calculations!P81 -> 1 | I90: =Calculations!V81 -> 0 | J90: =Calculations!AD81 -> 0 | K90: =Calculations!AG81 -> 0 | L90: =Calculations!AG81 -> 0 | M90: =Calculations!AJ81 -> 0.006362917422 | N90: =Calculations!AI80 ->  | O90: =Calculations!X81 -> 0 | P90: =Calculations!Z81 -> 0 | Q90: =Calculations!AT81 -> 0 | R90: =Calculations!AR81 -> 0 | S90: =Calculations!AP81 -> 0 | T90: =Calculations!AS80 -> 0 | U90: Residential | V90: Yes
A91: =Calculations!B82 -> UC29 | B91: Garage Block off Noke Shot, Harpenden, AL5 5HS | C91: =Calculations!C82 -> 0.1610634251 | D91: =Calculations!G82 -> 0 | E91: =Calculations!K82 -> 0 | F91: =Calculations!J82 -> 0 | G91: =Calculations!O82 -> 0 | H91: =Calculations!P82 -> 1 | I91: =Calculations!V82 -> 0 | J91: =Calculations!AD82 -> 0 | K91: =Calculations!AG82 -> 0 | L91: =Calculations!AG82 -> 0 | M91: =Calculations!AJ82 -> 0 | N91: =Calculations!AI81 ->  | O91: =Calculations!X82 -> 0 | P91: =Calculations!Z82 -> 0 | Q91: =Calculations!AT82 -> 0 | R91: =Calculations!AR82 -> 0 | S91: =Calculations!AP82 -> 0 | T91: =Calculations!AS81 -> 0 | U91: Residential | V91: Yes
A92: =Calculations!B83 -> UC33 | B92: Land Rear of 53 Snatchup, Redbourn, AL3 7HF | C92: =Calculations!C83 -> 0.1641322395 | D92: =Calculations!G83 -> 0 | E92: =Calculations!K83 -> 0 | F92: =Calculations!J83 -> 0 | G92: =Calculations!O83 -> 0 | H92: =Calculations!P83 -> 1 | I92: =Calculations!V83 -> 0 | J92: =Calculations!AD83 -> 0 | K92: =Calculations!AG83 -> 0 | L92: =Calculations!AG83 -> 0 | M92: =Calculations!AJ83 -> 0.002643652468 | N92: =Calculations!AI82 ->  | O92: =Calculations!X83 -> 0 | P92: =Calculations!Z83 -> 0 | Q92: =Calculations!AT83 -> 0 | R92: =Calculations!AR83 -> 0 | S92: =Calculations!AP83 -> 0 | T92: =Calculations!AS82 -> 0 | U92: Residential | V92: Yes
A93: =Calculations!B84 -> UC26 | B93: Garage Block to Malvern Close, St Albans, AL4 9SZ | C93: =Calculations!C84 -> 0.132368438 | D93: =Calculations!G84 -> 0 | E93: =Calculations!K84 -> 0 | F93: =Calculations!J84 -> 0 | G93: =Calculations!O84 -> 0 | H93: =Calculations!P84 -> 1 | I93: =Calculations!V84 -> 0 | J93: =Calculations!AD84 -> 0 | K93: =Calculations!AG84 -> 0 | L93: =Calculations!AG84 -> 0 | M93: =Calculations!AJ84 -> 0 | N93: =Calculations!AI83 ->  | O93: =Calculations!X84 -> 0 | P93: =Calculations!Z84 -> 0 | Q93: =Calculations!AT84 -> 0 | R93: =Calculations!AR84 -> 0 | S93: =Calculations!AP84 -> 1 | T93: =Calculations!AS83 -> 0 | U93: Residential | V93: No
A94: =Calculations!B85 -> UC21 | B94: Garages off Chapel Place, St Albans, AL1 2JZ | C94: =Calculations!C85 -> 0.2282226003 | D94: =Calculations!G85 -> 0 | E94: =Calculations!K85 -> 0 | F94: =Calculations!J85 -> 0 | G94: =Calculations!O85 -> 0 | H94: =Calculations!P85 -> 1 | I94: =Calculations!V85 -> 0 | J94: =Calculations!AD85 -> 0 | K94: =Calculations!AG85 -> 0 | L94: =Calculations!AG85 -> 0 | M94: =Calculations!AJ85 -> 0.02218134529 | N94: =Calculations!AI84 ->  | O94: =Calculations!X85 -> 0 | P94: =Calculations!Z85 -> 0 | Q94: =Calculations!AT85 -> 0 | R94: =Calculations!AR85 -> 0 | S94: =Calculations!AP85 -> 0 | T94: =Calculations!AS84 -> 1 | U94: Residential | V94: Yes
A95: =Calculations!B86 -> UC41 | B95: Garages at Grindcobbe, St Albans, AL1 2ED | C95: =Calculations!C86 -> 0.1204110515 | D95: =Calculations!G86 -> 0 | E95: =Calculations!K86 -> 0 | F95: =Calculations!J86 -> 0 | G95: =Calculations!O86 -> 0 | H95: =Calculations!P86 -> 1 | I95: =Calculations!V86 -> 0 | J95: =Calculations!AD86 -> 0 | K95: =Calculations!AG86 -> 0.05450226136 | L95: =Calculations!AG86 -> 0.05450226136 | M95: =Calculations!AJ86 -> 0.150278005 | N95: =Calculations!AI85 ->  | O95: =Calculations!X86 -> 0 | P95: =Calculations!Z86 -> 0 | Q95: =Calculations!AT86 -> 0 | R95: =Calculations!AR86 -> 0 | S95: =Calculations!AP86 -> 0 | T95: =Calculations!AS85 -> 0 | U95: Residential | V95: No
A96: =Calculations!B87 -> UC34 | B96: Garages Rear of Hill End Lane (South), St Albans, AL4 0AE | C96: =Calculations!C87 -> 0.1858515264 | D96: =Calculations!G87 -> 0 | E96: =Calculations!K87 -> 0 | F96: =Calculations!J87 -> 0 | G96: =Calculations!O87 -> 0 | H96: =Calculations!P87 -> 1 | I96: =Calculations!V87 -> 0 | J96: =Calculations!AD87 -> 0 | K96: =Calculations!AG87 -> 0 | L96: =Calculations!AG87 -> 0 | M96: =Calculations!AJ87 -> 0.09382265908 | N96: =Calculations!AI86 ->  | O96: =Calculations!X87 -> 0 | P96: =Calculations!Z87 -> 0 | Q96: =Calculations!AT87 -> 0 | R96: =Calculations!AR87 -> 0 | S96: =Calculations!AP87 -> 0 | T96: =Calculations!AS86 -> 0 | U96: Residential | V96: Yes
A97: =Calculations!B88 -> UC24 | B97: Garages Rear of Hill End Lane (North), St Albans, AL4 0AE | C97: =Calculations!C88 -> 0.2076703542 | D97: =Calculations!G88 -> 0 | E97: =Calculations!K88 -> 0 | F97: =Calculations!J88 -> 0 | G97: =Calculations!O88 -> 0 | H97: =Calculations!P88 -> 1 | I97: =Calculations!V88 -> 0 | J97: =Calculations!AD88 -> 0.2898058499 | K97: =Calculations!AG88 -> 0.4099156369 | L97: =Calculations!AG88 -> 0.4099156369 | M97: =Calculations!AJ88 -> 0.6122459173 | N97: =Calculations!AI87 ->  | O97: =Calculations!X88 -> 0 | P97: =Calculations!Z88 -> 0 | Q97: =Calculations!AT88 -> 0 | R97: =Calculations!AR88 -> 0 | S97: =Calculations!AP88 -> 0 | T97: =Calculations!AS87 -> 0 | U97: Residential | V97: No
A98: =Calculations!B89 -> UC31 | B98: Garages rear of Tudor Road, St Albans, AL3 6AY | C98: =Calculations!C89 -> 0.1714576728 | D98: =Calculations!G89 -> 0 | E98: =Calculations!K89 -> 0 | F98: =Calculations!J89 -> 0 | G98: =Calculations!O89 -> 0 | H98: =Calculations!P89 -> 1 | I98: =Calculations!V89 -> 0 | J98: =Calculations!AD89 -> 0 | K98: =Calculations!AG89 -> 0 | L98: =Calculations!AG89 -> 0 | M98: =Calculations!AJ89 -> 0 | N98: =Calculations!AI88 ->  | O98: =Calculations!X89 -> 0 | P98: =Calculations!Z89 -> 0 | Q98: =Calculations!AT89 -> 0 | R98: =Calculations!AR89 -> 0 | S98: =Calculations!AP89 -> 0 | T98: =Calculations!AS88 -> 0 | U98: Residential | V98: Yes
A99: =Calculations!B90 -> UC36 | B99: Garages off Park Street Lane, Park Street, AL2 2ND | C99: =Calculations!C90 -> 0.1286785731 | D99: =Calculations!G90 -> 0 | E99: =Calculations!K90 -> 0 | F99: =Calculations!J90 -> 0 | G99: =Calculations!O90 -> 0 | H99: =Calculations!P90 -> 1 | I99: =Calculations!V90 -> 0 | J99: =Calculations!AD90 -> 0 | K99: =Calculations!AG90 -> 0.1998753824 | L99: =Calculations!AG90 -> 0.1998753824 | M99: =Calculations!AJ90 -> 0.4325911087 | N99: =Calculations!AI89 ->  | O99: =Calculations!X90 -> 0 | P99: =Calculations!Z90 -> 0 | Q99: =Calculations!AT90 -> 0 | R99: =Calculations!AR90 -> 0 | S99: =Calculations!AP90 -> 0 | T99: =Calculations!AS89 -> 0 | U99: Residential | V99: No
A100: =Calculations!B91 -> UC49 | B100: Garage Block rear of 18-30 Furse Avenue, St Albans, AL4 9NE | C100: =Calculations!C91 -> 0.1188436043 | D100: =Calculations!G91 -> 0 | E100: =Calculations!K91 -> 0 | F100: =Calculations!J91 -> 0 | G100: =Calculations!O91 -> 0 | H100: =Calculations!P91 -> 1 | I100: =Calculations!V91 -> 0 | J100: =Calculations!AD91 -> 0 | K100: =Calculations!AG91 -> 0 | L100: =Calculations!AG91 -> 0 | M100: =Calculations!AJ91 -> 0.0009748627255 | N100: =Calculations!AI90 ->  | O100: =Calculations!X91 -> 0 | P100: =Calculations!Z91 -> 0 | Q100: =Calculations!AT91 -> 0 | R100: =Calculations!AR91 -> 0 | S100: =Calculations!AP91 -> 1 | T100: =Calculations!AS90 -> 0 | U100: Residential | V100: No
A101: =Calculations!B92 -> UC37 | B101: Garages off Watling View (East), St Albans, AL1 2NT | C101: =Calculations!C92 -> 0.1378371091 | D101: =Calculations!G92 -> 0 | E101: =Calculations!K92 -> 0 | F101: =Calculations!J92 -> 0 | G101: =Calculations!O92 -> 0 | H101: =Calculations!P92 -> 1 | I101: =Calculations!V92 -> 0 | J101: =Calculations!AD92 -> 0 | K101: =Calculations!AG92 -> 0 | L101: =Calculations!AG92 -> 0 | M101: =Calculations!AJ92 -> 0.1512226013 | N101: =Calculations!AI91 ->  | O101: =Calculations!X92 -> 0 | P101: =Calculations!Z92 -> 0 | Q101: =Calculations!AT92 -> 0 | R101: =Calculations!AR92 -> 0 | S101: =Calculations!AP92 -> 0 | T101: =Calculations!AS91 -> 1 | U101: Residential | V101: No
A102: =Calculations!B93 -> UC22 | B102: Car Park to rear of 77-101 Hatfield Road, Hatfield Road, St Albans, AL1 4JL | C102: =Calculations!C93 -> 0.1010167572 | D102: =Calculations!G93 -> 0 | E102: =Calculations!K93 -> 0 | F102: =Calculations!J93 -> 0 | G102: =Calculations!O93 -> 0 | H102: =Calculations!P93 -> 1 | I102: =Calculations!V93 -> 0 | J102: =Calculations!AD93 -> 0 | K102: =Calculations!AG93 -> 0 | L102: =Calculations!AG93 -> 0 | M102: =Calculations!AJ93 -> 0.0008118563917 | N102: =Calculations!AI92 ->  | O102: =Calculations!X93 -> 0 | P102: =Calculations!Z93 -> 0 | Q102: =Calculations!AT93 -> 0 | R102: =Calculations!AR93 -> 0 | S102: =Calculations!AP93 -> 0 | T102: =Calculations!AS92 -> 0 | U102: Residential | V102: Yes
A103: =Calculations!B94 -> UC15 | B103: Bowers Way East Car Park Bowers Way, Harpenden, AL5 4EQ | C103: =Calculations!C94 -> 0.4139247252 | D103: =Calculations!G94 -> 0 | E103: =Calculations!K94 -> 0 | F103: =Calculations!J94 -> 0 | G103: =Calculations!O94 -> 0 | H103: =Calculations!P94 -> 1 | I103: =Calculations!V94 -> 0 | J103: =Calculations!AD94 -> 0 | K103: =Calculations!AG94 -> 0 | L103: =Calculations!AG94 -> 0 | M103: =Calculations!AJ94 -> 0 | N103: =Calculations!AI93 ->  | O103: =Calculations!X94 -> 0 | P103: =Calculations!Z94 -> 0 | Q103: =Calculations!AT94 -> 0 | R103: =Calculations!AR94 -> 0 | S103: =Calculations!AP94 -> 0 | T103: =Calculations!AS93 -> 0 | U103: Residential | V103: Yes
A104: =Calculations!B95 -> UC2 | B104: Civic Close Car Park Bricket Road, St Albans, AL1 3JX | C104: =Calculations!C95 -> 0.4533859432 | D104: =Calculations!G95 -> 0 | E104: =Calculations!K95 -> 0 | F104: =Calculations!J95 -> 0 | G104: =Calculations!O95 -> 0 | H104: =Calculations!P95 -> 1 | I104: =Calculations!V95 -> 0 | J104: =Calculations!AD95 -> 0 | K104: =Calculations!AG95 -> 0 | L104: =Calculations!AG95 -> 0 | M104: =Calculations!AJ95 -> 0.02120451118 | N104: =Calculations!AI94 ->  | O104: =Calculations!X95 -> 0 | P104: =Calculations!Z95 -> 0 | Q104: =Calculations!AT95 -> 0 | R104: =Calculations!AR95 -> 0 | S104: =Calculations!AP95 -> 0 | T104: =Calculations!AS94 -> 0 | U104: Residential | V104: Yes
A105: =Calculations!B96 -> UC35 | B105: Market Depot, Drovers Way, St Albans, AL3 5FA | C105: =Calculations!C96 -> 0.0727491961 | D105: =Calculations!G96 -> 0 | E105: =Calculations!K96 -> 0 | F105: =Calculations!J96 -> 0 | G105: =Calculations!O96 -> 0 | H105: =Calculations!P96 -> 1 | I105: =Calculations!V96 -> 0 | J105: =Calculations!AD96 -> 0.0002801969107 | K105: =Calculations!AG96 -> 0.0002801969107 | L105: =Calculations!AG96 -> 0.0002801969107 | M105: =Calculations!AJ96 -> 0.004264223065 | N105: =Calculations!AI95 ->  | O105: =Calculations!X96 -> 0 | P105: =Calculations!Z96 -> 0 | Q105: =Calculations!AT96 -> 0 | R105: =Calculations!AR96 -> 0 | S105: =Calculations!AP96 -> 0 | T105: =Calculations!AS95 -> 0 | U105: Residential | V105: Yes
A106: =Calculations!B97 -> UC9 | B106: Keyfield Terrace Car Park, Keyfield Terrace, St Albans, AL1 1PD | C106: =Calculations!C97 -> 0.2479526099 | D106: =Calculations!G97 -> 0 | E106: =Calculations!K97 -> 0 | F106: =Calculations!J97 -> 0 | G106: =Calculations!O97 -> 0 | H106: =Calculations!P97 -> 1 | I106: =Calculations!V97 -> 0 | J106: =Calculations!AD97 -> 0 | K106: =Calculations!AG97 -> 0.0002777046792 | L106: =Calculations!AG97 -> 0.0002777046792 | M106: =Calculations!AJ97 -> 0.01882684357 | N106: =Calculations!AI96 ->  | O106: =Calculations!X97 -> 0 | P106: =Calculations!Z97 -> 0 | Q106: =Calculations!AT97 -> 0 | R106: =Calculations!AR97 -> 0 | S106: =Calculations!AP97 -> 0 | T106: =Calculations!AS96 -> 0 | U106: Residential | V106: Yes
A107: =Calculations!B98 -> UC8 | B107: Public Hall, 6 Southdown Road, Harpenden, AL5 1TE | C107: =Calculations!C98 -> 0.263656473 | D107: =Calculations!G98 -> 0 | E107: =Calculations!K98 -> 0 | F107: =Calculations!J98 -> 0 | G107: =Calculations!O98 -> 0 | H107: =Calculations!P98 -> 1 | I107: =Calculations!V98 -> 0 | J107: =Calculations!AD98 -> 0.07165840984 | K107: =Calculations!AG98 -> 0.1623667631 | L107: =Calculations!AG98 -> 0.1623667631 | M107: =Calculations!AJ98 -> 0.388499603 | N107: =Calculations!AI97 ->  | O107: =Calculations!X98 -> 0 | P107: =Calculations!Z98 -> 0 | Q107: =Calculations!AT98 -> 0 | R107: =Calculations!AR98 -> 0 | S107: =Calculations!AP98 -> 0 | T107: =Calculations!AS97 -> 0 | U107: Residential | V107: No
A108: =Calculations!B99 -> UC13 | B108: Car Park adjacent to Verulam House, Verulam Road, St Albans, AL3 5EN | C108: =Calculations!C99 -> 0.2216743936 | D108: =Calculations!G99 -> 0 | E108: =Calculations!K99 -> 0 | F108: =Calculations!J99 -> 0 | G108: =Calculations!O99 -> 0 | H108: =Calculations!P99 -> 1 | I108: =Calculations!V99 -> 0 | J108: =Calculations!AD99 -> 0 | K108: =Calculations!AG99 -> 0 | L108: =Calculations!AG99 -> 0 | M108: =Calculations!AJ99 -> 0.07246826004 | N108: =Calculations!AI98 ->  | O108: =Calculations!X99 -> 0 | P108: =Calculations!Z99 -> 0 | Q108: =Calculations!AT99 -> 0 | R108: =Calculations!AR99 -> 0 | S108: =Calculations!AP99 -> 0 | T108: =Calculations!AS98 -> 0 | U108: Residential | V108: Yes
A109: =Calculations!B100 -> UC3 | B109: London Road Car Park, London Road, St Albans, AL1 1NG | C109: =Calculations!C100 -> 0.5728307419 | D109: =Calculations!G100 -> 0 | E109: =Calculations!K100 -> 0 | F109: =Calculations!J100 -> 0 | G109: =Calculations!O100 -> 0 | H109: =Calculations!P100 -> 1 | I109: =Calculations!V100 -> 0 | J109: =Calculations!AD100 -> 0 | K109: =Calculations!AG100 -> 0 | L109: =Calculations!AG100 -> 0 | M109: =Calculations!AJ100 -> 0 | N109: =Calculations!AI99 ->  | O109: =Calculations!X100 -> 0 | P109: =Calculations!Z100 -> 0 | Q109: =Calculations!AT100 -> 0 | R109: =Calculations!AR100 -> 0 | S109: =Calculations!AP100 -> 0 | T109: =Calculations!AS99 -> 0 | U109: Residential | V109: Yes
A110: =Calculations!B101 -> UC10 | B110: Southview Car Park, Lower Luton Road, Harpenden, AL5 5AW | C110: =Calculations!C101 -> 0.0971849875 | D110: =Calculations!G101 -> 0 | E110: =Calculations!K101 -> 0 | F110: =Calculations!J101 -> 0 | G110: =Calculations!O101 -> 0 | H110: =Calculations!P101 -> 1 | I110: =Calculations!V101 -> 0 | J110: =Calculations!AD101 -> 0 | K110: =Calculations!AG101 -> 0 | L110: =Calculations!AG101 -> 0 | M110: =Calculations!AJ101 -> 0.005827517342 | N110: =Calculations!AI100 ->  | O110: =Calculations!X101 -> 0 | P110: =Calculations!Z101 -> 0.1454491456 | Q110: =Calculations!AT101 -> 0 | R110: =Calculations!AR101 -> 0 | S110: =Calculations!AP101 -> 0 | T110: =Calculations!AS100 -> 0 | U110: Residential | V110: Yes
A111: =Calculations!B102 -> UC1 | B111: Sainsbury’s Supermarket, Everard Close, St Albans AL1 2QU | C111: =Calculations!C102 -> 2.446510842 | D111: =Calculations!G102 -> 0 | E111: =Calculations!K102 -> 0 | F111: =Calculations!J102 -> 0 | G111: =Calculations!O102 -> 0 | H111: =Calculations!P102 -> 1 | I111: =Calculations!V102 -> 0 | J111: =Calculations!AD102 -> 0.004904944541 | K111: =Calculations!AG102 -> 0.0212724651 | L111: =Calculations!AG102 -> 0.0212724651 | M111: =Calculations!AJ102 -> 0.05977701369 | N111: =Calculations!AI101 ->  | O111: =Calculations!X102 -> 0 | P111: =Calculations!Z102 -> 0 | Q111: =Calculations!AT102 -> 0 | R111: =Calculations!AR102 -> 0 | S111: =Calculations!AP102 -> 0 | T111: =Calculations!AS101 -> 0 | U111: Residential | V111: Yes
A112: =Calculations!B103 -> UC28 | B112: New Greens Residents Association, 2 High Oaks, St Albans, AL3 6DL | C112: =Calculations!C103 -> 0.2049581185 | D112: =Calculations!G103 -> 0 | E112: =Calculations!K103 -> 0 | F112: =Calculations!J103 -> 0 | G112: =Calculations!O103 -> 0 | H112: =Calculations!P103 -> 1 | I112: =Calculations!V103 -> 0 | J112: =Calculations!AD103 -> 0 | K112: =Calculations!AG103 -> 0 | L112: =Calculations!AG103 -> 0 | M112: =Calculations!AJ103 -> 0.05854854683 | N112: =Calculations!AI102 ->  | O112: =Calculations!X103 -> 0 | P112: =Calculations!Z103 -> 0 | Q112: =Calculations!AT103 -> 0 | R112: =Calculations!AR103 -> 0 | S112: =Calculations!AP103 -> 0 | T112: =Calculations!AS102 -> 0 | U112: Residential | V112: Yes

Sheet Calculations
A1: Name | B1: Site Code | C1: Site (ha) | E1: FZ3b (ha) | G1: FZ3b (%) | H1: FZ3a (ha) | J1: FZ3a | K1: FZ3a only (%) | L1: FZ2 (ha) | N1: FZ2 (%) | O1: FZ2 only (%) | P1: FZ1 (%) | Q1: FZ3a+35CC (ha) | T1: FZ3a+70CC (ha) | W1: HFM | Y1: RES Wet Day | AA1: RES Dry Day | AC1: SW30 | AE1: SW100 | AH1: SW1000 | AK1: Groundwater Cat 1 (>5m) | AM1: Groundwater Cat 2 (0.5-5m) | AO1: Groundwater Cat 3 (0.025-0.5m) | AQ1: Groundwater Cat 4 (at/within 0.025m) | AS1: Total groundwater in Cat 3 or 4 | AT1: Ordinary Watercourse | AU1: Within 100m of Canal Embankment | AV1: Shapefile
A2: Toulmin Drive/Highelms, St Albans, AL3 6DX | B2: OS2 | C2: 0.1933819768 | D2: =C2 -> 0.1933819768 | E2: 0 | F2: =ROUND(E2,2) -> 0 | G2: =F2/D2 -> 0 | H2: 0 | I2: =ROUND(H2,2) -> 0 | J2: =I2/D2 -> 0 | K2: =J2-G2 -> 0 | L2: 0 | M2: =ROUND(L2,2) -> 0 | N2: =M2/D2 -> 0 | O2: =N2-J2 -> 0 | P2: =1-N2 -> 1 | Q2: 0 | R2: =ROUND(Q2,2) -> 0 | S2: =R2/D2 -> 0 | T2: 0 | U2: =ROUND(T2,2) -> 0 | V2: =U2/D2 -> 0 | W2: 0 | X2: =W2/D2 -> 0 | Y2: 0 | Z2: =Y2/D2 -> 0 | AA2: 0 | AB2: =AA2/D2 -> 0 | AC2: 0 | AD2: =AC2/D2 -> 0 | AE2: 0 | AG2: =AE2/D2 -> 0 | AH2: 0 | AI2: =AH2/#REF! ->  | AJ2: =AH2/D2 -> 0 | AK2: 0.0002102718 | AL2: =(AK2/D2) -> 0.00108733918 | AM2: 0 | AN2: =(AM2/D2) -> 0 | AO2: 0 | AP2: =(AO2/D2) -> 0 | AQ2: 0 | AR2: =(AQ2/D2) -> 0 | AS2: =(AR2+AP2) -> 0 | AV2: HELAA_sites_with_potential
A3: Land to the North of Bricket Wood, bounded by the M25 and A405 North Orbital | B3: OS1 | C3: 6.523311178 | D3: 6.523311178 | E3: 0 | F3: 0 | G3: 0 | H3: 0 | I3: 0 | J3: 0 | K3: 0 | L3: 0 | M3: 0 | N3: 0 | O3: 0 | P3: 1 | Q3: 0 | R3: 0 | S3: 0 | T3: 0 | U3: 0 | V3: 0 | W3: 0 | X3: 0 | Y3: 0 | Z3: 0 | AA3: 0 | AB3: =AA3/D3 -> 0 | AC3: 0.0879290914 | AD3: 0.01347921155 | AE3: 0.271820077 | AG3: 0.04166903427 | AH3: 0.8339975382 | AI3: =AH3/#REF! ->  | AJ3: 0.1278488049 | AK3: 0 | AL3: 0 | AM3: 0 | AN3: 0 | AO3: 3.555487163 | AP3: 0.5450433171 | AQ3: 0.4584245907 | AR3: 0.07027483102 | AS3: 0.6153181481 | AV3: HELAA_sites_with_potential
A4: West Redbourn, Redbourne, AL3 7HZ | B4: B3 | C4: 27.01710883 | D4: 27.01710883 | E4: 0 | F4: 0 | G4: 0 | H4: 0 | I4: 0 | J4: 0 | K4: 0 | L4: 0 | M4: 0 | N4: 0 | O4: 0 | P4: 1 | Q4: 0 | R4: 0 | S4: 0 | T4: 0 | U4: 0 | V4: 0 | W4: 0 | X4: 0 | Y4: 0.1903587747 | Z4: 0.007045860307 | AA4: 0.1370041744 | AB4: 0.00507101538 | AC4: 0.3360281973 | AD4: 0.01243760757 | AE4: 0.625625678 | AG4: 0.02315664796 | AH4: 1.525767526 | AI4: =AH4/#REF! ->  | AJ4: 0.05647412294 | AK4: 0.8926378044 | AL4: 0.03303972346 | AM4: 25.68401208 | AN4: 0.9506573127 | AO4: 0.1594242972 | AP4: 0.005900864456 | AQ4: 0 | AR4: 0 | AS4: 0.005900864456 | AV4: HELAA_sites_with_potential
A5: East Hemel Hempstead (Central), HP2 7LF | B5: H3 | C5: 143.6795962 | D5: 143.6795962 | E5: 0 | F5: 0 | G5: 0 | H5: 0 | I5: 0 | J5: 0 | K5: 0 | L5: 0 | M5: 0 | N5: 0 | O5: 0 | P5: 1 | Q5: 0 | R5: 0 | S5: 0 | T5: 0 | U5: 0 | V5: 0 | W5: 0 | X5: 0 | Y5: 0 | Z5: 0 | AA5: 0 | AB5: 0 | AC5: 3.886549914 | AD5: 0.02705011718 | AE5: 6.434892368 | AG5: 0.04478640348 | AH5: 15.28104797 | AI5: =AH5/#REF! ->  | AJ5: 0.1063550314 | AK5: 88.79638101 | AL5: 0.618016638 | AM5: 11.27 | AN5: 0.07843841642 | AO5: 0 | AP5: 0 | AQ5: 0 | AR5: 0 | AS5: 0 | AV5: HELAA_sites_with_potential
A6: East Hemel Hempstead (South), HP2 4PA4 | B6: H4 | C6: 57.42012606 | D6: 57.42012606 | E6: 0 | F6: 0 | G6: 0 | H6: 0 | I6: 0 | J6: 0 | K6: 0 | L6: 0 | M6: 0 | N6: 0 | O6: 0 | P6: 1 | Q6: 0 | R6: 0 | S6: 0 | T6: 0 | U6: 0 | V6: 0 | W6: 0 | X6: 0 | Y6: 0 | Z6: 0 | AA6: 0 | AB6: 0 | AC6: 0.63031596 | AD6: 0.01097726535 | AE6: 1.467785453 | AG6: 0.02556221231 | AH6: 5.038784706 | AI6: =AH6/#REF! ->  | AJ6: 0.08775293703 | AK6: 47.6808758 | AL6: 0.830386122 | AM6: 0 | AN6: 0 | AO6: 0 | AP6: 0 | AQ6: 0 | AR6: 0 | AS6: 0 | AV6: HELAA_sites_with_potential
A7: Baulk Close, Harpenden, AL5 4LY | B7: M25 | C7: 0.5556210068 | D7: 0.5556210068 | E7: 0 | F7: 0 | G7: 0 | H7: 0.0147030947 | I7: 0.01 | J7: 0.01799787963 | K7: 0.01799787963 | L7: 0.1155072857 | M7: 0.12 | N7: 0.2159745556 | O7: 0.1979766759 | P7: 0.7840254444 | Q7: 0 | R7: 0 | S7: 0 | T7: 0 | U7: 0 | V7: 0 | W7: 0.1018174408 | X7: 0.1832498044 | Y7: 0.0795747183 | Z7: 0.1432176202 | AA7: 0.0301178569 | AB7: 0.05420575632 | AC7: 0 | AD7: 0 | AE7: 0.0027705508 | AG7: 0.004986403981 | AH7: 0.0485885709 | AI7: =AH7/#REF! ->  | AJ7: 0.08744912504 | AK7: 0 | AL7: 0 | AM7: 0.5242857672 | AN7: 0.943603213 | AO7: 0.0246078342 | AP7: 0.04428888379 | AQ7: 0.0067274621 | AR7: 0.01210800531 | AS7: 0.0563968891 | AV7: HELAA_sites_with_potential
A8: South of Harpenden Lane, Redbourn, AL3 7RQ | B8: M6 | C8: 12.5641162 | D8: 12.5641162 | E8: 0 | F8: 0 | G8: 0 | H8: 1.635479861 | I8: 1.64 | J8: 0.1305304705 | K8: 0.1305304705 | L8: 3.598167784 | M8: 3.6 | N8: 0.2865303012 | O8: 0.1559998306 | P8: 0.7134696988 | Q8: 0 | R8: 0 | S8: 0 | T8: 0 | U8: 0 | V8: 0 | W8: 0 | X8: 0 | Y8: 4.267102992 | Z8: 0.3396261959 | AA8: 0 | AB8: 0 | AC8: 2.074371372 | AD8: 0.1651028483 | AE8: 2.803978443 | AG8: 0.2231735522 | AH8: 5.170108798 | AI8: =AH8/#REF! ->  | AJ8: 0.4114980086 | AK8: 0 | AL8: 0 | AM8: 4.545138122 | AN8: 0.3617554986 | AO8: 1.549436939 | AP8: 0.123322398 | AQ8: 6.46954107 | AR8: 0.5149220976 | AS8: 0.6382444956 | AV8: HELAA_sites_with_potential
A9: Falconers Field, Harpenden, AL5 3ES | B9: M16 | C9: 1.158099771 | D9: 1.158099771 | E9: 0 | F9: 0 | G9: 0 | H9: 0 | I9: 0 | J9: 0 | K9: 0 | L9: 0 | M9: 0 | N9: 0 | O9: 0 | P9: 1 | Q9: 0 | R9: 0 | S9: 0 | T9: 0 | U9: 0 | V9: 0 | W9: 0 | X9: 0 | Y9: 0 | Z9: 0 | AA9: 0 | AB9: 0 | AC9: 0 | AD9: 0 | AE9: 0 | AG9: 0 | AH9: 0 | AI9: =AH9/#REF! ->  | AJ9: 0 | AK9: 0.0579983777 | AL9: 0.05008064 | AM9: 0 | AN9: 0 | AO9: 0 | AP9: 0 | AQ9: 0 | AR9: 0 | AS9: 0 | AV9: HELAA_sites_with_potential
A10: Townsend Lane, Harpenden, AL5 2RH | B10: M7 | C10: 1.882815649 | D10: 1.882815649 | E10: 0 | F10: 0 | G10: 0 | H10: 0 | I10: 0 | J10: 0 | K10: 0 | L10: 0 | M10: 0 | N10: 0 | O10: 0 | P10: 1 | Q10: 0 | R10: 0 | S10: 0 | T10: 0 | U10: 0 | V10: 0 | W10: 0 | X10: 0 | Y10: 0 | Z10: 0 | AA10: 0 | AB10: 0 | AC10: 0 | AD10: 0 | AE10: 0.0108 | AG10: 0.005736089991 | AH10: 0.0416 | AI10: =AH10/#REF! ->  | AJ10: 0.02209456885 | AK10: 1.882815649 | AL10: 1 | AM10: 0 | AN10: 0 | AO10: 0 | AP10: 0 | AQ10: 0 | AR10: 0 | AS10: 0 | AV10: HELAA_sites_with_potential
A11: Wood End, Hatching Green, Harpenden, AL5 2JT | B11: M22 | C11: 0.7680843754 | D11: 0.7680843754 | E11: 0 | F11: 0 | G11: 0 | H11: 0 | I11: 0 | J11: 0 | K11: 0 | L11: 0 | M11: 0 | N11: 0 | O11: 0 | P11: 1 | Q11: 0 | R11: 0 | S11: 0 | T11: 0 | U11: 0 | V11: 0 | W11: 0 | X11: 0 | Y11: 0 | Z11: 0 | AA11: 0 | AB11: 0 | AC11: 0 | AD11: 0 | AE11: 0.0168 | AG11: 0.02187259699 | AH11: 0.0321336682 | AI11: =AH11/#REF! ->  | AJ11: 0.04183611753 | AK11: 0.1165261642 | AL11: 0.1517101089 | AM11: 0 | AN11: 0 | AO11: 0 | AP11: 0 | AQ11: 0 | AR11: 0 | AS11: 0 | AV11: HELAA_sites_with_potential
A12: Rothamsted Lodge, Hatching Green, AL5 2GT | B12: M21 | C12: 1.929774895 | D12: 1.929774895 | E12: 0 | F12: 0 | G12: 0 | H12: 0 | I12: 0 | J12: 0 | K12: 0 | L12: 0 | M12: 0 | N12: 0 | O12: 0 | P12: 1 | Q12: 0 | R12: 0 | S12: 0 | T12: 0 | U12: 0 | V12: 0 | W12: 0 | X12: 0 | Y12: 0 | Z12: 0 | AA12: 0 | AB12: 0 | AC12: 0 | AD12: 0 | AE12: 0 | AG12: 0 | AH12: 0.000212704 | AI12: =AH12/#REF! ->  | AJ12: 0.0001102221821 | AK12: 0 | AL12: 0 | AM12: 0 | AN12: 0 | AO12: 0 | AP12: 0 | AQ12: 0 | AR12: 0 | AS12: 0 | AV12: HELAA_sites_with_potential
A13: Cross Lane, Harpenden, AL5 1BX | B13: M1 a | C13: 6.471048076 | D13: 6.471048076 | E13: 0 | F13: 0 | G13: 0 | H13: 0 | I13: 0 | J13: 0 | K13: 0 | L13: 0 | M13: 0 | N13: 0 | O13: 0 | P13: 1 | Q13: 0 | R13: 0 | S13: 0 | T13: 0 | U13: 0 | V13: 0 | W13: 0 | X13: 0 | Y13: 0 | Z13: 0 | AA13: 0 | AB13: 0 | AC13: 0.021701109 | AD13: 0.003353569429 | AE13: 0.0537847368 | AG13: 0.008311595922 | AH13: 0.2542682457 | AI13: =AH13/#REF! ->  | AJ13: 0.03929320918 | AK13: 6.471048093 | AL13: 1.000000003 | AM13: 0 | AN13: 0 | AO13: 0 | AP13: 0 | AQ13: 0 | AR13: 0 | AS13: 0 | AV13: HELAA_sites_with_potential
A14: Sewage Treatment Works, Piggottshill Lane, Harpenden, AL5 5UN | B14: M5 | C14: 4.099547299 | D14: 4.099547299 | E14: 0 | F14: 0 | G14: 0 | H14: 0 | I14: 0 | J14: 0 | K14: 0 | L14: 0 | M14: 0 | N14: 0 | O14: 0 | P14: 1 | Q14: 0 | R14: 0 | S14: 0 | T14: 0 | U14: 0 | V14: 0 | W14: 0 | X14: 0 | Y14: 0 | Z14: 0 | AA14: 0 | AB14: 0 | AC14: 0.1279129974 | AD14: 0.03120173719 | AE14: 0.4570135615 | AG14: 0.1114790313 | AH14: 1.10425949 | AI14: =AH14/#REF! ->  | AJ14: 0.2693613243 | AK14: 0.2942342133 | AL14: 0.07177236701 | AM14: 3.805312875 | AN14: 0.9282275815 | AO14: 0 | AP14: 0 | AQ14: 0 | AR14: 0 | AS14: 0 | AV14: HELAA_sites_with_potential
A15: Piggotshill Lane, Harpenden, AL5 5UN | B15: M19 | C15: 0.8630104658 | D15: 0.8630104658 | E15: 0 | F15: 0 | G15: 0 | H15: 0 | I15: 0 | J15: 0 | K15: 0 | L15: 0 | M15: 0 | N15: 0 | O15: 0 | P15: 1 | Q15: 0 | R15: 0 | S15: 0 | T15: 0 | U15: 0 | V15: 0 | W15: 0 | X15: 0 | Y15: 0 | Z15: 0 | AA15: 0 | AB15: 0 | AC15: 0.0129548999 | AD15: 0.01501128945 | AE15: 0.0156609453 | AG15: 0.01814687761 | AH15: 0.0587707203 | AI15: =AH15/#REF! ->  | AJ15: 0.06809966116 | AK15: 0.8630104658 | AL15: 1 | AM15: 0 | AN15: 0 | AO15: 0 | AP15: 0 | AQ15: 0 | AR15: 0 | AS15: 0 | AV15: HELAA_sites_with_potential
A16: South of Codicote Road, Wheathampstead, AL4 8GD | B16: M24 | C16: 1.003952653 | D16: 1.003952653 | E16: 0 | F16: 0 | G16: 0 | H16: 0 | I16: 0 | J16: 0 | K16: 0 | L16: 0 | M16: 0 | N16: 0 | O16: 0 | P16: 1 | Q16: 0 | R16: 0 | S16: 0 | T16: 0 | U16: 0 | V16: 0 | W16: 0 | X16: 0 | Y16: 0 | Z16: 0 | AA16: 0 | AB16: 0 | AC16: 0 | AD16: 0 | AE16: 0 | AG16: 0 | AH16: 0 | AI16: =AH16/#REF! ->  | AJ16: 0 | AK16: 0 | AL16: 0 | AM16: 1.003952653 | AN16: 1 | AO16: 0 | AP16: 0 | AQ16: 0 | AR16: 0 | AS16: 0 | AV16: HELAA_sites_with_potential
A17: Hill Dyke Road, Wheathampstead, AL4 8TR | B17: M2 | C17: 3.553843984 | D17: 3.553843984 | E17: 0 | F17: 0 | G17: 0 | H17: 0 | I17: 0 | J17: 0 | K17: 0 | L17: 0 | M17: 0 | N17: 0 | O17: 0 | P17: 1 | Q17: 0 | R17: 0 | S17: 0 | T17: 0 | U17: 0 | V17: 0 | W17: 0 | X17: 0 | Y17: 0 | Z17: 0 | AA17: 0 | AB17: 0 | AC17: 0 | AD17: 0 | AE17: 0 | AG17: 0 | AH17: 0 | AI17: =AH17/#REF! ->  | AJ17: 0 | AK17: 3.553843984 | AL17: 1 | AM17: 0 | AN17: 0 | AO17: 0 | AP17: 0 | AQ17: 0 | AR17: 0 | AS17: 0 | AV17: HELAA_sites_with_potential
A18: Highway Chipping Depot, Lower Luton Roa, AL4 8JJ | B18: M26 | C18: 0.3392220089 | D18: 0.3392220089 | E18: 0 | F18: 0 | G18: 0 | H18: 0.0008745547 | I18: 0 | J18: 0 | K18: 0 | L18: 0.1091665185 | M18: 0.11 | N18: 0.3242714126 | O18: 0.3242714126 | P18: 0.6757285874 | Q18: 0 | R18: 0 | S18: 0 | T18: 0 | U18: 0 | V18: 0 | W18: 0.1091666295 | X18: 0.3218147014 | Y18: 0.007405447 | Z18: 0.02183067963 | AA18: 0.0017899072 | AB18: 0.005276506692 | AC18: 2.9812e-06 | AD18: 8.788344865e-06 | AE18: 0.000411758 | AG18: 0.001213830439 | AH18: 0.002884202 | AI18: =AH18/#REF! ->  | AJ18: 0.008502402333 | AK18: 0 | AL18: 0 | AM18: 0.2611758382 | AN18: 0.7699259817 | AO18: 0.0218791687 | AP18: 0.06449808127 | AQ18: 0.0561670085 | AR18: 0.1655759562 | AS18: 0.2300740375 | AV18: HELAA_sites_with_potential
A19: North of Wheathampstead Road, Harpenden, AL5 1 Ab | B19: M17 | C19: 2.258856501 | D19: 2.258856501 | E19: 0 | F19: 0 | G19: 0 | H19: 0 | I19: 0 | J19: 0 | K19: 0 | L19: 0 | M19: 0 | N19: 0 | O19: 0 | P19: 1 | Q19: 0 | R19: 0 | S19: 0 | T19: 0 | U19: 0 | V19: 0 | W19: 0 | X19: 0 | Y19: 0 | Z19: 0 | AA19: 0 | AB19: 0 | AC19: 0 | AD19: 0 | AE19: 0 | AG19: 0 | AH19: 0 | AI19: =AH19/#REF! ->  | AJ19: 0 | AK19: 2.258856501 | AL19: 1 | AM19: 0 | AN19: 0 | AO19: 0 | AP19: 0 | AQ19: 0 | AR19: 0 | AS19: 0 | AV19: HELAA_sites_with_potential
A20: Lower Luton Road, Harpenden, AL5 5AF | B20: M20 | C20: 0.7358806713 | D20: 0.7358806713 | E20: 0 | F20: 0 | G20: 0 | H20: 0.0036206605 | I20: 0 | J20: 0 | K20: 0 | L20: 0.0165927091 | M20: 0.02 | N20: 0.0271783195 | O20: 0.0271783195 | P20: 0.9728216805 | Q20: 0 | R20: 0 | S20: 0 | T20: 0 | U20: 0 | V20: 0 | W20: 0 | X20: 0 | Y20: 0.1311266212 | Z20: 0.1781900603 | AA20: 0.0196690136 | AB20: 0.0267285368 | AC20: 0 | AD20: 0 | AE20: 0 | AG20: 0 | AH20: 0.0116669676 | AI20: =AH20/#REF! ->  | AJ20: 0.01585442865 | AK20: 0 | AL20: 0 | AM20: 0.2362446742 | AN20: 0.3210366618 | AO20: 0.0727753659 | AP20: 0.09889560732 | AQ20: 0.4268608833 | AR20: 0.5800680735 | AS20: 0.6789636808 | AV20: HELAA_sites_with_potential
A21: North of Oakwood Road, Bricket Wood, AL2 3PT | B21: M4 | C21: 3.06806946 | D21: 3.06806946 | E21: 0 | F21: 0 | G21: 0 | H21: 0 | I21: 0 | J21: 0 | K21: 0 | L21: 0 | M21: 0 | N21: 0 | O21: 0 | P21: 1 | Q21: 0 | R21: 0 | S21: 0 | T21: 0 | U21: 0 | V21: 0 | W21: 0 | X21: 0 | Y21: 0 | Z21: 0 | AA21: 0 | AB21: 0 | AC21: 0 | AD21: 0 | AE21: 0 | AG21: 0 | AH21: 0.06679238 | AI21: =AH21/#REF! ->  | AJ21: 0.02177016553 | AK21: 0 | AL21: 0 | AM21: 0 | AN21: 0 | AO21: 3.068069501 | AP21: 1.000000013 | AQ21: 0 | AR21: 0 | AS21: 1.000000013 | AV21: HELAA_sites_with_potential
A22: Bucknalls Drive, Bricket Wood, AL2 3YT | B22: M15 | C22: 1.275842016 | D22: 1.275842016 | E22: 0 | F22: 0 | G22: 0 | H22: 0 | I22: 0 | J22: 0 | K22: 0 | L22: 0 | M22: 0 | N22: 0 | O22: 0 | P22: 1 | Q22: 0 | R22: 0 | S22: 0 | T22: 0 | U22: 0 | V22: 0 | W22: 0 | X22: 0 | Y22: 0 | Z22: 0 | AA22: 0 | AB22: 0 | AC22: 0 | AD22: 0 | AE22: 0 | AG22: 0 | AH22: 0.029322508 | AI22: =AH22/#REF! ->  | AJ22: 0.0229828675 | AK22: 0 | AL22: 0 | AM22: 0 | AN22: 0 | AO22: 0 | AP22: 0 | AQ22: 0 | AR22: 0 | AS22: 0 | AV22: HELAA_sites_with_potential
A23: East and West of Miriam Lane, Chiswell Green, AL2 3NY | B23: M1 | C23: 4.076470062 | D23: 4.076470062 | E23: 0 | F23: 0 | G23: 0 | H23: 0 | I23: 0 | J23: 0 | K23: 0 | L23: 0 | M23: 0 | N23: 0 | O23: 0 | P23: 1 | Q23: 0 | R23: 0 | S23: 0 | T23: 0 | U23: 0 | V23: 0 | W23: 0 | X23: 0 | Y23: 0 | Z23: 0 | AA23: 0 | AB23: 0 | AC23: 9.09754e-05 | AD23: 2.231720057e-05 | AE23: 0.0093955123 | AG23: 0.002304815724 | AH23: 0.4161350705 | AI23: =AH23/#REF! ->  | AJ23: 0.1020822094 | AK23: 0 | AL23: 0 | AM23: 4.076470198 | AN23: 1.000000033 | AO23: 0 | AP23: 0 | AQ23: 0 | AR23: 0 | AS23: 0 | AV23: HELAA_sites_with_potential
A24: Bedmond Lane, St Albans, AL3 4AH | B24: M3 | C24: 5.835531346 | D24: 5.835531346 | E24: 0 | F24: 0 | G24: 0 | H24: 0 | I24: 0 | J24: 0 | K24: 0 | L24: 0 | M24: 0 | N24: 0 | O24: 0 | P24: 1 | Q24: 0 | R24: 0 | S24: 0 | T24: 0 | U24: 0 | V24: 0 | W24: 0 | X24: 0 | Y24: 0 | Z24: 0 | AA24: 0 | AB24: 0 | AC24: 0 | AD24: 0 | AE24: 0.0268730831 | AG24: 0.004605079042 | AH24: 0.1032807045 | AI24: =AH24/#REF! ->  | AJ24: 0.01769859476 | AK24: 5.835531321 | AL24: 0.9999999957 | AM24: 0 | AN24: 0 | AO24: 0 | AP24: 0 | AQ24: 0 | AR24: 0 | AS24: 0 | AV24: HELAA_sites_with_potential
A25: Tippendell Lane and Orchard Drive, How Wood, AL2 2HJ | B25: M10 | C25: 2.319484313 | D25: 2.319484313 | E25: 0 | F25: 0 | G25: 0 | H25: 0 | I25: 0 | J25: 0 | K25: 0 | L25: 0 | M25: 0 | N25: 0 | O25: 0 | P25: 1 | Q25: 0 | R25: 0 | S25: 0 | T25: 0 | U25: 0 | V25: 0 | W25: 0 | X25: 0 | Y25: 0 | Z25: 0 | AA25: 0 | AB25: 0 | AC25: 0.0870919133 | AD25: 0.03754796391 | AE25: 0.1338764083 | AG25: 0.05771817792 | AH25: 0.5061182898 | AI25: =AH25/#REF! ->  | AJ25: 0.2182029371 | AK25: 0 | AL25: 0 | AM25: 2.319484313 | AN25: 1 | AO25: 0 | AP25: 0 | AQ25: 0 | AR25: 0 | AS25: 0 | AV25: HELAA_sites_with_potential
A26: West of Watling Street, Park Street, AL2 2PZ | B26: L2 | C26: 4.326761516 | D26: 4.326761516 | E26: 0 | F26: 0 | G26: 0 | H26: 0 | I26: 0 | J26: 0 | K26: 0 | L26: 0 | M26: 0 | N26: 0 | O26: 0 | P26: 1 | Q26: 0 | R26: 0 | S26: 0 | T26: 0 | U26: 0 | V26: 0 | W26: 0 | X26: 0 | Y26: 0 | Z26: 0 | AA26: 0 | AB26: 0 | AC26: 0.046 | AD26: 0.01063150808 | AE26: 0.1191021071 | AG26: 0.02752684812 | AH26: 0.2738401029 | AI26: =AH26/#REF! ->  | AJ26: 0.06328985361 | AK26: 0 | AL26: 0 | AM26: 4.326761521 | AN26: 1.000000001 | AO26: 0 | AP26: 0 | AQ26: 0 | AR26: 0 | AS26: 0 | AV26: HELAA_sites_with_potential
A27: Frogmore Vicarage, Frogmore, AL2 2JU | B27: M27 | C27: 1.060751475 | D27: 1.060751475 | E27: 0 | F27: 0 | G27: 0 | H27: 0 | I27: 0 | J27: 0 | K27: 0 | L27: 0 | M27: 0 | N27: 0 | O27: 0 | P27: 1 | Q27: 0 | R27: 0 | S27: 0 | T27: 0 | U27: 0 | V27: 0 | W27: 0 | X27: 0 | Y27: 0 | Z27: 0 | AA27: 0 | AB27: 0 | AC27: 0 | AD27: 0 | AE27: 0 | AG27: 0 | AH27: 0 | AI27: =AH27/#REF! ->  | AJ27: 0 | AK27: 0 | AL27: 0 | AM27: 1.060751475 | AN27: 1 | AO27: 0 | AP27: 0 | AQ27: 0 | AR27: 0 | AS27: 0 | AV27: HELAA_sites_with_potential
A28: North of Boissy Close, Colney Heath, AL4 0UE | B28: M13 | C28: 1.434695138 | D28: 1.434695138 | E28: 0 | F28: 0 | G28: 0 | H28: 0 | I28: 0 | J28: 0 | K28: 0 | L28: 0 | M28: 0 | N28: 0 | O28: 0 | P28: 1 | Q28: 0 | R28: 0 | S28: 0 | T28: 0 | U28: 0 | V28: 0 | W28: 0 | X28: 0 | Y28: 0 | Z28: 0 | AA28: 0 | AB28: 0 | AC28: 0.0086511862 | AD28: 0.006029982237 | AE28: 0.0218676406 | AG28: 0.01524201206 | AH28: 0.0752052464 | AI28: =AH28/#REF! ->  | AJ28: 0.05241897348 | AK28: 0 | AL28: 0 | AM28: 0 | AN28: 0 | AO28: 0 | AP28: 0 | AQ28: 0 | AR28: 0 | AS28: 0 | AV28: HELAA_sites_with_potential
A29: Glinwell, Hatfield Road, St Albans, AL4 0HE | B29: B5 | C29: 20.8470975 | D29: 20.8470975 | E29: 0 | F29: 0 | G29: 0 | H29: 2.31759938 | I29: 2.32 | J29: 0.1112864753 | K29: 0.1112864753 | L29: 2.835968202 | M29: 2.84 | N29: 0.1362299956 | O29: 0.02494352032 | P29: 0.8637700044 | Q29: 0 | R29: 0 | S29: 0 | T29: 0 | U29: 0 | V29: 0 | W29: 0 | X29: 0 | Y29: 0 | Z29: 0 | AA29: 0 | AB29: 0 | AC29: 0.5167736244 | AD29: 0.02478875654 | AE29: 1.05666218 | AG29: 0.05068629722 | AH29: 5.334900108 | AI29: =AH29/#REF! ->  | AJ29: 0.2559061331 | AK29: 0 | AL29: 0 | AM29: 0 | AN29: 0 | AO29: 1.712438069 | AP29: 0.08214275725 | AQ29: 6.051644591 | AR29: 0.2902871535 | AS29: 0.3724299107 | AV29: HELAA_sites_with_potential
A30: East of Kay Walk, St Albans, AL4 0XH | B30: M18 | C30: 3.341131842 | D30: 3.341131842 | E30: 0 | F30: 0 | G30: 0 | H30: 0 | I30: 0 | J30: 0 | K30: 0 | L30: 0 | M30: 0 | N30: 0 | O30: 0 | P30: 1 | Q30: 0 | R30: 0 | S30: 0 | T30: 0 | U30: 0 | V30: 0 | W30: 0 | X30: 0 | Y30: 0 | Z30: 0 | AA30: 0 | AB30: 0 | AC30: 0.0120812794 | AD30: 0.003615924175 | AE30: 0.0142566836 | AG30: 0.004267022157 | AH30: 0.1385629297 | AI30: =AH30/#REF! ->  | AJ30: 0.04147185333 | AK30: 0 | AL30: 0 | AM30: 0 | AN30: 0 | AO30: 0 | AP30: 0 | AQ30: 0 | AR30: 0 | AS30: 0 | AV30: HELAA_sites_with_potential
A31: Burston Nurseriess, North Orbital Road, St albans, AL2 2DS | B31: L1 | C31: 14.32725488 | D31: 14.32725488 | E31: 0 | F31: 0 | G31: 0 | H31: 0 | I31: 0 | J31: 0 | K31: 0 | L31: 0 | M31: 0 | N31: 0 | O31: 0 | P31: 1 | Q31: 0 | R31: 0 | S31: 0 | T31: 0 | U31: 0 | V31: 0 | W31: 0 | X31: 0 | Y31: 0 | Z31: 0 | AA31: 0 | AB31: 0 | AC31: 0.1343677159 | AD31: 0.009378469013 | AE31: 0.3830815312 | AG31: 0.02673795744 | AH31: 1.213545682 | AI31: =AH31/#REF! ->  | AJ31: 0.08470189806 | AK31: 0 | AL31: 0 | AM31: 2.02100143 | AN31: 0.1410599202 | AO31: 0 | AP31: 0 | AQ31: 0 | AR31: 0 | AS31: 0 | AV31: HELAA_sites_with_potential
A32: West of London Colney, AL2 1LN | B32: B6 | C32: 13.50460657 | D32: 13.50460657 | E32: 0 | F32: 0 | G32: 0 | H32: 0 | I32: 0 | J32: 0 | K32: 0 | L32: 0 | M32: 0 | N32: 0 | O32: 0 | P32: 1 | Q32: 0 | R32: 0 | S32: 0 | T32: 0 | U32: 0 | V32: 0 | W32: 0.10111221 | X32: 0.007487238482 | Y32: 0 | Z32: 0 | AA32: 0 | AB32: 0 | AC32: 0.1625587462 | AD32: 0.01203728116 | AE32: 0.202261666 | AG32: 0.01497723499 | AH32: 0.8018075381 | AI32: =AH32/#REF! ->  | AJ32: 0.05937289131 | AK32: 0 | AL32: 0 | AM32: 13.5046069 | AN32: 1.000000024 | AO32: 0 | AP32: 0 | AQ32: 0 | AR32: 0 | AS32: 0 | AV32: HELAA_sites_with_potential
A33: Harper Lane, north of Radlett, WD7 7HU | B33: B8 | C33: 11.40124468 | D33: 11.40124468 | E33: 0 | F33: 0 | G33: 0 | H33: 0.1554607056 | I33: 0.16 | J33: 0.0140335555 | K33: 0.0140335555 | L33: 0.2285769597 | M33: 0.23 | N33: 0.02017323602 | O33: 0.006139680529 | P33: 0.979826764 | Q33: 0 | R33: =ROUND(Q33,2) -> 0 | S33: =R33/D33 -> 0 | T33: 0 | U33: =ROUND(T33,2) -> 0 | V33: =U33/D33 -> 0 | W33: 0 | X33: 0 | Y33: 0 | Z33: 0 | AA33: 0 | AB33: 0 | AC33: 0 | AD33: =AC33/D33 -> 0 | AE33: 0 | AG33: =AE33/D33 -> 0 | AH33: 0.1879985657 | AI33: =AH33/#REF! ->  | AJ33: =AH33/D33 -> 0.01648930191 | AK33: 4.676990993 | AL33: =(AK33/D33) -> 0.4102175791 | AM33: 2.839220306 | AN33: =(AM33/D33) -> 0.2490272233 | AO33: 0 | AP33: =(AO33/D33) -> 0 | AQ33: 2.32179e-05 | AR33: =(AQ33/D33) -> 2.036435551e-06 | AS33: 2.036435551e-06 | AV33: HELAA_sites_with_potential
A34: Verulam Golf Club, St Albans, AL1 1JG | B34: M8 | C34: 2.797956075 | D34: 2.797956075 | E34: 0 | F34: 0 | G34: 0 | H34: 0 | I34: 0 | J34: 0 | K34: 0 | L34: 0 | M34: 0 | N34: 0 | O34: 0 | P34: 1 | Q34: 0 | R34: 0 | S34: 0 | T34: 0 | U34: 0 | V34: 0 | W34: 0 | X34: 0 | Y34: 0 | Z34: 0 | AA34: 0 | AB34: 0 | AC34: 0.0859625459 | AD34: 0.03072333646 | AE34: 0.1975703069 | AG34: 0.07061236902 | AH34: 0.433322622 | AI34: =AH34/#REF! ->  | AJ34: 0.154871131 | AK34: 0.7027881565 | AL34: 0.2511791242 | AM34: 2.095167813 | AN34: 0.7488208378 | AO34: 0 | AP34: 0 | AQ34: 0 | AR34: 0 | AS34: 0 | AV34: HELAA_sites_with_potential
A35: North West Harpenden, AL5 3NP | B35: B7 | C35: 12.18841618 | D35: 12.18841618 | E35: 0 | F35: 0 | G35: 0 | H35: 0 | I35: 0 | J35: 0 | K35: 0 | L35: 0 | M35: 0 | N35: 0 | O35: 0 | P35: 1 | Q35: 0 | R35: 0 | S35: 0 | T35: 0 | U35: 0 | V35: 0 | W35: 0 | X35: 0 | Y35: 0 | Z35: 0 | AA35: 0 | AB35: 0 | AC35: 0.0015377877 | AD35: 0.0001261679678 | AE35: 0.0078317174 | AG35: 0.0006425541501 | AH35: 1.044314958 | AI35: =AH35/#REF! ->  | AJ35: 0.08568094025 | AK35: 9.831787447 | AL35: 0.806650126 | AM35: 0.6836540478 | AN35: 0.05609047457 | AO35: 0 | AP35: 0 | AQ35: 0 | AR35: 0 | AS35: 0 | AV35: HELAA_sites_with_potential
A36: Beesonend Lane, Harpenden, AL5 2AB | B36: M14 | C36: 2.029751931 | D36: 2.029751931 | E36: 0 | F36: 0 | G36: 0 | H36: 0 | I36: 0 | J36: 0 | K36: 0 | L36: 0 | M36: 0 | N36: 0 | O36: 0 | P36: 1 | Q36: 0 | R36: 0 | S36: 0 | T36: 0 | U36: 0 | V36: 0 | W36: 0 | X36: 0 | Y36: 0 | Z36: 0 | AA36: 0 | AB36: 0 | AC36: 0 | AD36: 0 | AE36: 0.0148 | AG36: 0.00729153143 | AH36: 0.0277083736 | AI36: =AH36/#REF! ->  | AJ36: 0.01365111331 | AK36: 2.029751961 | AL36: 1.000000015 | AM36: 0 | AN36: 0 | AO36: 0 | AP36: 0 | AQ36: 0 | AR36: 0 | AS36: 0 | AV36: HELAA_sites_with_potential
A37: Amwell Top Field, Wheathampstead, AL4 8DZ | B37: M9 | C37: 4.266647762 | D37: 4.266647762 | E37: 0 | F37: 0 | G37: 0 | H37: 0 | I37: 0 | J37: 0 | K37: 0 | L37: 0 | M37: 0 | N37: 0 | O37: 0 | P37: 1 | Q37: 0 | R37: 0 | S37: 0 | T37: 0 | U37: 0 | V37: 0 | W37: 0 | X37: 0 | Y37: 0 | Z37: 0 | AA37: 0 | AB37: 0 | AC37: 0 | AD37: 0 | AE37: 5.034e-07 | AG37: 1.179848978e-07 | AH37: 0.0373680484 | AI37: =AH37/#REF! ->  | AJ37: 0.00875817515 | AK37: 4.266647762 | AL37: 1 | AM37: 0 | AN37: 0 | AO37: 0 | AP37: 0 | AQ37: 0 | AR37: 0 | AS37: 0 | AV37: HELAA_sites_with_potential
A38: North of The Slype, Gustard Wood, AL4 8SA | B38: M12 | C38: 4.241120483 | D38: 4.241120483 | E38: 0 | F38: 0 | G38: 0 | H38: 0 | I38: 0 | J38: 0 | K38: 0 | L38: 0 | M38: 0 | N38: 0 | O38: 0 | P38: 1 | Q38: 0 | R38: 0 | S38: 0 | T38: 0 | U38: 0 | V38: 0 | W38: 0 | X38: 0 | Y38: 0 | Z38: 0 | AA38: 0 | AB38: 0 | AC38: 0.0103495 | AD38: 0.002440274932 | AE38: 0.1442423815 | AG38: 0.03401044183 | AH38: 0.6484889115 | AI38: =AH38/#REF! ->  | AJ38: 0.1529050905 | AK38: 2.971634229 | AL38: 0.7006719666 | AM38: 0 | AN38: 0 | AO38: 0 | AP38: 0 | AQ38: 0 | AR38: 0 | AS38: 0 | AV38: HELAA_sites_with_potential
A39: North Hemel Hempstead, AL3 7AU | B39: H1 | C39: 88.83499963 | D39: 88.83499963 | E39: 0 | F39: 0 | G39: 0 | H39: 0 | I39: 0 | J39: 0 | K39: 0 | L39: 0 | M39: 0 | N39: 0 | O39: 0 | P39: 1 | Q39: 0 | R39: 0 | S39: 0 | T39: 0 | U39: 0 | V39: 0 | W39: 0 | X39: 0 | Y39: 1.887077091 | Z39: 0.02124249562 | AA39: 0.7039311459 | AB39: 0.007924029367 | AC39: 2.744566205 | AD39: 0.03089510009 | AE39: 3.939321788 | AG39: 0.044344254 | AH39: 10.60982156 | AI39: =AH39/#REF! ->  | AJ39: 0.1194328993 | AK39: 0 | AL39: 0 | AM39: 81.68390848 | AN39: 0.919501422 | AO39: 6.348473116 | AP39: 0.07146364769 | AQ39: 0.0541457442 | AR39: 0.0006095091397 | AS39: 0.07207315683 | AV39: HELAA_sites_with_potential
A40: East Hemel Hempstead (North), HP2 7HT | B40: H2 | C40: 169.3763496 | D40: 169.3763496 | E40: 0 | F40: 0 | G40: 0 | H40: 0 | I40: 0 | J40: 0 | K40: 0 | L40: 0 | M40: 0 | N40: 0 | O40: 0 | P40: 1 | Q40: 0 | R40: 0 | S40: 0 | T40: 0 | U40: 0 | V40: 0 | W40: 0 | X40: 0 | Y40: 12.35545884 | Z40: 0.0729467772 | AA40: 10.77373494 | AB40: 0.06360826031 | AC40: 5.653191669 | AD40: 0.03337651144 | AE40: 8.054891753 | AG40: 0.04755617755 | AH40: 17.42266748 | AI40: =AH40/#REF! ->  | AJ40: 0.1028636378 | AK40: 63.24608436 | AL40: 0.3734056408 | AM40: 47.7630222 | AN40: 0.2819934561 | AO40: 0 | AP40: 0 | AQ40: 0 | AR40: 0 | AS40: 0 | AV40: HELAA_sites_with_potential
A41: North East Harpenden, AL5 5EG | B41: B2 | C41: 43.23713707 | D41: 43.23713707 | E41: 0 | F41: 0 | G41: 0 | H41: 0 | I41: 0 | J41: 0 | K41: 0 | L41: 0.0436186333 | M41: 0.04 | N41: 0.0009251306333 | O41: 0.0009251306333 | P41: 0.9990748694 | Q41: 0 | R41: 0 | S41: 0 | T41: 0 | U41: 0 | V41: 0 | W41: 0 | X41: 0 | Y41: 0.2533318347 | Z41: 0.005859126017 | AA41: 0.0096169529 | AB41: 0.0002224234432 | AC41: 0.1713447024 | AD41: 0.003962905826 | AE41: 0.4287664783 | AG41: 0.00991662509 | AH41: 2.952630409 | AI41: =AH41/#REF! ->  | AJ41: 0.06828922102 | AK41: 37.26234148 | AL41: 0.8618133393 | AM41: 5.496393448 | AN41: 0.1271220488 | AO41: 0 | AP41: 0 | AQ41: 0 | AR41: 0 | AS41: 0 | AV41: HELAA_sites_with_potential
A42: Smallford Works, Smallford Lane, AL4 0SA | B42: P1 | C42: 3.335042676 | D42: 3.335042676 | E42: 0 | F42: 0 | G42: 0 | H42: 0.0011675283 | I42: 0 | J42: 0 | K42: 0 | L42: 0.0011670306 | M42: 0 | N42: 0 | O42: 0 | P42: 1 | Q42: 0 | R42: 0 | S42: 0 | T42: 0 | U42: 0 | V42: 0 | W42: 0 | X42: 0 | Y42: 0 | Z42: 0 | AA42: 0 | AB42: 0 | AC42: 0.0013575548 | AD42: 0.0004070576997 | AE42: 0.011620488 | AG42: 0.003484359611 | AH42: 1.541559974 | AI42: =AH42/#REF! ->  | AJ42: 0.4622309589 | AK42: 0 | AL42: 0 | AM42: 0 | AN42: 0 | AO42: 0.0861156 | AP42: 0.0258214387 | AQ42: 1.841760159 | AR42: 0.5522448551 | AS42: 0.5780662938 | AV42: HELAA_sites_with_potential
A43: Land at North Orbital Road, AL2 1DL | B43: P2 | C43: 1.882035039 | D43: 1.882035039 | E43: 0 | F43: 0 | G43: 0 | H43: 0 | I43: 0 | J43: 0 | K43: 0 | L43: 0 | M43: 0 | N43: 0 | O43: 0 | P43: 1 | Q43: 0 | R43: 0 | S43: 0 | T43: 0 | U43: 0 | V43: 0 | W43: 0 | X43: 0 | Y43: 0 | Z43: 0 | AA43: 0 | AB43: 0 | AC43: 0.0296225894 | AD43: 0.01573965882 | AE43: 0.0568206832 | AG43: 0.03019108679 | AH43: 0.1256905134 | AI43: =AH43/#REF! ->  | AJ43: 0.06678436417 | AK43: 0 | AL43: 0 | AM43: 0 | AN43: 0 | AO43: 1.768974201 | AP43: 0.9399262846 | AQ43: 0 | AR43: 0 | AS43: 0.9399262846 | AV43: HELAA_sites_with_potential
A44: Rothamsted Research, Harpenden Campus, AL5 2JQ | B44: M11 | C44: 1.617972855 | D44: 1.617972855 | E44: 0 | F44: 0 | G44: 0 | H44: 0 | I44: 0 | J44: 0 | K44: 0 | L44: 0 | M44: 0 | N44: 0 | O44: 0 | P44: 1 | Q44: 0 | R44: 0 | S44: 0 | T44: 0 | U44: 0 | V44: 0 | W44: 0 | X44: 0 | Y44: 0 | Z44: 0 | AA44: 0 | AB44: 0 | AC44: 0 | AD44: 0 | AE44: 0 | AG44: 0 | AH44: 0 | AI44: =AH44/#REF! ->  | AJ44: 0 | AK44: 0.2864702724 | AL44: 0.1770550547 | AM44: 0 | AN44: 0 | AO44: 0 | AP44: 0 | AQ44: 0 | AR44: 0 | AS44: 0 | AV44: HELAA_sites_with_potential
A45: North St Albans, AL3 6DD | B45: B1 | C45: 46.74827858 | D45: 46.74827858 | E45: 0 | F45: 0 | G45: 0 | H45: 0 | I45: 0 | J45: 0 | K45: 0 | L45: 0 | M45: 0 | N45: 0 | O45: 0 | P45: 1 | Q45: 0 | R45: 0 | S45: 0 | T45: 0 | U45: 0 | V45: 0 | W45: 0 | X45: 0 | Y45: 0 | Z45: 0 | AA45: 0 | AB45: 0 | AC45: 1.069067631 | AD45: 0.02286859887 | AE45: 2.019178311 | AG45: 0.04319257033 | AH45: 6.82061162 | AI45: =AH45/#REF! ->  | AJ45: 0.145900808 | AK45: 20.02025441 | AL45: 0.4282565051 | AM45: 26.55394965 | AN45: 0.5680198385 | AO45: 0 | AP45: 0 | AQ45: 0 | AR45: 0 | AS45: 0 | AV45: HELAA_sites_with_potential
A46: East St Albans, AL4 9JJ | B46: B4 | C46: 21.68629346 | D46: 21.68629346 | E46: 0 | F46: 0 | G46: 0 | H46: 0 | I46: 0 | J46: 0 | K46: 0 | L46: 0 | M46: 0 | N46: 0 | O46: 0 | P46: 1 | Q46: 0 | R46: 0 | S46: 0 | T46: 0 | U46: 0 | V46: 0 | W46: 0 | X46: 0 | Y46: 0 | Z46: 0 | AA46: 0 | AB46: 0 | AC46: 0.0546619706 | AD46: 0.002520576912 | AE46: 0.4485563624 | AG46: 0.02068386482 | AH46: 1.881772804 | AI46: =AH46/#REF! ->  | AJ46: 0.08677244952 | AK46: 0 | AL46: 0 | AM46: 0 | AN46: 0 | AO46: 6.756300847 | AP46: 0.3115470544 | AQ46: 0 | AR46: 0 | AS46: 0.3115470544 | AV46: HELAA_sites_with_potential
A47: Ashdale Lye Lane, Bricket Wood, AL2 3LQ | B47: M23 | C47: 2.256492389 | D47: 2.256492389 | E47: 0 | F47: 0 | G47: 0 | H47: 0 | I47: 0 | J47: 0 | K47: 0 | L47: 0 | M47: 0 | N47: 0 | O47: 0 | P47: 1 | Q47: 0 | R47: 0 | S47: 0 | T47: 0 | U47: 0 | V47: 0 | W47: 0 | X47: 0 | Y47: 0 | Z47: 0 | AA47: 0 | AB47: 0 | AC47: 0 | AD47: 0 | AE47: 0 | AG47: 0 | AH47: 0.0147534874 | AI47: =AH47/#REF! ->  | AJ47: 0.006538239382 | AK47: 0 | AL47: 0 | AM47: 0 | AN47: 0 | AO47: 0 | AP47: 0 | AQ47: 0 | AR47: 0 | AS47: 0 | AV47: HELAA_sites_with_potential
A48: Land South West of London Colney Allotments, AL2 1RG | B48: U2 | C48: 0.6623759788 | D48: 0.6623759788 | E48: 0 | F48: 0 | G48: 0 | H48: 0 | I48: 0 | J48: 0 | K48: 0 | L48: 0 | M48: 0 | N48: 0 | O48: 0 | P48: 1 | Q48: 0 | R48: 0 | S48: 0 | T48: 0 | U48: 0 | V48: 0 | W48: 0 | X48: 0 | Y48: 0 | Z48: 0 | AA48: 0 | AB48: 0 | AC48: 0 | AD48: 0 | AE48: 0 | AG48: 0 | AH48: 0 | AI48: =AH48/#REF! ->  | AJ48: 0 | AK48: 0 | AL48: 0 | AM48: 0.6623759788 | AN48: 1 | AO48: 0 | AP48: 0 | AQ48: 0 | AR48: 0 | AS48: 0 | AV48: HELAA_sites_with_potential
A49: Former Bricket Wood United Reformed Church, AL2 3QR | B49: U3 | C49: 0.1725453674 | D49: 0.1725453674 | E49: 0 | F49: 0 | G49: 0 | H49: 0 | I49: 0 | J49: 0 | K49: 0 | L49: 0 | M49: 0 | N49: 0 | O49: 0 | P49: 1 | Q49: 0 | R49: 0 | S49: 0 | T49: 0 | U49: 0 | V49: 0 | W49: 0 | X49: 0 | Y49: 0 | Z49: 0 | AA49: 0 | AB49: 0 | AC49: 0 | AD49: 0 | AE49: 0 | AG49: 0 | AH49: 0 | AI49: =AH49/#REF! ->  | AJ49: 0 | AK49: 0 | AL49: 0 | AM49: 0 | AN49: 0 | AO49: 0 | AP49: 0 | AQ49: 0 | AR49: 0 | AS49: 0 | AV49: HELAA_sites_with_potential
A50: Greenwood United Reformed Church AL2 3HG | B50: U4 | C50: 0.4701090692 | D50: 0.4701090692 | E50: 0 | F50: 0 | G50: 0 | H50: 0 | I50: 0 | J50: 0 | K50: 0 | L50: 0 | M50: 0 | N50: 0 | O50: 0 | P50: 1 | Q50: 0 | R50: 0 | S50: 0 | T50: 0 | U50: 0 | V50: 0 | W50: 0 | X50: 0 | Y50: 0 | Z50: 0 | AA50: 0 | AB50: 0 | AC50: 0 | AD50: 0 | AE50: 0 | AG50: 0 | AH50: 0 | AI50: =AH50/#REF! ->  | AJ50: 0 | AK50: 0.4701090692 | AL50: 1 | AM50: 0 | AN50: 0 | AO50: 0 | AP50: 0 | AQ50: 0 | AR50: 0 | AS50: 0 | AV50: HELAA_sites_with_potential
A51: East of Morris Recreation Ground, adjacent to A1081 and White Horse Lane | B51: U1 | C51: 1.320327449 | D51: 1.320327449 | E51: 0 | F51: 0 | G51: 0 | H51: 0 | I51: 0 | J51: 0 | K51: 0 | L51: 0 | M51: 0 | N51: 0 | O51: 0 | P51: 1 | Q51: 0 | R51: 0 | S51: 0 | T51: 0 | U51: 0 | V51: 0 | W51: 0 | X51: 0 | Y51: 0 | Z51: 0 | AA51: 0 | AB51: 0 | AC51: 0.0126398341 | AD51: 0.009573257079 | AE51: 0.0198543083 | AG51: 0.01503741236 | AH51: 0.024506002 | AI51: =AH51/#REF! ->  | AJ51: 0.01856054876 | AK51: 0 | AL51: 0 | AM51: 0.2542044763 | AN51: 0.1925313879 | AO51: 0 | AP51: 0 | AQ51: 0 | AR51: 0 | AS51: 0 | AV51: HELAA_sites_with_potential
A52: Car Park adj. to 42-46 Adelaide Street, St Albans, AL3 5BH | B52: UC48 | C52: 0.0516856168 | D52: 0.0516856168 | E52: 0 | F52: 0 | G52: 0 | H52: 0 | I52: 0 | J52: 0 | K52: 0 | L52: 0 | M52: 0 | N52: 0 | O52: 0 | P52: 1 | Q52: 0 | R52: 0 | S52: 0 | T52: 0 | U52: 0 | V52: 0 | W52: 0 | X52: 0 | Y52: 0 | Z52: 0 | AA52: 0 | AB52: 0 | AC52: 0 | AD52: 0 | AE52: 0 | AG52: 0 | AH52: 0 | AI52: =AH52/#REF! ->  | AJ52: 0 | AK52: 0.0516856168 | AL52: 1 | AM52: 0 | AN52: 0 | AO52: 0 | AP52: 0 | AQ52: 0 | AR52: 0 | AS52: 0 | AV52: HELAA_sites_with_potential
A53: 50 Victoria Street St Albans, AL1 3HZ | B53: UC11 | C53: 0.1398753745 | D53: 0.1398753745 | E53: 0 | F53: 0 | G53: 0 | H53: 0 | I53: 0 | J53: 0 | K53: 0 | L53: 0 | M53: 0 | N53: 0 | O53: 0 | P53: 1 | Q53: 0 | R53: 0 | S53: 0 | T53: 0 | U53: 0 | V53: 0 | W53: 0 | X53: 0 | Y53: 0 | Z53: 0 | AA53: 0 | AB53: 0 | AC53: 0 | AD53: 0 | AE53: 0 | AG53: 0 | AH53: 0.0004030729 | AI53: =AH53/#REF! ->  | AJ53: 0.002881657343 | AK53: 0.1398753745 | AL53: 1 | AM53: 0 | AN53: 0 | AO53: 0 | AP53: 0 | AQ53: 0 | AR53: 0 | AS53: 0 | AV53: HELAA_sites_with_potential
A54: 54 Lemsford Road St Albans, AL1 3PR | B54: UC19 | C54: 0.3531747454 | D54: 0.3531747454 | E54: 0 | F54: 0 | G54: 0 | H54: 0 | I54: 0 | J54: 0 | K54: 0 | L54: 0 | M54: 0 | N54: 0 | O54: 0 | P54: 1 | Q54: 0 | R54: 0 | S54: 0 | T54: 0 | U54: 0 | V54: 0 | W54: 0 | X54: 0 | Y54: 0 | Z54: 0 | AA54: 0 | AB54: 0 | AC54: 0 | AD54: 0 | AE54: 0.0048411516 | AG54: 0.01370752485 | AH54: 0.0290407347 | AI54: =AH54/#REF! ->  | AJ54: 0.08222766514 | AK54: 0.3531747454 | AL54: 1 | AM54: 0 | AN54: 0 | AO54: 0 | AP54: 0 | AQ54: 0 | AR54: 0 | AS54: 0 | AV54: HELAA_sites_with_potential
A55: 104 High Street London Colney, AL2 1QL | B55: UC20 | C55: 0.2685297006 | D55: 0.2685297006 | E55: 0 | F55: 0 | G55: 0 | H55: 0 | I55: 0 | J55: 0 | K55: 0 | L55: 0 | M55: 0 | N55: 0 | O55: 0 | P55: 1 | Q55: 0 | R55: 0 | S55: 0 | T55: 0 | U55: 0 | V55: 0 | W55: 0 | X55: 0 | Y55: 0 | Z55: 0 | AA55: 0 | AB55: 0 | AC55: 0 | AD55: 0 | AE55: 0 | AG55: 0 | AH55: 0 | AI55: =AH55/#REF! ->  | AJ55: 0 | AK55: 0 | AL55: 0 | AM55: 0.2685297006 | AN55: 1 | AO55: 0 | AP55: 0 | AQ55: 0 | AR55: 0 | AS55: 0 | AV55: HELAA_sites_with_potential
A56: 18- 20 Catherine Street St Albans, AL3 5BY | B56: UC5 | C56: 0.4274639783 | D56: 0.4274639783 | E56: 0 | F56: 0 | G56: 0 | H56: 0 | I56: 0 | J56: 0 | K56: 0 | L56: 0 | M56: 0 | N56: 0 | O56: 0 | P56: 1 | Q56: 0 | R56: 0 | S56: 0 | T56: 0 | U56: 0 | V56: 0 | W56: 0 | X56: 0 | Y56: 0 | Z56: 0 | AA56: 0 | AB56: 0 | AC56: 0 | AD56: 0 | AE56: 0 | AG56: 0 | AH56: 0.016209394 | AI56: =AH56/#REF! ->  | AJ56: 0.03791990629 | AK56: 0.4274639383 | AL56: 0.9999999064 | AM56: 0 | AN56: 0 | AO56: 0 | AP56: 0 | AQ56: 0 | AR56: 0 | AS56: 0 | AV56: HELAA_sites_with_potential
A57: 13-19 Sutton Road & 5-11a Pickford Road St Albans, AL1 5JH | B57: UC6 | C57: 0.3244836847 | D57: 0.3244836847 | E57: 0 | F57: 0 | G57: 0 | H57: 0 | I57: 0 | J57: 0 | K57: 0 | L57: 0 | M57: 0 | N57: 0 | O57: 0 | P57: 1 | Q57: 0 | R57: 0 | S57: 0 | T57: 0 | U57: 0 | V57: 0 | W57: 0 | X57: 0 | Y57: 0 | Z57: 0 | AA57: 0 | AB57: 0 | AC57: 0.0013371283 | AD57: 0.004120787463 | AE57: 0.0140304048 | AG57: 0.04323916875 | AH57: 0.0603509068 | AI57: =AH57/#REF! ->  | AJ57: 0.1859905741 | AK57: 0 | AL57: 0 | AM57: 0.3244836847 | AN57: 1 | AO57: 0 | AP57: 0 | AQ57: 0 | AR57: 0 | AS57: 0 | AV57: HELAA_sites_with_potential
A58: Garage Blocks adj. to 76 Oakley Road and 151 Grove Road, Harpenden, AL5 1HJ | B58: UC46 | C58: 0.1172504074 | D58: 0.1172504074 | E58: 0 | F58: 0 | G58: 0 | H58: 0 | I58: 0 | J58: 0 | K58: 0 | L58: 0 | M58: 0 | N58: 0 | O58: 0 | P58: 1 | Q58: 0 | R58: 0 | S58: 0 | T58: 0 | U58: 0 | V58: 0 | W58: 0 | X58: 0 | Y58: 0 | Z58: 0 | AA58: 0 | AB58: 0 | AC58: 0.0051698814 | AD58: 0.04409265191 | AE58: 0.0130537912 | AG58: 0.1113325871 | AH58: 0.0484377275 | AI58: =AH58/#REF! ->  | AJ58: 0.4131135113 | AK58: 0 | AL58: 0 | AM58: 0.1172504074 | AN58: 1 | AO58: 0 | AP58: 0 | AQ58: 0 | AR58: 0 | AS58: 0 | AV58: HELAA_sites_with_potential
A59: Crabtree Fields / Land at Waldegrave Park, Harpenden, AL5 5SA | B59: UC47 | C59: 0.8766903797 | D59: 0.8766903797 | E59: 0 | F59: 0 | G59: 0 | H59: 0 | I59: 0 | J59: 0 | K59: 0 | L59: 0 | M59: 0 | N59: 0 | O59: 0 | P59: 1 | Q59: 0 | R59: 0 | S59: 0 | T59: 0 | U59: 0 | V59: 0 | W59: 0 | X59: 0 | Y59: 0 | Z59: 0 | AA59: 0 | AB59: 0 | AC59: 0.004083615 | AD59: 0.004657989975 | AE59: 0.0326162141 | AG59: 0.03720380063 | AH59: 0.0937849271 | AI59: =AH59/#REF! ->  | AJ59: 0.1069761107 | AK59: 0.8766903797 | AL59: 1 | AM59: 0 | AN59: 0 | AO59: 0 | AP59: 0 | AQ59: 0 | AR59: 0 | AS59: 0 | AV59: HELAA_sites_with_potential
A60: Land Rear of New House Park Shops, St Albans, AL1 1UJ | B60: UC40 | C60: 0.1180911462 | D60: 0.1180911462 | E60: 0 | F60: 0 | G60: 0 | H60: 0 | I60: 0 | J60: 0 | K60: 0 | L60: 0 | M60: 0 | N60: 0 | O60: 0 | P60: 1 | Q60: 0 | R60: 0 | S60: 0 | T60: 0 | U60: 0 | V60: 0 | W60: 0 | X60: 0 | Y60: 0 | Z60: 0 | AA60: 0 | AB60: 0 | AC60: 0 | AD60: 0 | AE60: 0.0007137952 | AG60: 0.006044442983 | AH60: 0.0314486944 | AI60: =AH60/#REF! ->  | AJ60: 0.2663086557 | AK60: 0 | AL60: 0 | AM60: 0 | AN60: 0 | AO60: 0 | AP60: 0 | AQ60: 0 | AR60: 0 | AS60: 0 | AV60: HELAA_sites_with_potential
A61: Car Park to rear of 32-34 Upper Marlborough Road, St Albans, AL1 3 UU | B61: UC4 | C61: 0.2218647447 | D61: 0.2218647447 | E61: 0 | F61: 0 | G61: 0 | H61: 0 | I61: 0 | J61: 0 | K61: 0 | L61: 0 | M61: 0 | N61: 0 | O61: 0 | P61: 1 | Q61: 0 | R61: 0 | S61: 0 | T61: 0 | U61: 0 | V61: 0 | W61: 0 | X61: 0 | Y61: 0 | Z61: 0 | AA61: 0 | AB61: 0 | AC61: 0 | AD61: 0 | AE61: 0 | AG61: 0 | AH61: 0 | AI61: =AH61/#REF! ->  | AJ61: 0 | AK61: 0.2218647447 | AL61: 1 | AM61: 0 | AN61: 0 | AO61: 0 | AP61: 0 | AQ61: 0 | AR61: 0 | AS61: 0 | AV61: HELAA_sites_with_potential
A62: 318 Watford Road, Chiswell Green, AL2 3DP | B62: UC25 | C62: 0.192994488 | D62: 0.192994488 | E62: 0 | F62: 0 | G62: 0 | H62: 0 | I62: 0 | J62: 0 | K62: 0 | L62: 0 | M62: 0 | N62: 0 | O62: 0 | P62: 1 | Q62: 0 | R62: 0 | S62: 0 | T62: 0 | U62: 0 | V62: 0 | W62: 0 | X62: 0 | Y62: 0 | Z62: 0 | AA62: 0 | AB62: 0 | AC62: 0 | AD62: 0 | AE62: 0 | AG62: 0 | AH62: 0 | AI62: =AH62/#REF! ->  | AJ62: 0 | AK62: 0 | AL62: 0 | AM62: 0.192994488 | AN62: 1 | AO62: 0 | AP62: 0 | AQ62: 0 | AR62: 0 | AS62: 0 | AV62: HELAA_sites_with_potential
A63: Garage Block rear of 109-179 Hughenden Road, St Albans, AL4 9QW | B63: UC10 | C63: 0.2707832745 | D63: 0.2707832745 | E63: 0 | F63: 0 | G63: 0 | H63: 0 | I63: 0 | J63: 0 | K63: 0 | L63: 0 | M63: 0 | N63: 0 | O63: 0 | P63: 1 | Q63: 0 | R63: 0 | S63: 0 | T63: 0 | U63: 0 | V63: 0 | W63: 0 | X63: 0 | Y63: 0 | Z63: 0 | AA63: 0 | AB63: 0 | AC63: 0 | AD63: 0 | AE63: 0 | AG63: 0 | AH63: 0 | AI63: =AH63/#REF! ->  | AJ63: 0 | AK63: 0 | AL63: 0 | AM63: 0 | AN63: 0 | AO63: 0.2707832745 | AP63: 1 | AQ63: 0 | AR63: 0 | AS63: 1 | AV63: HELAA_sites_with_potential
A64: Garage Block Between Hughenden Road and The Ridgeway, St Albans, AL4 9RH | B64: UC12 | C64: 0.2218806313 | D64: 0.2218806313 | E64: 0 | F64: 0 | G64: 0 | H64: 0 | I64: 0 | J64: 0 | K64: 0 | L64: 0 | M64: 0 | N64: 0 | O64: 0 | P64: 1 | Q64: 0 | R64: 0 | S64: 0 | T64: 0 | U64: 0 | V64: 0 | W64: 0 | X64: 0 | Y64: 0 | Z64: 0 | AA64: 0 | AB64: 0 | AC64: 0 | AD64: 0 | AE64: 0 | AG64: 0 | AH64: 0.0001171966 | AI64: =AH64/#REF! ->  | AJ64: 0.0005281966223 | AK64: 0 | AL64: 0 | AM64: 0 | AN64: 0 | AO64: 0.2218806564 | AP64: 1.000000113 | AQ64: 0 | AR64: 0 | AS64: 1.000000113 | AV64: HELAA_sites_with_potential
A65: Car Park to rear of 3 Church Green (Waitrose), Harpenden, AL5 2TJ | B65: UC14 | C65: 0.3366995703 | D65: =C65 -> 0.3366995703 | E65: 0 | F65: =ROUND(E65,2) -> 0 | G65: =F65/D65 -> 0 | H65: 0 | I65: =ROUND(H65,2) -> 0 | J65: =I65/D65 -> 0 | K65: =J65-G65 -> 0 | L65: 0 | M65: =ROUND(L65,2) -> 0 | N65: =M65/D65 -> 0 | O65: =N65-J65 -> 0 | P65: =1-N65 -> 1 | Q65: 0 | R65: =ROUND(Q65,2) -> 0 | S65: =R65/D65 -> 0 | T65: 0 | U65: =ROUND(T65,2) -> 0 | V65: =U65/D65 -> 0 | W65: 0 | X65: =W65/D65 -> 0 | Y65: 0 | Z65: =Y65/D65 -> 0 | AA65: 0 | AB65: 0 | AC65: 0.00872285 | AD65: =AC65/D65 -> 0.02590692347 | AE65: 0.0119930549 | AG65: =AE65/D65 -> 0.03561945413 | AH65: 0.0321318891 | AI65: =AH65/#REF! ->  | AJ65: =AH65/D65 -> 0.09543192785 | AK65: 0.2216296611 | AL65: =(AK65/D65) -> 0.6582415918 | AM65: 0.1150699098 | AN65: =(AM65/D65) -> 0.34175841 | AO65: 0 | AP65: =(AO65/D65) -> 0 | AQ65: 0 | AR65: =(AQ65/D65) -> 0 | AS65: =(AR65+AP65) -> 0 | AV65: HELAA_sites_with_potential
A66: 5 Spencer Street, St Albans, AL3 5EH | B66: UC7 | C66: 0.1859077789 | D66: 0.1859077789 | E66: 0 | F66: 0 | G66: 0 | H66: 0 | I66: 0 | J66: 0 | K66: 0 | L66: 0 | M66: 0 | N66: 0 | O66: 0 | P66: 1 | Q66: 0 | R66: 0 | S66: 0 | T66: 0 | U66: 0 | V66: 0 | W66: 0 | X66: 0 | Y66: 0 | Z66: 0 | AA66: 0 | AB66: =AA66/D66 -> 0 | AC66: 0 | AD66: 0 | AE66: 0 | AG66: 0 | AH66: 0 | AI66: =AH66/#REF! ->  | AJ66: 0 | AK66: 0.1859077789 | AL66: 1 | AM66: 0 | AN66: 0 | AO66: 0 | AP66: 0 | AQ66: 0 | AR66: 0 | AS66: 0 | AV66: HELAA_sites_with_potential
A67: Garage Block to south of Abbots Park Abbots Park, St Albans, AL1 1TW | B67: UC51 | C67: 0.0563914435 | D67: 0.0563914435 | E67: 0 | F67: 0 | G67: 0 | H67: 0 | I67: 0 | J67: 0 | K67: 0 | L67: 0 | M67: 0 | N67: 0 | O67: 0 | P67: 1 | Q67: 0 | R67: 0 | S67: 0 | T67: 0 | U67: 0 | V67: 0 | W67: 0 | X67: 0 | Y67: 0 | Z67: 0 | AA67: 0 | AB67: 0 | AC67: 0 | AD67: 0 | AE67: 0 | AG67: 0 | AH67: 0.0237680357 | AI67: =AH67/#REF! ->  | AJ67: 0.4214830163 | AK67: 0.0563914435 | AL67: 1 | AM67: 0 | AN67: 0 | AO67: 0 | AP67: 0 | AQ67: 0 | AR67: 0 | AS67: 0 | AV67: HELAA_sites_with_potential
A68: Berkeley House, Barnet Road, London Colney, AL2 1BG | B68: UC27 | C68: 0.1445292773 | D68: 0.1445292773 | E68: 0 | F68: 0 | G68: 0 | H68: 0 | I68: 0 | J68: 0 | K68: 0 | L68: 0.028423708 | M68: 0.03 | N68: 0.2075704007 | O68: 0.2075704007 | P68: 0.7924295993 | Q68: 0 | R68: 0 | S68: 0 | T68: 0 | U68: 0 | V68: 0 | W68: 0.0284236003 | X68: 0.1966632701 | Y68: 0 | Z68: 0 | AA68: 0.0008851741 | AB68: 0.00612453142 | AC68: 0 | AD68: 0 | AE68: 0 | AG68: 0 | AH68: 1.9147e-06 | AI68: =AH68/#REF! ->  | AJ68: 1.324783487e-05 | AK68: 0 | AL68: 0 | AM68: 0.1218681032 | AN68: 0.8432070337 | AO68: 0 | AP68: 0 | AQ68: 0 | AR68: 0 | AS68: 0 | AV68: HELAA_sites_with_potential
A69: Garage Block to east of 8 Heath Close, Harpenden, AL5 1QN | B69: UC39 | C69: 0.1276284233 | D69: 0.1276284233 | E69: 0 | F69: 0 | G69: 0 | H69: 0 | I69: 0 | J69: 0 | K69: 0 | L69: 0 | M69: 0 | N69: 0 | O69: 0 | P69: 1 | Q69: 0 | R69: 0 | S69: 0 | T69: 0 | U69: 0 | V69: 0 | W69: 0 | X69: 0 | Y69: 0 | Z69: 0 | AA69: 0 | AB69: 0 | AC69: 0.0161032545 | AD69: 0.1261729487 | AE69: 0.0419545316 | AG69: 0.3287240453 | AH69: 0.1215077385 | AI69: =AH69/#REF! ->  | AJ69: 0.9520429334 | AK69: 0 | AL69: 0 | AM69: 0.1276284233 | AN69: 1 | AO69: 0 | AP69: 0 | AQ69: 0 | AR69: 0 | AS69: 0 | AV69: HELAA_sites_with_potential
A70: Garage Block west of Thirlestane, St Albans, AL1 3PE | B70: UC16 | C70: 0.1774691924 | D70: 0.1774691924 | E70: 0 | F70: 0 | G70: 0 | H70: 0 | I70: 0 | J70: 0 | K70: 0 | L70: 0 | M70: 0 | N70: 0 | O70: 0 | P70: 1 | Q70: 0 | R70: 0 | S70: 0 | T70: 0 | U70: 0 | V70: 0 | W70: 0 | X70: 0 | Y70: 0 | Z70: 0 | AA70: 0 | AB70: 0 | AC70: 0 | AD70: 0 | AE70: 0 | AG70: 0 | AH70: 0.0144799744 | AI70: =AH70/#REF! ->  | AJ70: 0.0815914819 | AK70: 0.1774691902 | AL70: 0.9999999876 | AM70: 0 | AN70: 0 | AO70: 0 | AP70: 0 | AQ70: 0 | AR70: 0 | AS70: 0 | AV70: HELAA_sites_with_potential
A71: Garage Block off Tallents Crescent, Harpenden, AL5 5BS | B71: UC52 | C71: 0.095154797 | D71: 0.095154797 | E71: 0 | F71: 0 | G71: 0 | H71: 0 | I71: 0 | J71: 0 | K71: 0 | L71: 0 | M71: 0 | N71: 0 | O71: 0 | P71: 1 | Q71: 0 | R71: 0 | S71: 0 | T71: 0 | U71: 0 | V71: 0 | W71: 0 | X71: 0 | Y71: 0 | Z71: 0 | AA71: 0 | AB71: 0 | AC71: 0 | AD71: 0 | AE71: 0 | AG71: 0 | AH71: 0 | AI71: =AH71/#REF! ->  | AJ71: 0 | AK71: 0 | AL71: 0 | AM71: 0.095154797 | AN71: 1 | AO71: 0 | AP71: 0 | AQ71: 0 | AR71: 0 | AS71: 0 | AV71: HELAA_sites_with_potential
A72: Garage block to west of 32-46 Riverside Road, St Albans, AL1 1SD | B72: UC43 | C72: 0.0604950091 | D72: 0.0604950091 | E72: 0 | F72: 0 | G72: 0 | H72: 0 | I72: 0 | J72: 0 | K72: 0 | L72: 0 | M72: 0 | N72: 0 | O72: 0 | P72: 1 | Q72: 0 | R72: 0 | S72: 0 | T72: 0 | U72: 0 | V72: 0 | W72: 0 | X72: 0 | Y72: 0 | Z72: 0 | AA72: 0 | AB72: 0 | AC72: 0 | AD72: 0 | AE72: 0.0314687187 | AG72: 0.5201870232 | AH72: 0.0536576027 | AI72: =AH72/#REF! ->  | AJ72: 0.8869756943 | AK72: 0 | AL72: 0 | AM72: 0.0604949653 | AN72: 0.999999276 | AO72: 0 | AP72: 0 | AQ72: 0 | AR72: 0 | AS72: 0 | AV72: HELAA_sites_with_potential
A73: Garage block to front of 94-142 Riverside Road, Riverside Road, St Albans, AL1 1SE | B73: UC18 | C73: 0.1444709811 | D73: 0.1444709811 | E73: 0 | F73: 0 | G73: 0 | H73: 0 | I73: 0 | J73: 0 | K73: 0 | L73: 0 | M73: 0 | N73: 0 | O73: 0 | P73: 1 | Q73: 0 | R73: 0 | S73: 0 | T73: 0 | U73: 0 | V73: 0 | W73: 0 | X73: 0 | Y73: 0 | Z73: 0 | AA73: 0 | AB73: 0 | AC73: 0 | AD73: 0 | AE73: 0 | AG73: 0 | AH73: 0 | AI73: =AH73/#REF! ->  | AJ73: 0 | AK73: 0 | AL73: 0 | AM73: 0.1444709811 | AN73: 1 | AO73: 0 | AP73: 0 | AQ73: 0 | AR73: 0 | AS73: 0 | AV73: HELAA_sites_with_potential
A74: Garage block to rear of 27-32 St Pauls Place, St Pauls Place, St Albans, AL1 4JW | B74: UC38 | C74: 0.122876225 | D74: 0.122876225 | E74: 0 | F74: 0 | G74: 0 | H74: 0 | I74: 0 | J74: 0 | K74: 0 | L74: 0 | M74: 0 | N74: 0 | O74: 0 | P74: 1 | Q74: 0 | R74: 0 | S74: 0 | T74: 0 | U74: 0 | V74: 0 | W74: 0 | X74: 0 | Y74: 0 | Z74: 0 | AA74: 0 | AB74: 0 | AC74: 0 | AD74: 0 | AE74: 0 | AG74: 0 | AH74: 0.0004252749 | AI74: =AH74/#REF! ->  | AJ74: 0.003461002322 | AK74: 0.122876225 | AL74: 1 | AM74: 0 | AN74: 0 | AO74: 0 | AP74: 0 | AQ74: 0 | AR74: 0 | AS74: 0 | AV74: HELAA_sites_with_potential
A75: Garage Block off Millford Hill, Harpenden, AL5 5BN | B75: UC44 | C75: 0.0741702024 | D75: 0.0741702024 | E75: 0 | F75: 0 | G75: 0 | H75: 0 | I75: 0 | J75: 0 | K75: 0 | L75: 0 | M75: 0 | N75: 0 | O75: 0 | P75: 1 | Q75: 0 | R75: =ROUND(T75,2) -> 0 | S75: =Q75/D75 -> 0 | T75: 0 | U75: =ROUND(Q75,2) -> 0 | V75: =T75/D75 -> 0 | W75: 0 | X75: 0 | Y75: 0 | Z75: 0 | AA75: 0 | AB75: 0 | AC75: 0 | AD75: 0 | AE75: 0 | AG75: 0 | AH75: 0 | AI75: =AH75/#REF! ->  | AJ75: 0 | AK75: 0.0741702024 | AL75: 1 | AM75: 0 | AN75: 0 | AO75: 0 | AP75: 0 | AQ75: 0 | AR75: 0 | AS75: 0 | AV75: HELAA_sites_with_potential
A76: Garage Site adj. Verulam House, Verulam Road, St Albans, AL3 5EN | B76: UC23 | C76: 0.1288112184 | D76: 0.1288112184 | E76: 0 | F76: 0 | G76: 0 | H76: 0 | I76: 0 | J76: 0 | K76: 0 | L76: 0 | M76: 0 | N76: 0 | O76: 0 | P76: 1 | Q76: 0 | R76: =ROUND(Q76,2) -> 0 | S76: =R76/D76 -> 0 | T76: 0 | U76: =ROUND(T76,2) -> 0 | V76: =U76/D76 -> 0 | W76: 0 | X76: 0 | Y76: 0 | Z76: 0 | AA76: 0 | AB76: 0 | AC76: 0 | AD76: 0 | AE76: 0.00665303 | AG76: 0.05164946099 | AH76: 0.038770727 | AI76: =AH76/#REF! ->  | AJ76: 0.3009887452 | AK76: 0.1288112184 | AL76: 1 | AM76: 0 | AN76: 0 | AO76: 0 | AP76: 0 | AQ76: 0 | AR76: 0 | AS76: 0 | AV76: HELAA_sites_with_potential
A77: Garage Block off Cotlandswick, London Colney, AL2 1ED | B77: UC17 | C77: 0.1136766407 | D77: 0.1136766407 | E77: 0 | F77: 0 | G77: 0 | H77: 0 | I77: 0 | J77: 0 | K77: 0 | L77: 0 | M77: 0 | N77: 0 | O77: 0 | P77: 1 | Q77: 0 | R77: 0 | S77: 0 | T77: 0 | U77: 0 | V77: 0 | W77: 0 | X77: 0 | Y77: 0 | Z77: 0 | AA77: 0 | AB77: 0 | AC77: 0 | AD77: 0 | AE77: 0.0111939455 | AG77: 0.09847181823 | AH77: 0.0653645304 | AI77: =AH77/#REF! ->  | AJ77: 0.5750040641 | AK77: 0 | AL77: 0 | AM77: 0.0263427984 | AN77: 0.2317344904 | AO77: 0.0873338429 | AP77: 0.7682655149 | AQ77: 0 | AR77: 0 | AS77: 0.7682655149 | AV77: HELAA_sites_with_potential
A78: Garages off Creighton Avenue, St Albans, AL1 2LZ | B78: UC31 | C78: 0.1398521539 | D78: 0.1398521539 | E78: 0 | F78: 0 | G78: 0 | H78: 0 | I78: 0 | J78: 0 | K78: 0 | L78: 0 | M78: 0 | N78: 0 | O78: 0 | P78: 1 | Q78: 0 | R78: 0 | S78: 0 | T78: 0 | U78: 0 | V78: 0 | W78: 0 | X78: 0 | Y78: 0 | Z78: 0 | AA78: 0 | AB78: 0 | AC78: 0 | AD78: 0 | AE78: 0.02 | AG78: 0.1430081657 | AH78: 0.0514275531 | AI78: =AH78/#REF! ->  | AJ78: 0.3677280018 | AK78: 0.1398521539 | AL78: 1 | AM78: 0 | AN78: 0 | AO78: 0 | AP78: 0 | AQ78: 0 | AR78: 0 | AS78: 0 | AV78: HELAA_sites_with_potential
A79: Garages off Watling View (West), St Albans, AL1 2PA | B79: UC45 | C79: 0.1074331982 | D79: 0.1074331982 | E79: 0 | F79: 0 | G79: 0 | H79: 0 | I79: 0 | J79: 0 | K79: 0 | L79: 0 | M79: 0 | N79: 0 | O79: 0 | P79: 1 | Q79: 0 | R79: 0 | S79: 0 | T79: 0 | U79: 0 | V79: 0 | W79: 0 | X79: 0 | Y79: 0 | Z79: 0 | AA79: 0 | AB79: 0 | AC79: 0 | AD79: 0 | AE79: 0 | AG79: 0 | AH79: 0.0302830355 | AI79: =AH79/#REF! ->  | AJ79: 0.2818778181 | AK79: 0.1074331982 | AL79: 1 | AM79: 0 | AN79: 0 | AO79: 0 | AP79: 0 | AQ79: 0 | AR79: 0 | AS79: 0 | AV79: HELAA_sites_with_potential
A80: Garages Between Abbotts Avenue West and Abbey Line, St Albans, AL1 2JH | B80: UC30 | C80: 0.1443696475 | D80: 0.1443696475 | E80: 0 | F80: 0 | G80: 0 | H80: 0 | I80: 0 | J80: 0 | K80: 0 | L80: 0 | M80: 0 | N80: 0 | O80: 0 | P80: 1 | Q80: 0 | R80: 0 | S80: 0 | T80: 0 | U80: 0 | V80: 0 | W80: 0 | X80: 0 | Y80: 0 | Z80: 0 | AA80: 0 | AB80: 0 | AC80: 0 | AD80: 0 | AE80: 0 | AG80: 0 | AH80: 0.0058931341 | AI80: =AH80/#REF! ->  | AJ80: 0.04081975818 | AK80: 0.1443696475 | AL80: 1 | AM80: 0 | AN80: 0 | AO80: 0 | AP80: 0 | AQ80: 0 | AR80: 0 | AS80: 0 | AV80: HELAA_sites_with_potential
A81: Garages off Thirlmere Drive, St Albans, AL1 5QS | B81: UC42 | C81: 0.1376645243 | D81: 0.1376645243 | E81: 0 | F81: 0 | G81: 0 | H81: 0 | I81: 0 | J81: 0 | K81: 0 | L81: 0 | M81: 0 | N81: 0 | O81: 0 | P81: 1 | Q81: 0 | R81: 0 | S81: 0 | T81: 0 | U81: 0 | V81: 0 | W81: 0 | X81: 0 | Y81: 0 | Z81: 0 | AA81: 0 | AB81: 0 | AC81: 0 | AD81: 0 | AE81: 0 | AG81: 0 | AH81: 0.000875948 | AI81: =AH81/#REF! ->  | AJ81: 0.006362917422 | AK81: 0 | AL81: 0 | AM81: 0 | AN81: 0 | AO81: 0 | AP81: 0 | AQ81: 0 | AR81: 0 | AS81: 0 | AV81: HELAA_sites_with_potential
A82: Garage Block off Noke Shot, Harpenden, AL5 5HS | B82: UC29 | C82: 0.1610634251 | D82: 0.1610634251 | E82: 0 | F82: 0 | G82: 0 | H82: 0 | I82: 0 | J82: 0 | K82: 0 | L82: 0 | M82: 0 | N82: 0 | O82: 0 | P82: 1 | Q82: 0 | R82: 0 | S82: 0 | T82: 0 | U82: 0 | V82: 0 | W82: 0 | X82: 0 | Y82: 0 | Z82: 0 | AA82: 0 | AB82: 0 | AC82: 0 | AD82: 0 | AE82: 0 | AG82: 0 | AH82: 0 | AI82: =AH82/#REF! ->  | AJ82: 0 | AK82: 0.1610634251 | AL82: 1 | AM82: 0 | AN82: 0 | AO82: 0 | AP82: 0 | AQ82: 0 | AR82: 0 | AS82: 0 | AV82: HELAA_sites_with_potential
A83: Land Rear of 53 Snatchup, Redbourn, AL3 7HF | B83: UC33 | C83: 0.1641322395 | D83: 0.1641322395 | E83: 0 | F83: 0 | G83: 0 | H83: 0 | I83: 0 | J83: 0 | K83: 0 | L83: 0 | M83: 0 | N83: 0 | O83: 0 | P83: 1 | Q83: 0 | R83: 0 | S83: 0 | T83: 0 | U83: 0 | V83: 0 | W83: 0 | X83: 0 | Y83: 0 | Z83: 0 | AA83: 0 | AB83: 0 | AC83: 0 | AD83: 0 | AE83: 0 | AG83: 0 | AH83: 0.0004339086 | AI83: =AH83/#REF! ->  | AJ83: 0.002643652468 | AK83: 0 | AL83: 0 | AM83: 0.1641322395 | AN83: 1 | AO83: 0 | AP83: 0 | AQ83: 0 | AR83: 0 | AS83: 0 | AV83: HELAA_sites_with_potential
A84: Garage Block to Malvern Close, St Albans, AL4 9SZ | B84: UC26 | C84: 0.132368438 | D84: 0.132368438 | E84: 0 | F84: 0 | G84: 0 | H84: 0 | I84: 0 | J84: 0 | K84: 0 | L84: 0 | M84: 0 | N84: 0 | O84: 0 | P84: 1 | Q84: 0 | R84: 0 | S84: 0 | T84: 0 | U84: 0 | V84: 0 | W84: 0 | X84: 0 | Y84: 0 | Z84: 0 | AA84: 0 | AB84: 0 | AC84: 0 | AD84: 0 | AE84: 0 | AG84: 0 | AH84: 0 | AI84: =AH84/#REF! ->  | AJ84: 0 | AK84: 0 | AL84: 0 | AM84: 0 | AN84: 0 | AO84: 0.132368438 | AP84: 1 | AQ84: 0 | AR84: 0 | AS84: 1 | AV84: HELAA_sites_with_potential
A85: Garages off Chapel Place, St Albans, AL1 2JZ | B85: UC21 | C85: 0.2282226003 | D85: 0.2282226003 | E85: 0 | F85: 0 | G85: 0 | H85: 0 | I85: 0 | J85: 0 | K85: 0 | L85: 0 | M85: 0 | N85: 0 | O85: 0 | P85: 1 | Q85: 0 | R85: 0 | S85: 0 | T85: 0 | U85: 0 | V85: 0 | W85: 0 | X85: 0 | Y85: 0 | Z85: 0 | AA85: 0 | AB85: 0 | AC85: 0 | AD85: 0 | AE85: 0 | AG85: 0 | AH85: 0.0050622843 | AI85: =AH85/#REF! ->  | AJ85: 0.02218134529 | AK85: 0.2282226003 | AL85: 1 | AM85: 0 | AN85: 0 | AO85: 0 | AP85: 0 | AQ85: 0 | AR85: 0 | AS85: 0 | AV85: HELAA_sites_with_potential
A86: Garages at Grindcobbe, St Albans, AL1 2ED | B86: UC41 | C86: 0.1204110515 | D86: 0.1204110515 | E86: 0 | F86: 0 | G86: 0 | H86: 0 | I86: 0 | J86: 0 | K86: 0 | L86: 0 | M86: 0 | N86: 0 | O86: 0 | P86: 1 | Q86: 0 | R86: 0 | S86: 0 | T86: 0 | U86: 0 | V86: 0 | W86: 0 | X86: 0 | Y86: 0 | Z86: 0 | AA86: 0 | AB86: 0 | AC86: 0 | AD86: 0 | AE86: 0.0065626746 | AG86: 0.05450226136 | AH86: 0.0180951326 | AI86: =AH86/#REF! ->  | AJ86: 0.150278005 | AK86: 0 | AL86: 0 | AM86: 0.1204110515 | AN86: 1 | AO86: 0 | AP86: 0 | AQ86: 0 | AR86: 0 | AS86: 0 | AV86: HELAA_sites_with_potential
A87: Garages Rear of Hill End Lane (South), St Albans, AL4 0AE | B87: UC34 | C87: 0.1858515264 | D87: 0.1858515264 | E87: 0 | F87: 0 | G87: 0 | H87: 0 | I87: 0 | J87: 0 | K87: 0 | L87: 0 | M87: 0 | N87: 0 | O87: 0 | P87: 1 | Q87: 0 | R87: 0 | S87: 0 | T87: 0 | U87: 0 | V87: 0 | W87: 0 | X87: 0 | Y87: 0 | Z87: 0 | AA87: 0 | AB87: 0 | AC87: 0 | AD87: 0 | AE87: 0 | AG87: 0 | AH87: 0.0174370844 | AI87: =AH87/#REF! ->  | AJ87: 0.09382265908 | AK87: 0 | AL87: 0 | AM87: 0 | AN87: 0 | AO87: 0 | AP87: 0 | AQ87: 0 | AR87: 0 | AS87: 0 | AV87: HELAA_sites_with_potential
A88: Garages Rear of Hill End Lane (North), St Albans, AL4 0AE | B88: UC24 | C88: 0.2076703542 | D88: 0.2076703542 | E88: 0 | F88: 0 | G88: 0 | H88: 0 | I88: 0 | J88: 0 | K88: 0 | L88: 0 | M88: 0 | N88: 0 | O88: 0 | P88: 1 | Q88: 0 | R88: 0 | S88: 0 | T88: 0 | U88: 0 | V88: 0 | W88: 0 | X88: 0 | Y88: 0 | Z88: 0 | AA88: 0 | AB88: 0 | AC88: 0.0601840835 | AD88: 0.2898058499 | AE88: 0.0851273255 | AG88: 0.4099156369 | AH88: 0.1271453265 | AI88: =AH88/#REF! ->  | AJ88: 0.6122459173 | AK88: 0 | AL88: 0 | AM88: 0 | AN88: 0 | AO88: 0 | AP88: 0 | AQ88: 0 | AR88: 0 | AS88: 0 | AV88: HELAA_sites_with_potential
A89: Garages rear of Tudor Road, St Albans, AL3 6AY | B89: UC31 | C89: 0.1714576728 | D89: 0.1714576728 | E89: 0 | F89: 0 | G89: 0 | H89: 0 | I89: 0 | J89: 0 | K89: 0 | L89: 0 | M89: 0 | N89: 0 | O89: 0 | P89: 1 | Q89: 0 | R89: 0 | S89: 0 | T89: 0 | U89: 0 | V89: 0 | W89: 0 | X89: 0 | Y89: 0 | Z89: 0 | AA89: 0 | AB89: 0 | AC89: 0 | AD89: 0 | AE89: 0 | AG89: 0 | AH89: 0 | AI89: =AH89/#REF! ->  | AJ89: 0 | AK89: 0.1714576728 | AL89: 1 | AM89: 0 | AN89: 0 | AO89: 0 | AP89: 0 | AQ89: 0 | AR89: 0 | AS89: 0 | AV89: HELAA_sites_with_potential
A90: Garages off Park Street Lane, Park Street, AL2 2ND | B90: UC36 | C90: 0.1286785731 | D90: 0.1286785731 | E90: 0 | F90: 0 | G90: 0 | H90: 0 | I90: 0 | J90: 0 | K90: 0 | L90: 0 | M90: 0 | N90: 0 | O90: 0 | P90: 1 | Q90: 0 | R90: 0 | S90: 0 | T90: 0 | U90: 0 | V90: 0 | W90: 0 | X90: 0 | Y90: 0 | Z90: 0 | AA90: 0 | AB90: 0 | AC90: 0 | AD90: 0 | AE90: 0.025719679 | AG90: 0.1998753824 | AH90: 0.0556652066 | AI90: =AH90/#REF! ->  | AJ90: 0.4325911087 | AK90: 0 | AL90: 0 | AM90: 0.1286785731 | AN90: 1 | AO90: 0 | AP90: 0 | AQ90: 0 | AR90: 0 | AS90: 0 | AV90: HELAA_sites_with_potential
A91: Garage Block rear of 18-30 Furse Avenue, St Albans, AL4 9NE | B91: UC49 | C91: 0.1188436043 | D91: 0.1188436043 | E91: 0 | F91: 0 | G91: 0 | H91: 0 | I91: 0 | J91: 0 | K91: 0 | L91: 0 | M91: 0 | N91: 0 | O91: 0 | P91: 1 | Q91: 0 | R91: 0 | S91: 0 | T91: 0 | U91: 0 | V91: 0 | W91: 0 | X91: 0 | Y91: 0 | Z91: 0 | AA91: 0 | AB91: 0 | AC91: 0 | AD91: 0 | AE91: 0 | AG91: 0 | AH91: 0.0001158562 | AI91: =AH91/#REF! ->  | AJ91: 0.0009748627255 | AK91: 0 | AL91: 0 | AM91: 0 | AN91: 0 | AO91: 0.1188436043 | AP91: 1 | AQ91: 0 | AR91: 0 | AS91: 1 | AV91: HELAA_sites_with_potential
A92: Garages off Watling View (East), St Albans, AL1 2NT | B92: UC37 | C92: 0.1378371091 | D92: 0.1378371091 | E92: 0 | F92: 0 | G92: 0 | H92: 0 | I92: 0 | J92: 0 | K92: 0 | L92: 0 | M92: 0 | N92: 0 | O92: 0 | P92: 1 | Q92: 0 | R92: 0 | S92: 0 | T92: 0 | U92: 0 | V92: 0 | W92: 0 | X92: 0 | Y92: 0 | Z92: 0 | AA92: 0 | AB92: 0 | AC92: 0 | AD92: 0 | AE92: 0 | AG92: 0 | AH92: 0.0208440862 | AI92: =AH92/#REF! ->  | AJ92: 0.1512226013 | AK92: 0.1378371669 | AL92: 1.000000419 | AM92: 0 | AN92: 0 | AO92: 0 | AP92: 0 | AQ92: 0 | AR92: 0 | AS92: 0 | AV92: HELAA_sites_with_potential
A93: Car Park to rear of 77-101 Hatfield Road, Hatfield Road, St Albans, AL1 4JL | B93: UC22 | C93: 0.1010167572 | D93: 0.1010167572 | E93: 0 | F93: 0 | G93: 0 | H93: 0 | I93: 0 | J93: 0 | K93: 0 | L93: 0 | M93: 0 | N93: 0 | O93: 0 | P93: 1 | Q93: 0 | R93: 0 | S93: 0 | T93: 0 | U93: 0 | V93: 0 | W93: 0 | X93: 0 | Y93: 0 | Z93: 0 | AA93: 0 | AB93: 0 | AC93: 0 | AD93: 0 | AE93: 0 | AG93: 0 | AH93: 8.20111e-05 | AI93: =AH93/#REF! ->  | AJ93: 0.0008118563917 | AK93: 0.1010167572 | AL93: 1 | AM93: 0 | AN93: 0 | AO93: 0 | AP93: 0 | AQ93: 0 | AR93: 0 | AS93: 0 | AV93: HELAA_sites_with_potential
A94: Bowers Way East Car Park Bowers Way, Harpenden, AL5 4EQ | B94: UC15 | C94: 0.4139247252 | D94: 0.4139247252 | E94: 0 | F94: 0 | G94: 0 | H94: 0 | I94: 0 | J94: 0 | K94: 0 | L94: 0 | M94: 0 | N94: 0 | O94: 0 | P94: 1 | Q94: 0 | R94: 0 | S94: 0 | T94: 0 | U94: 0 | V94: 0 | W94: 0 | X94: 0 | Y94: 0 | Z94: 0 | AA94: 0 | AB94: 0 | AC94: 0 | AD94: 0 | AE94: 0 | AG94: 0 | AH94: 0 | AI94: =AH94/#REF! ->  | AJ94: 0 | AK94: 0.4139247252 | AL94: 1 | AM94: 0 | AN94: 0 | AO94: 0 | AP94: 0 | AQ94: 0 | AR94: 0 | AS94: 0 | AV94: HELAA_sites_with_potential
A95: Civic Close Car Park Bricket Road, St Albans, AL1 3JX | B95: UC2 | C95: 0.4533859432 | D95: 0.4533859432 | E95: 0 | F95: 0 | G95: 0 | H95: 0 | I95: 0 | J95: 0 | K95: 0 | L95: 0 | M95: 0 | N95: 0 | O95: 0 | P95: 1 | Q95: 0 | R95: 0 | S95: 0 | T95: 0 | U95: 0 | V95: 0 | W95: 0 | X95: 0 | Y95: 0 | Z95: 0 | AA95: 0 | AB95: 0 | AC95: 0 | AD95: 0 | AE95: 0 | AG95: 0 | AH95: 0.0096138273 | AI95: =AH95/#REF! ->  | AJ95: 0.02120451118 | AK95: 0.4533859432 | AL95: 1 | AM95: 0 | AN95: 0 | AO95: 0 | AP95: 0 | AQ95: 0 | AR95: 0 | AS95: 0 | AV95: HELAA_sites_with_potential
A96: Market Depot, Drovers Way, St Albans, AL3 5FA | B96: UC35 | C96: 0.0727491961 | D96: 0.0727491961 | E96: 0 | F96: 0 | G96: 0 | H96: 0 | I96: 0 | J96: 0 | K96: 0 | L96: 0 | M96: 0 | N96: 0 | O96: 0 | P96: 1 | Q96: 0 | R96: 0 | S96: 0 | T96: 0 | U96: 0 | V96: 0 | W96: 0 | X96: 0 | Y96: 0 | Z96: 0 | AA96: 0 | AB96: 0 | AC96: 2.03841e-05 | AD96: 0.0002801969107 | AE96: 2.03841e-05 | AG96: 0.0002801969107 | AH96: 0.0003102188 | AI96: =AH96/#REF! ->  | AJ96: 0.004264223065 | AK96: 0.0727491961 | AL96: 1 | AM96: 0 | AN96: 0 | AO96: 0 | AP96: 0 | AQ96: 0 | AR96: 0 | AS96: 0 | AV96: HELAA_sites_with_potential
A97: Keyfield Terrace Car Park, Keyfield Terrace, St Albans, AL1 1PD | B97: UC9 | C97: 0.2479526099 | D97: 0.2479526099 | E97: 0 | F97: 0 | G97: 0 | H97: 0 | I97: 0 | J97: 0 | K97: 0 | L97: 0 | M97: 0 | N97: 0 | O97: 0 | P97: 1 | Q97: 0 | R97: 0 | S97: 0 | T97: 0 | U97: 0 | V97: 0 | W97: 0 | X97: 0 | Y97: 0 | Z97: 0 | AA97: 0 | AB97: 0 | AC97: 0 | AD97: =AC97/D97 -> 0 | AE97: 6.88576e-05 | AG97: =AE97/D97 -> 0.0002777046792 | AH97: 0.004668165 | AI97: =AH97/#REF! ->  | AJ97: =AH97/D97 -> 0.01882684357 | AK97: 0.1985074798 | AL97: =(AK97/D97) -> 0.8005863696 | AM97: 0.0494450811 | AN97: =(AM97/D97) -> 0.1994134328 | AO97: 0 | AP97: =(AO97/D97) -> 0 | AQ97: 0 | AR97: =(AQ97/D97) -> 0 | AS97: 0 | AV97: HELAA_sites_with_potential
A98: Public Hall, 6 Southdown Road, Harpenden, AL5 1TE | B98: UC8 | C98: 0.263656473 | D98: 0.263656473 | E98: 0 | F98: 0 | G98: 0 | H98: 0 | I98: 0 | J98: 0 | K98: 0 | L98: 0 | M98: 0 | N98: 0 | O98: 0 | P98: 1 | Q98: 0 | R98: 0 | S98: 0 | T98: 0 | U98: 0 | V98: 0 | W98: 0 | X98: 0 | Y98: 0 | Z98: 0 | AA98: 0 | AB98: 0 | AC98: 0.0188932036 | AD98: 0.07165840984 | AE98: 0.0428090481 | AG98: 0.1623667631 | AH98: 0.1024304351 | AI98: =AH98/#REF! ->  | AJ98: 0.388499603 | AK98: 0 | AL98: 0 | AM98: 0.263656473 | AN98: 1 | AO98: 0 | AP98: 0 | AQ98: 0 | AR98: 0 | AS98: 0 | AV98: HELAA_sites_with_potential
A99: Car Park adjacent to Verulam House, Verulam Road, St Albans, AL3 5EN | B99: UC13 | C99: 0.2216743936 | D99: 0.2216743936 | E99: 0 | F99: 0 | G99: 0 | H99: 0 | I99: 0 | J99: 0 | K99: 0 | L99: 0 | M99: 0 | N99: 0 | O99: 0 | P99: 1 | Q99: 0 | R99: 0 | S99: 0 | T99: 0 | U99: 0 | V99: 0 | W99: 0 | X99: 0 | Y99: 0 | Z99: 0 | AA99: 0 | AB99: 0 | AC99: 0 | AD99: 0 | AE99: 0 | AG99: 0 | AH99: 0.0160643576 | AI99: =AH99/#REF! ->  | AJ99: 0.07246826004 | AK99: 0.2216743936 | AL99: 1 | AM99: 0 | AN99: 0 | AO99: 0 | AP99: 0 | AQ99: 0 | AR99: 0 | AS99: 0 | AV99: HELAA_sites_with_potential
A100: London Road Car Park, London Road, St Albans, AL1 1NG | B100: UC3 | C100: 0.5728307419 | D100: 0.5728307419 | E100: 0 | F100: 0 | G100: 0 | H100: 0 | I100: 0 | J100: 0 | K100: 0 | L100: 0 | M100: 0 | N100: 0 | O100: 0 | P100: 1 | Q100: 0 | R100: 0 | S100: 0 | T100: 0 | U100: 0 | V100: 0 | W100: 0 | X100: 0 | Y100: 0 | Z100: 0 | AA100: 0 | AB100: 0 | AC100: 0 | AD100: 0 | AE100: 0 | AG100: 0 | AH100: 0 | AI100: =AH100/#REF! ->  | AJ100: 0 | AK100: 0.5728307419 | AL100: 1 | AM100: 0 | AN100: 0 | AO100: 0 | AP100: 0 | AQ100: 0 | AR100: 0 | AS100: 0 | AV100: HELAA_sites_with_potential
A101: Southview Car Park, Lower Luton Road, Harpenden, AL5 5AW | B101: UC10 | C101: 0.0971849875 | D101: 0.0971849875 | E101: 0 | F101: 0 | G101: 0 | H101: 0 | I101: 0 | J101: 0 | K101: 0 | L101: 0 | M101: 0 | N101: 0 | O101: 0 | P101: 1 | Q101: 0 | R101: 0 | S101: 0 | T101: 0 | U101: 0 | V101: 0 | W101: 0 | X101: 0 | Y101: 0.0141354734 | Z101: 0.1454491456 | AA101: 0 | AB101: 0 | AC101: 0 | AD101: 0 | AE101: 0 | AG101: 0 | AH101: 0.0005663472 | AI101: =AH101/#REF! ->  | AJ101: 0.005827517342 | AK101: 0 | AL101: 0 | AM101: 0.0971849875 | AN101: 1 | AO101: 0 | AP101: 0 | AQ101: 0 | AR101: 0 | AS101: 0 | AV101: HELAA_sites_with_potential
A102: Sainsbury’s Supermarket, Everard Close, St Albans AL1 2QU | B102: UC1 | C102: 2.446510842 | D102: 2.446510842 | E102: 0 | F102: 0 | G102: 0 | H102: 0 | I102: 0 | J102: 0 | K102: 0 | L102: 0 | M102: 0 | N102: 0 | O102: 0 | P102: 1 | Q102: 0 | R102: 0 | S102: 0 | T102: 0 | U102: 0 | V102: 0 | W102: 0 | X102: 0 | Y102: 0 | Z102: 0 | AA102: 0 | AB102: 0 | AC102: 0.012 | AD102: 0.004904944541 | AE102: 0.0520433165 | AG102: 0.0212724651 | AH102: 0.1462451121 | AI102: =AH102/#REF! ->  | AJ102: 0.05977701369 | AK102: 0 | AL102: 0 | AM102: 2.446510842 | AN102: 1 | AO102: 0 | AP102: 0 | AQ102: 0 | AR102: 0 | AS102: 0 | AV102: HELAA_sites_with_potential
A103: New Greens Residents Association, 2 High Oaks, St Albans, AL3 6DL | B103: UC28 | C103: 0.2049581185 | D103: 0.2049581185 | E103: 0 | F103: 0 | G103: 0 | H103: 0 | I103: 0 | J103: 0 | K103: 0 | L103: 0 | M103: 0 | N103: 0 | O103: 0 | P103: 1 | Q103: 0 | R103: 0 | S103: 0 | T103: 0 | U103: 0 | V103: 0 | W103: 0 | X103: 0 | Y103: 0 | Z103: 0 | AA103: 0 | AB103: 0 | AC103: 0 | AD103: 0 | AE103: 0 | AG103: 0 | AH103: 0.012 | AI103: =AH103/#REF! ->  | AJ103: 0.05854854683 | AK103: 0.1490945083 | AL103: 0.7274389002 | AM103: 0 | AN103: 0 | AO103: 0 | AP103: 0 | AQ103: 0 | AR103: 0 | AS103: 0 | AV103: HELAA_sites_with_potential

Sheet Sites
A1: Site_code | B1: Site_name | C1: Area_ha | D1: Settlement | E1: Parish | F1: Proposed use | G1: Former use | H1: Deliverabilty | I1: Core Strategy Spatial Policy Area | J1: FrismID * | K1: Shape_Area_m2 | L1: Shape_Area_Ha | M1: Shapefile
A2: OS2 | B2: Toulmin Drive/Highelms, St Albans, AL3 6DX | C2: 0.1933819768 | F2: Community Facility | H2: Not developable within the next 15 years | J2: F-1 | K2: 1933.819768 | L2: =K2/10000 -> 0.1933819768 | M2: HELAA_Sites_Not_Deliverable
A3: OS1 | B3: Land to the North of Bricket Wood, bounded by the M25 and A405 North Orbital | C3: 6.523311178 | F3: Community Facilites | H3: Not developable within the next 15 years | J3: F-2 | K3: 65233.11178 | L3: 6.523311178 | M3: HELAA_Sites_Not_Deliverable
A4: B3 | B4: West Redbourn, Redbourne, AL3 7HZ | C4: 27.01710883 | F4: Residential | H4: Not developable within the next 15 years | J4: F-4 | K4: 270171.0883 | L4: 27.01710883 | M4: HELAA_Sites_Not_Deliverable
A5: H3 | B5: East Hemel Hempstead (Central), HP2 7LF | C5: 143.6795962 | F5: Employment Led Mixed Use (Enterprise Zone) | H5: Potentially developable in part | J5: F-5 | K5: 1436795.962 | L5: 143.6795962 | M5: HELAA_sites_with_potential
A6: H4 | B6: East Hemel Hempstead (South), HP2 4PA4 | C6: 57.42012606 | F6: Residential | H6: Potentially developable in part | J6: F-103 | K6: 574201.2606 | L6: 57.42012606 | M6: HELAA_sites_with_potential
A7: M25 | B7: Baulk Close, Harpenden, AL5 4LY | C7: 0.5556210068 | F7: Residential | H7: Not developable within the next 15 years | J7: F-6 | K7: 5556.210068 | L7: 0.5556210068 | M7: HELAA_Sites_Not_Deliverable
A8: M6 | B8: South of Harpenden Lane, Redbourn, AL3 7RQ | C8: 12.5641162 | F8: Residential | H8: Potentially developable | J8: F-7 | K8: 125641.162 | L8: 12.5641162 | M8: HELAA_sites_with_potential
A9: M16 | B9: Falconers Field, Harpenden, AL5 3ES | C9: 1.158099771 | F9: Residential | H9: Potentially developable in part | J9: F-8 | K9: 11580.99771 | L9: 1.158099771 | M9: HELAA_sites_with_potential
A10: M7 | B10: Townsend Lane, Harpenden, AL5 2RH | C10: 1.882815649 | F10: Residential | H10: Potentially developable | J10: F-9 | K10: 18828.15649 | L10: 1.882815649 | M10: HELAA_sites_with_potential
A11: M22 | B11: Wood End, Hatching Green, Harpenden, AL5 2JT | C11: 0.7680843754 | F11: Residential | H11: Not developable within the next 15 years | J11: F-10 | K11: 7680.843754 | L11: 0.7680843754 | M11: HELAA_Sites_Not_Deliverable
A12: M21 | B12: Rothamsted Lodge, Hatching Green, AL5 2GT | C12: 1.929774895 | F12: Residential | H12: Not developable within the next 15 years | J12: F-11 | K12: 19297.74895 | L12: 1.929774895 | M12: HELAA_Sites_Not_Deliverable
A13: M1 a | B13: Cross Lane, Harpenden, AL5 1BX | C13: 6.471048076 | F13: Residential | H13: Not developable within the next 15 years | J13: F-12 | K13: 64710.48076 | L13: 6.471048076 | M13: HELAA_Sites_Not_Deliverable
A14: M5 | B14: Sewage Treatment Works, Piggottshill Lane, Harpenden, AL5 5UN | C14: 4.099547299 | F14: Residential | H14: Not developable within the next 15 years | J14: F-13 | K14: 40995.47299 | L14: 4.099547299 | M14: HELAA_Sites_Not_Deliverable
A15: M19 | B15: Piggotshill Lane, Harpenden, AL5 5UN | C15: 0.8630104658 | F15: Residential | H15: Not developable within the next 15 years | J15: F-14 | K15: 8630.104658 | L15: 0.8630104658 | M15: HELAA_Sites_Not_Deliverable
A16: M24 | B16: South of Codicote Road, Wheathampstead, AL4 8GD | C16: 1.003952653 | F16: Residential | H16: Potentially developable | J16: F-15 | K16: 10039.52653 | L16: 1.003952653 | M16: HELAA_sites_with_potential
A17: M2 | B17: Hill Dyke Road, Wheathampstead, AL4 8TR | C17: 3.553843984 | F17: Residential | H17: Not developable within the next 15 years | J17: F-16 | K17: 35538.43984 | L17: 3.553843984 | M17: HELAA_Sites_Not_Deliverable
A18: M26 | B18: Highway Chipping Depot, Lower Luton Roa, AL4 8JJ | C18: 0.3392220089 | F18: Residential | H18: Potentially developable | J18: F-17 | K18: 3392.220089 | L18: 0.3392220089 | M18: HELAA_sites_with_potential
A19: M17 | B19: North of Wheathampstead Road, Harpenden, AL5 1 Ab | C19: 2.258856501 | F19: Residential | H19: Not developable within the next 15 years | J19: F-18 | K19: 22588.56501 | L19: 2.258856501 | M19: HELAA_Sites_Not_Deliverable
A20: M20 | B20: Lower Luton Road, Harpenden, AL5 5AF | C20: 0.7358806713 | F20: Residential | H20: Potentially developable in part | J20: F-19 | K20: 7358.806713 | L20: 0.7358806713 | M20: HELAA_sites_with_potential
A21: M4 | B21: North of Oakwood Road, Bricket Wood, AL2 3PT | C21: 3.06806946 | F21: Residential | H21: Not developable within the next 15 years | J21: F-20 | K21: 30680.6946 | L21: 3.06806946 | M21: HELAA_Sites_Not_Deliverable
A22: M15 | B22: Bucknalls Drive, Bricket Wood, AL2 3YT | C22: 1.275842016 | F22: Residential | H22: Potentially developable | J22: F-21 | K22: 12758.42016 | L22: 1.275842016 | M22: HELAA_sites_with_potential
A23: M1 | B23: East and West of Miriam Lane, Chiswell Green, AL2 3NY | C23: 4.076470062 | F23: Residential | H23: Potentially developable | J23: F-22 | K23: 40764.70062 | L23: 4.076470062 | M23: HELAA_sites_with_potential
A24: M3 | B24: Bedmond Lane, St Albans, AL3 4AH | C24: 5.835531346 | F24: Residential | H24: Potentially developable | J24: F-23 | K24: 58355.31346 | L24: 5.835531346 | M24: HELAA_sites_with_potential
A25: M10 | B25: Tippendell Lane and Orchard Drive, How Wood, AL2 2HJ | C25: 2.319484313 | F25: Residential | H25: Potentially developable | J25: F-24 | K25: 23194.84313 | L25: 2.319484313 | M25: HELAA_sites_with_potential
A26: L2 | B26: West of Watling Street, Park Street, AL2 2PZ | C26: 4.326761516 | F26: Residential | H26: Not developable within the next 15 years | J26: F-25 | K26: 43267.61515 | L26: 4.326761516 | M26: HELAA_Sites_Not_Deliverable
A27: M27 | B27: Frogmore Vicarage, Frogmore, AL2 2JU | C27: 1.060751475 | F27: Residential | H27: Not developable within the next 15 years | J27: F-26 | K27: 10607.51475 | L27: 1.060751475 | M27: HELAA_Sites_Not_Deliverable
A28: M13 | B28: North of Boissy Close, Colney Heath, AL4 0UE | C28: 1.434695138 | F28: Residential | H28: Not developable within the next 15 years | J28: F-27 | K28: 14346.95138 | L28: 1.434695138 | M28: HELAA_Sites_Not_Deliverable
A29: B5 | B29: Glinwell, Hatfield Road, St Albans, AL4 0HE | C29: 20.8470975 | F29: Residential | H29: Potentially developable in part | J29: F-28 | K29: 208470.975 | L29: 20.8470975 | M29: HELAA_sites_with_potential
A30: M18 | B30: East of Kay Walk, St Albans, AL4 0XH | C30: 3.341131842 | F30: Residential | H30: Not developable within the next 15 years | J30: F-29 | K30: 33411.31842 | L30: 3.341131842 | M30: HELAA_Sites_Not_Deliverable
A31: L1 | B31: Burston Nurseriess, North Orbital Road, St albans, AL2 2DS | C31: 14.32725488 | F31: Residential | H31: Not developable within the next 15 years | J31: F-30 | K31: 143272.5488 | L31: 14.32725488 | M31: HELAA_Sites_Not_Deliverable
A32: B6 | B32: West of London Colney, AL2 1LN | C32: 13.50460657 | F32: Residential | H32: Potentially developable in part | J32: F-31 | K32: 135046.0657 | L32: 13.50460657 | M32: HELAA_sites_with_potential
A33: B8 | B33: Harper Lane, north of Radlett, WD7 7HU | C33: 11.40124468 | F33: Residential | H33: Potentially developable in part | J33: F-32 | K33: 114012.4468 | L33: 11.40124468 | M33: HELAA_sites_with_potential
A34: M8 | B34: Verulam Golf Club, St Albans, AL1 1JG | C34: 2.797956075 | F34: Residential | H34: Potentially developable | J34: F-33 | K34: 27979.56075 | L34: 2.797956075 | M34: HELAA_sites_with_potential
A35: B7 | B35: North West Harpenden, AL5 3NP | C35: 12.18841618 | F35: Residential | H35: Potentially developable in part | J35: F-34 | K35: 121884.1618 | L35: 12.18841618 | M35: HELAA_sites_with_potential
A36: M14 | B36: Beesonend Lane, Harpenden, AL5 2AB | C36: 2.029751931 | F36: Residential | H36: Potentially developable in part | J36: F-35 | K36: 20297.51931 | L36: 2.029751931 | M36: HELAA_sites_with_potential
A37: M9 | B37: Amwell Top Field, Wheathampstead, AL4 8DZ | C37: 4.266647762 | F37: Residential | H37: Not developable within the next 15 years | J37: F-36 | K37: 42666.47762 | L37: 4.266647762 | M37: HELAA_Sites_Not_Deliverable
A38: M12 | B38: North of The Slype, Gustard Wood, AL4 8SA | C38: 4.241120483 | F38: Residential | H38: Potentially developable | J38: F-37 | K38: 42411.20483 | L38: 4.241120483 | M38: HELAA_sites_with_potential
A39: H1 | B39: North Hemel Hempstead, AL3 7AU | C39: 88.83499963 | F39: Residential | H39: Potentially developable in part | J39: F-38 | K39: 888349.9963 | L39: 88.83499963 | M39: HELAA_sites_with_potential
A40: H2 | B40: East Hemel Hempstead (North), HP2 7HT | C40: 169.3763496 | F40: Residential | H40: Potentially developable in part | J40: F-39 | K40: 1693763.496 | L40: 169.3763496 | M40: HELAA_sites_with_potential
A41: B2 | B41: North East Harpenden, AL5 5EG | C41: 43.23713707 | F41: Residential | H41: Not developable within the next 15 years | J41: F-40 | K41: 432371.3707 | L41: 43.23713707 | M41: HELAA_Sites_Not_Deliverable
A42: P1 | B42: Smallford Works, Smallford Lane, AL4 0SA | C42: 3.335042676 | F42: Residential | H42: Not developable within the next 15 years | J42: F-41 | K42: 33350.42676 | L42: 3.335042676 | M42: HELAA_Sites_Not_Deliverable
A43: P2 | B43: Land at North Orbital Road, AL2 1DL | C43: 1.882035039 | F43: Residential | H43: Potentially developable | J43: F-42 | K43: 18820.35039 | L43: 1.882035039 | M43: HELAA_sites_with_potential
A44: M11 | B44: Rothamsted Research, Harpenden Campus, AL5 2JQ | C44: 1.617972855 | F44: Residential | H44: Not developable within the next 15 years | J44: F-43 | K44: 16179.72855 | L44: 1.617972855 | M44: HELAA_Sites_Not_Deliverable
A45: B1 | B45: North St Albans, AL3 6DD | C45: 46.74827858 | F45: Residential | H45: Not developable within the next 15 years | J45: F-44 | K45: 467482.7858 | L45: 46.74827858 | M45: HELAA_Sites_Not_Deliverable
A46: B4 | B46: East St Albans, AL4 9JJ | C46: 21.68629346 | F46: Residential | H46: Potentially developable | J46: F-45 | K46: 216862.9346 | L46: 21.68629346 | M46: HELAA_sites_with_potential
A47: M23 | B47: Ashdale Lye Lane, Bricket Wood, AL2 3LQ | C47: 2.256492389 | F47: Residential | H47: Not developable within the next 15 years | J47: F-46 | K47: 22564.92389 | L47: 2.256492389 | M47: HELAA_Sites_Not_Deliverable
A48: U2 | B48: Land South West of London Colney Allotments, AL2 1RG | C48: 0.6623759788 | F48: Residential | H48: Not developable within the next 15 years | J48: F-47 | K48: 6623.759788 | L48: 0.6623759788 | M48: HELAA_Sites_Not_Deliverable
A49: U3 | B49: Former Bricket Wood United Reformed Church, AL2 3QR | C49: 0.1725453674 | F49: Residential | H49: Potentially developable in part | J49: F-48 | K49: 1725.453674 | L49: 0.1725453674 | M49: HELAA_sites_with_potential
A50: U4 | B50: Greenwood United Reformed Church AL2 3HG | C50: 0.4701090692 | F50: Residential | H50: Not developable within the next 15 years | J50: F-49 | K50: 4701.090692 | L50: 0.4701090692 | M50: HELAA_Sites_Not_Deliverable
A51: U1 | B51: East of Morris Recreation Ground, adjacent to A1081 and White Horse Lane | C51: 1.320327449 | F51: Residential | H51: Not developable within the next 15 years | J51: F-50 | K51: 13203.27449 | L51: 1.320327449 | M51: HELAA_Sites_Not_Deliverable
A52: UC48 | B52: Car Park adj. to 42-46 Adelaide Street, St Albans, AL3 5BH | C52: 0.0516856168 | F52: Residential | H52: Potentially developable in part | J52: F-51 | K52: 516.856168 | L52: 0.0516856168 | M52: HELAA_sites_with_potential
A53: UC11 | B53: 50 Victoria Street St Albans, AL1 3HZ | C53: 0.1398753745 | F53: Residential | H53: Not developable within the next 15 years | J53: F-52 | K53: 1398.753745 | L53: 0.1398753745 | M53: HELAA_Sites_Not_Deliverable
A54: UC19 | B54: 54 Lemsford Road St Albans, AL1 3PR | C54: 0.3531747454 | F54: Residential | H54: Not developable within the next 15 years | J54: F-53 | K54: 3531.747454 | L54: 0.3531747454 | M54: HELAA_Sites_Not_Deliverable
A55: UC20 | B55: 104 High Street London Colney, AL2 1QL | C55: 0.2685297006 | F55: Residential | H55: Not developable within the next 15 years | J55: F-54 | K55: 2685.297006 | L55: 0.2685297006 | M55: HELAA_Sites_Not_Deliverable
A56: UC5 | B56: 18- 20 Catherine Street St Albans, AL3 5BY | C56: 0.4274639783 | F56: Residential | H56: Not developable within the next 15 years | J56: F-55 | K56: 4274.639783 | L56: 0.4274639783 | M56: HELAA_Sites_Not_Deliverable
A57: UC6 | B57: 13-19 Sutton Road & 5-11a Pickford Road St Albans, AL1 5JH | C57: 0.3244836847 | F57: Residential | H57: Not developable within the next 15 years | J57: F-56 | K57: 3244.836847 | L57: 0.3244836847 | M57: HELAA_Sites_Not_Deliverable
A58: UC46 | B58: Garage Blocks adj. to 76 Oakley Road and 151 Grove Road, Harpenden, AL5 1HJ | C58: 0.1172504074 | F58: Residential | H58: Not developable within the next 15 years | J58: F-57 | K58: 1172.504074 | L58: 0.1172504074 | M58: HELAA_Sites_Not_Deliverable
A59: UC47 | B59: Crabtree Fields / Land at Waldegrave Park, Harpenden, AL5 5SA | C59: 0.8766903797 | F59: Residential | H59: Potentially developable | J59: F-58 | K59: 8766.903797 | L59: 0.8766903797 | M59: HELAA_sites_with_potential
A60: UC40 | B60: Land Rear of New House Park Shops, St Albans, AL1 1UJ | C60: 0.1180911462 | F60: Residential | H60: Not developable within the next 15 years | J60: F-59 | K60: 1180.911462 | L60: 0.1180911462 | M60: HELAA_Sites_Not_Deliverable
A61: UC4 | B61: Car Park to rear of 32-34 Upper Marlborough Road, St Albans, AL1 3 UU | C61: 0.2218647447 | F61: Residential | H61: Potentially developable in part | J61: F-60 | K61: 2218.647447 | L61: 0.2218647447 | M61: HELAA_sites_with_potential
A62: UC25 | B62: 318 Watford Road, Chiswell Green, AL2 3DP | C62: 0.192994488 | F62: Residential | H62: Not developable within the next 15 years | J62: F-61 | K62: 1929.94488 | L62: 0.192994488 | M62: HELAA_Sites_Not_Deliverable
A63: UC10 | B63: Garage Block rear of 109-179 Hughenden Road, St Albans, AL4 9QW | C63: 0.2707832745 | F63: Residential | H63: Not developable within the next 15 years | J63: F-62 | K63: 2707.832745 | L63: 0.2707832745 | M63: HELAA_Sites_Not_Deliverable
A64: UC12 | B64: Garage Block Between Hughenden Road and The Ridgeway, St Albans, AL4 9RH | C64: 0.2218806313 | F64: Residential | H64: Potentially developable in part | J64: F-63 | K64: 2218.806313 | L64: 0.2218806313 | M64: HELAA_sites_with_potential
A65: UC14 | B65: Car Park to rear of 3 Church Green (Waitrose), Harpenden, AL5 2TJ | C65: 0.3366995703 | F65: Residential | H65: Potentially developable | J65: F-64 | K65: 3366.995703 | L65: =K65/10000 -> 0.3366995703 | M65: HELAA_sites_with_potential
A66: UC7 | B66: 5 Spencer Street, St Albans, AL3 5EH | C66: 0.1859077789 | F66: Residential | H66: Potentially developable | J66: F-65 | K66: 1859.077789 | L66: 0.1859077789 | M66: HELAA_sites_with_potential
A67: UC51 | B67: Garage Block to south of Abbots Park Abbots Park, St Albans, AL1 1TW | C67: 0.0563914435 | F67: Residential | H67: Not developable within the next 15 years | J67: F-66 | K67: 563.914435 | L67: 0.0563914435 | M67: HELAA_Sites_Not_Deliverable
A68: UC27 | B68: Berkeley House, Barnet Road, London Colney, AL2 1BG | C68: 0.1445292773 | F68: Residential | H68: Not developable within the next 15 years | J68: F-67 | K68: 1445.292773 | L68: 0.1445292773 | M68: HELAA_Sites_Not_Deliverable
A69: UC39 | B69: Garage Block to east of 8 Heath Close, Harpenden, AL5 1QN | C69: 0.1276284233 | F69: Residential | H69: Not developable within the next 15 years | J69: F-68 | K69: 1276.284233 | L69: 0.1276284233 | M69: HELAA_Sites_Not_Deliverable
A70: UC16 | B70: Garage Block west of Thirlestane, St Albans, AL1 3PE | C70: 0.1774691924 | F70: Residential | H70: Deliverable (Years 1-5) | J70: F-69 | K70: 1774.691924 | L70: 0.1774691924 | M70: HELAA_sites_with_potential
A71: UC52 | B71: Garage Block off Tallents Crescent, Harpenden, AL5 5BS | C71: 0.095154797 | F71: Residential | H71: Not developable within the next 15 years | J71: F-70 | K71: 951.54797 | L71: 0.095154797 | M71: HELAA_Sites_Not_Deliverable
A72: UC43 | B72: Garage block to west of 32-46 Riverside Road, St Albans, AL1 1SD | C72: 0.0604950091 | F72: Residential | H72: Not developable within the next 15 years | J72: F-71 | K72: 604.950091 | L72: 0.0604950091 | M72: HELAA_Sites_Not_Deliverable
A73: UC18 | B73: Garage block to front of 94-142 Riverside Road, Riverside Road, St Albans, AL1 1SE | C73: 0.1444709811 | F73: Residential | H73: Not developable within the next 15 years | J73: F-72 | K73: 1444.709811 | L73: 0.1444709811 | M73: HELAA_Sites_Not_Deliverable
A74: UC38 | B74: Garage block to rear of 27-32 St Pauls Place, St Pauls Place, St Albans, AL1 4JW | C74: 0.122876225 | F74: Residential | H74: Not developable within the next 15 years | J74: F-73 | K74: 1228.76225 | L74: 0.122876225 | M74: HELAA_Sites_Not_Deliverable
A75: UC44 | B75: Garage Block off Millford Hill, Harpenden, AL5 5BN | C75: 0.0741702024 | F75: Residential | H75: Potentially developable in part | J75: F-74 | K75: 741.702024 | L75: 0.0741702024 | M75: HELAA_sites_with_potential
A76: UC23 | B76: Garage Site adj. Verulam House, Verulam Road, St Albans, AL3 5EN | C76: 0.1288112184 | F76: Residential | H76: Not developable within the next 15 years | J76: F-75 | K76: 1288.112184 | L76: 0.1288112184 | M76: HELAA_Sites_Not_Deliverable
A77: UC17 | B77: Garage Block off Cotlandswick, London Colney, AL2 1ED | C77: 0.1136766407 | F77: Residential | H77: Not developable within the next 15 years | J77: F-76 | K77: 1136.766407 | L77: 0.1136766407 | M77: HELAA_Sites_Not_Deliverable
A78: UC31 | B78: Garages off Creighton Avenue, St Albans, AL1 2LZ | C78: 0.1398521539 | F78: Residential | H78: Potentially developable in part | J78: F-77 | K78: 1398.521539 | L78: 0.1398521539 | M78: HELAA_sites_with_potential
A79: UC45 | B79: Garages off Watling View (West), St Albans, AL1 2PA | C79: 0.1074331982 | F79: Residential | H79: Not developable within the next 15 years | J79: F-78 | K79: 1074.331982 | L79: 0.1074331982 | M79: HELAA_Sites_Not_Deliverable
A80: UC30 | B80: Garages Between Abbotts Avenue West and Abbey Line, St Albans, AL1 2JH | C80: 0.1443696475 | F80: Residential | H80: Not developable within the next 15 years | J80: F-79 | K80: 1443.696475 | L80: 0.1443696475 | M80: HELAA_Sites_Not_Deliverable
A81: UC42 | B81: Garages off Thirlmere Drive, St Albans, AL1 5QS | C81: 0.1376645243 | F81: Residential | H81: Not developable within the next 15 years | J81: F-80 | K81: 1376.645243 | L81: 0.1376645243 | M81: HELAA_Sites_Not_Deliverable
A82: UC29 | B82: Garage Block off Noke Shot, Harpenden, AL5 5HS | C82: 0.1610634251 | F82: Residential | H82: Not developable within the next 15 years | J82: F-81 | K82: 1610.634251 | L82: 0.1610634251 | M82: HELAA_Sites_Not_Deliverable
A83: UC33 | B83: Land Rear of 53 Snatchup, Redbourn, AL3 7HF | C83: 0.1641322395 | F83: Residential | H83: Not developable within the next 15 years | J83: F-82 | K83: 1641.322395 | L83: 0.1641322395 | M83: HELAA_Sites_Not_Deliverable
A84: UC26 | B84: Garage Block to Malvern Close, St Albans, AL4 9SZ | C84: 0.132368438 | F84: Residential | H84: Not developable within the next 15 years | J84: F-83 | K84: 1323.68438 | L84: 0.132368438 | M84: HELAA_Sites_Not_Deliverable
A85: UC21 | B85: Garages off Chapel Place, St Albans, AL1 2JZ | C85: 0.2282226003 | F85: Residential | H85: Not developable within the next 15 years | J85: F-84 | K85: 2282.226003 | L85: 0.2282226003 | M85: HELAA_Sites_Not_Deliverable
A86: UC41 | B86: Garages at Grindcobbe, St Albans, AL1 2ED | C86: 0.1204110515 | F86: Residential | H86: Not developable within the next 15 years | J86: F-85 | K86: 1204.110515 | L86: 0.1204110515 | M86: HELAA_Sites_Not_Deliverable
A87: UC34 | B87: Garages Rear of Hill End Lane (South), St Albans, AL4 0AE | C87: 0.1858515264 | F87: Residential | H87: Not developable within the next 15 years | J87: F-86 | K87: 1858.515264 | L87: 0.1858515264 | M87: HELAA_Sites_Not_Deliverable
A88: UC24 | B88: Garages Rear of Hill End Lane (North), St Albans, AL4 0AE | C88: 0.2076703542 | F88: Residential | H88: Not developable within the next 15 years | J88: F-87 | K88: 2076.703542 | L88: 0.2076703542 | M88: HELAA_Sites_Not_Deliverable
A89: UC31 | B89: Garages rear of Tudor Road, St Albans, AL3 6AY | C89: 0.1714576728 | F89: Residential | H89: Not developable within the next 15 years | J89: F-88 | K89: 1714.576728 | L89: 0.1714576728 | M89: HELAA_Sites_Not_Deliverable
A90: UC36 | B90: Garages off Park Street Lane, Park Street, AL2 2ND | C90: 0.1286785731 | F90: Residential | H90: Not developable within the next 15 years | J90: F-89 | K90: 1286.785731 | L90: 0.1286785731 | M90: HELAA_Sites_Not_Deliverable
A91: UC49 | B91: Garage Block rear of 18-30 Furse Avenue, St Albans, AL4 9NE | C91: 0.1188436043 | F91: Residential | H91: Potentially developable in part | J91: F-90 | K91: 1188.436043 | L91: 0.1188436043 | M91: HELAA_sites_with_potential
A92: UC37 | B92: Garages off Watling View (East), St Albans, AL1 2NT | C92: 0.1378371091 | F92: Residential | H92: Not developable within the next 15 years | J92: F-91 | K92: 1378.371091 | L92: 0.1378371091 | M92: HELAA_Sites_Not_Deliverable
A93: UC22 | B93: Car Park to rear of 77-101 Hatfield Road, Hatfield Road, St Albans, AL1 4JL | C93: 0.1010167572 | F93: Residential | H93: Not developable within the next 15 years | J93: F-92 | K93: 1010.167572 | L93: 0.1010167572 | M93: HELAA_Sites_Not_Deliverable
A94: UC15 | B94: Bowers Way East Car Park Bowers Way, Harpenden, AL5 4EQ | C94: 0.4139247252 | F94: Residential | H94: Not developable within the next 15 years | J94: F-93 | K94: 4139.247252 | L94: 0.4139247252 | M94: HELAA_Sites_Not_Deliverable
A95: UC2 | B95: Civic Close Car Park Bricket Road, St Albans, AL1 3JX | C95: 0.4533859432 | F95: Residential | H95: Deliverable (Years 1-5) | J95: F-94 | K95: 4533.859432 | L95: 0.4533859432 | M95: HELAA_sites_with_potential
A96: UC35 | B96: Market Depot, Drovers Way, St Albans, AL3 5FA | C96: 0.0727491961 | F96: Residential | H96: Not developable within the next 15 years | J96: F-95 | K96: 727.491961 | L96: 0.0727491961 | M96: HELAA_Sites_Not_Deliverable
A97: UC9 | B97: Keyfield Terrace Car Park, Keyfield Terrace, St Albans, AL1 1PD | C97: 0.2479526099 | F97: Residential | H97: Not developable within the next 15 years | J97: F-96 | K97: 2479.526099 | L97: 0.2479526099 | M97: HELAA_Sites_Not_Deliverable
A98: UC8 | B98: Public Hall, 6 Southdown Road, Harpenden, AL5 1TE | C98: 0.263656473 | F98: Residential | H98: Not developable within the next 15 years | J98: F-97 | K98: 2636.56473 | L98: 0.263656473 | M98: HELAA_Sites_Not_Deliverable
A99: UC13 | B99: Car Park adjacent to Verulam House, Verulam Road, St Albans, AL3 5EN | C99: 0.2216743936 | F99: Residential | H99: Not developable within the next 15 years | J99: F-98 | K99: 2216.743936 | L99: 0.2216743936 | M99: HELAA_Sites_Not_Deliverable
A100: UC3 | B100: London Road Car Park, London Road, St Albans, AL1 1NG | C100: 0.5728307419 | F100: Residential | H100: Not developable within the next 15 years | J100: F-99 | K100: 5728.307419 | L100: 0.5728307419 | M100: HELAA_Sites_Not_Deliverable
A101: UC10 | B101: Southview Car Park, Lower Luton Road, Harpenden, AL5 5AW | C101: 0.0971849875 | F101: Residential | H101: Not developable within the next 15 years | J101: F-100 | K101: 971.849875 | L101: 0.0971849875 | M101: HELAA_Sites_Not_Deliverable
A102: UC1 | B102: Sainsbury’s Supermarket, Everard Close, St Albans AL1 2QU | C102: 2.446510842 | F102: Residential | H102: Potentially developable in part | J102: F-101 | K102: 24465.10842 | L102: 2.446510842 | M102: HELAA_sites_with_potential
A103: UC28 | B103: New Greens Residents Association, 2 High Oaks, St Albans, AL3 6DL | C103: 0.2049581185 | F103: Residential | H103: Potentially developable in part | J103: F-102 | K103: 2049.581185 | L103: 0.2049581185 | M103: HELAA_sites_with_potential
